Workbook

Sheet Process & Requirements (hidden)
C3: =BannerText -> Energy Services ● eebiz@snopud.com ● www.snopud.com
C5: Process & Requirements (Updated 1/1/23)
C8: 1) | D8: Determine the project scope
E9: First, determine which lights at your facility you would like to upgrade and the proposed fixtures you would like to replace them with. As a Public Utility, PUD must remain product and vendor neutral so we are unable to make specific recommendations on how you should complete your lighting project. However, if you would like some help making these important decisions here are a few resources available to you:
F12: a) | G12: Free consultation - If you are unsure where to begin or have questions around our incentive process, please reach out to: John Petosa (P) (425) 530-6603 (E) jfpetosa@snopud.com
G14: OR
F15: b) | G15: Review the list of Lighting Contractors who have recently worked in our area.
E16: Minimum lighting eligibility requirements:
E17: ● | F17: UL, ETL or CSA Listed
E18: ● | F18: Minimum 5 Year Warranty
E19: ● | F19: Power Factor ≥ 0.9
E20: Minimum networked / luminaire level lighting controls eligibility requirements:
E21: ● | F21: Networked/luminaire Lighting Control products must be listed on the DesignLights Consortium® Qualified Products List to qualify.
E22: ● | F22: All Networked/Luminaire Level Lighting Control projects require a description of the proposed controls strategy. PLEASE NOTE: LLLC/Networked Controls must include Task Tuning (Maximum output of 80%) and at least 2 additional strategies to qualify. Ex: Task tuning + Occupancy Sensing + Daylight Harvesting
C25: 2) | D25: Gather the necessary documents and upload for PUD review
E26: In addition to filling out this workbook, please also gather the following documents:
F27: a) | G27: Product specification sheets ("Spec Sheets")
H28: Required for each unique model # being used on the project.
H29: ● | I29: When possible, please highlight on the sheet the minimum eligibility requirements (i.e. warranty, power factor, uL/ETL, etc...)
H30: ● | I30: If a spec sheet has multiple options listed (i.e. color temperatures, wattage packages, distribution types, please mark, highlight, or otherwise indicate your desired option(s) on the sheet.
H32: ● | I32: In projects where multiple spec sheets are required, please assign a simple, unique ID to each spec sheet for ease of reference and combine them into a single pdf file. Ex: Spec 1A, Spec 1B, Spec 2A, etc…
F34: b) | G34: Proposal/Bid
F35: c) | G35: [Conditional] Customer acknowledgement
H36: If you are a contractor submitting a project on your customers behalf, please also provide an acknowledgement from the customer that they intend to proceed with the project. This can be a signed application, signed bid, or something to the same effect.
E38: Once you have gathered the necessary documents, please visit our commercial lighting page and upload your documents to complete your application.
E39: Our team will follow up with next steps. If you have not participated in our programs recently, we will also request a copy of your company's IRS W9 form.
C40: 3) | D40: PUD review, approval and project go-ahead
E41: Our staff will review your submitted documents for accuracy and completeness. If your submission is missing any required information, or any of the information contained is incorrect you will be informed and your application will be placed on hold until the correct information is provided.
E43: Project authorization and signing the project participation agreement
F44: Once your project has been reviewed and approved, an authorized participation agreement will be created and sent to the Customer for review and signature. The signed agreement must be returned to the PUD by the sign back deadline in order to secure incentive funding. The agreement will include a summary of the financial incentive offered, estimated savings, who receives payment (customer or customer's assigned Payee), terms and conditions, and project verification requirements. Program funding is limited and project incentives are subject to budget availability. Funding will not be reserved for your project until we receive a signed agreement.
E49: Once we have receive the signed participation agreement, we will issue a project go-ahead, after which you may purchase equipment and begin work on your project.
C51: 4) | D51: Important dates, project completion and changes to the authorized scope
E52: Project expiration
F53: A typical lighting project will be given 91 days (13 Weeks) from the date of authorization to complete. If your project will need more time, please let us know at the time of project submission. If unforeseen issues arise and you need more time to complete your project, please reach out to us with a written request PRIOR to the expiration date. We will review our case and determine whether to grant your project a deadline extension. Deadline extensions are subject to funding availability. No extensions will be granted to projects that have received a bonus or other special "Due By" dates.
E57: Changes to the authorized scope
F58: Any changes to the project after the original scope has been approved that results in an increase to the savings or incentive must be approved by the PUD to ensure eligibility and funding availability, unless stated otherwise by PUD.
E60: Project completion
F61: Once your project is complete, please send us a copy of the final invoice, and (if applicable), any as built spec sheets and this workbook updated with any as built changes.
C63: 5) | D63: Project close out and payment
E64: Post verification
F65: Once the new lights are installed and operating, the PUD may require an on-site verification or photos to ensure the scope of the project has been completed as authorized in the participation agreement. For projects where equipment or systems might be concealed prior to completion or in a limited access location the PUD may request a site verification(s) during installation to review progress.
E68: Payment
F69: Once your project has been approved for payment, we will notify you via email. A check will be mailed to the address provided on the application unless otherwise requested by the customer. Please allow 2-6 weeks for payment delivery
E71: Post Project
F72: The PUD reserves the right to review system or facility energy usage after the project has been completed.
C76: If you have questions, please contact Snohomish PUD at EEBIZ@snopud.com

Sheet Application
C3: Energy Services ● eebiz@snopud.com ● www.snopud.com
C5: Application | N5: Alert! This workbook requires macros in order to function properly. For instructions on how to enable macros please click here
C7: For Lighting Retrofits in Commercial & Industrial Facilities
D9: Facility Information | AS9: *Indicates required field
D11: Facility / Building Name*: | Q11: Facility Address*: | AG11: City/Town*: | AP11: State | AR11: Zip Code*:
AP12: WA
D14: Facility Type* | H14: Premise Type* | S14: Account Number(s): | Z14: PUD Meter(s): | AE14: Est. kWh/yr: | AH14: Approx. Ft2: | AM14: Multi-tenant: | AP14: A/C*: | AR14: Heat Source*:
D15: 1 | H15: [Select Premise Type]
D17: Hours of Occupancy (Main)*: | L17: M | M17: - | N17: F | O17: Hours of Occupancy (Alt 1): | Y17: - | AA17: Hours of Occupancy (Alt 2): | AK17: - | AM17: Holidays/Yr*: | AP17: 24/7: | AR17: Occupied Hours/Year: | AW17: 24/7 Flag
D19: 8 | E19: : | F19: 0 | G19: AM | H19: - | I19: 6 | J19: : | K19: 0 | M19: PM | Q19: : | T19: - | V19: : | AC19: : | AF19: - | AH19: : | AM19: 10 | AR19: =IF(App_247Flag=TRUE,8760-24*App_DaysClosed, ROUND(SUM(WeeklyBurnHours)/7*365-App_DaysClosed*PrimaryHoursPerDay,-1)) -> 2510 | AW19: FALSE
D22: Project Information
P24: Est. Start Date: | T24: Est. End Date: | Z24: Installer*: | AE24: Project Cost: | AL24: Est. PUD Incentive: | AQ24: Est. Annual Savings ($):
AE25: =IFERROR(IF(TotalCost=0,"",TotalCost),"") ->  | AL25: =IFERROR(IF(IncentiveAmount=0,"",IncentiveAmount),"") ->  | AQ25: =IF(EstAnnualCostSavings=0,"",EstAnnualCostSavings) -> 
AG26: Looking for a Lighting Contractor? Click Here | AS26: =IF(PromoInputValue="","", IF(PromoCodeValid="Valid","Promo Code Active! " & PromoDeadline,"Code Not Valid")) -> 
D27: Assignment of Funds?
D28: The customer may choose to assign their incentive funds to their contractor/distributor in order to reduce the amount owed on the final invoice. Will this project include an Assignment of Funds? | AR28: Yes | AS28: No
D30: Project Development Incentive (PDI)
D31: =AW32&"The incentive will be paid at a rate of $"&PDIrate_Base&"/kWh based on the final project savings plus an additional $"&PDIrate_Networked&"/kWh for savings from networked lighting controls or $"&PDIrate_LLLC&"/kWh from luminaire level lighting controls. Minimum of $"&ProjDevMin&" per project (up to 100% of project cost if paid to customer), no maximum cap." -> In addition to the incentive for energy efficiency upgrades, PUD is now offering a supplemental project development incentive to offset administrative costs associated with participating in our programs. A project development incentive will be paid to the company that is primarily responsible for filling out this workbook, assembling the required documents and submitting the complete application packet. The incentive will be paid at a rate of $0.02/kWh based on the final project savings plus an additional $0.01/kWh for savings from networked lighting controls or $0.015/kWh from luminaire level lighting controls. Minimum of $50 per project (up to 100% of project cost if paid to customer), no maximum cap. | AO31: Est. Project Development Incentive | AW31: PDI Explainer Text
AO32: =IF(TotalCost="","",ProjDevIncentive) -> 50 | AW32: In addition to the incentive for energy efficiency upgrades, PUD is now offering a supplemental project development incentive to offset administrative costs associated with participating in our programs. A project development incentive will be paid to the company that is primarily responsible for filling out this workbook, assembling the required documents and submitting the complete application packet.
AO33: PDI Recipient
AO34: Customer/Self Install
D37: Customer Information
D39: Business Name (as it appears on IRS W-9)* | U39: Payment Address (check if same as above)* | AK39: =IF(App_SameAddressFlag=TRUE," City/Town"," City/Town*") -> City/Town* | AP39: =IF(App_SameAddressFlag=TRUE,"State","State*") -> State* | AR39: =IF(App_SameAddressFlag=TRUE," Zip Code"," Zip Code*") -> Zip Code* | AW39: Payment Address Flag
AW40: FALSE
D41: Primary Contact/Signing Authority*: | O41: Title: | Z41: Phone*: | AF41: Mobile: | AN41: E-Mail*:
D43: Project Contact (If different from above): | O43: Title: | Z43: Phone: | AF43: Mobile: | AN43: E-Mail:
D45: Payment Preference* | J45: ACH Note (Limit 25 Characters)
D49: Contractor/Distributor Information
D51: Business Name (as it appears on IRS W-9)* | U51: Business/Payment Address* | AK51: City/Town* | AP51: State* | AR51: Zip Code*
D53: Primary Contact*: | O53: Title: | Z53: Phone*: | AF53: Mobile: | AN53: E-Mail*:
AR55: NXT Level Certified Contractors Click Here:
D57: Application Signature
D59: Applicant Name | R59: Applicant Title | AE59: Applicant Signature | AR59: Date
D61: Pre-Approval Acknowledgement
F62: By signing above, I acknowledge that all equipment and scope must be reviewed and approved by PUD before any purchases occur. I understand that any equipment purchased or installed prior to PUD approval will not qualify for incentives unless stated otherwise by PUD program staff.
D67: If you have any questions filling out this application, please contact:
D68: EEBIZ@snopud.com
D69: Questions: Call (425) 783-1012
AS70: =Version -> Version April 2025 - Effective Date April 1st, 2025
AW74: Drop Down List | BB74: Su | BC74: M | BD74: T | BE74: W | BF74: Th | BG74: F | BH74: Sa | BI74: Su | BJ74: M | BK74: T | BL74: W | BM74: Th | BN74: F | BO74: Sa
AW75: Hours | AX75: Quarters | AY75: AMPM | AZ75: DaysofWeek | BA75: Primary? | BB75: =IF($L$17=BB$74,"SP", IF($N$17=BB$74,"EP", IF($N$17="",0, IF(OR(BA75="SP",BA75="MP"),"MP",0 )))) -> 0 | BC75: SP | BD75: MP | BE75: MP | BF75: MP | BG75: EP | BH75: 0 | BI75: 0 | BJ75: SP | BK75: MP | BL75: MP | BM75: MP | BN75: EP | BO75: 0
AW76: 1 | AX76: 0 | AY76: AM | AZ76: M | BA76: Secondary? | BB76: =IF($X$17=BB$74,"SS", IF($Z$17=BB$74,"ES", IF($Z$17="",0, IF(OR(BA76="SS",BA76="MS"),"MS",0 )))) -> 0 | BC76: 0 | BD76: 0 | BE76: 0 | BF76: 0 | BG76: 0 | BH76: 0 | BI76: 0 | BJ76: 0 | BK76: 0 | BL76: 0 | BM76: =IF($V$17=BM$74,"SS", IF($Z$17=BM$74,"ES", IF($Z$17="",0, IF(OR(BL76="SS",BL76="MS"),"MS",0 )))) -> 0 | BN76: =IF($V$17=BN$74,"SS", IF($Z$17=BN$74,"ES", IF($Z$17="",0, IF(OR(BM76="SS",BM76="MS"),"MS",0 )))) -> 0 | BO76: =IF($X$17=BO$74,"SS", IF($Z$17=BO$74,"ES", IF($Z$17="",0, IF(OR(BN76="SS",BN76="MS"),"MS",0 )))) -> 0
AW77: 2 | AX77: 15 | AY77: PM | AZ77: T | BA77: Tertiary? | BB77: =IF($AJ$17=BB$74,"ST", IF($AL$17=BB$74,"ET", IF($Z$17="",0, IF(OR(BA77="SS",BA77="MS"),"MS",0 )))) -> 0 | BC77: 0 | BD77: 0 | BE77: 0 | BF77: 0 | BG77: 0 | BH77: 0 | BI77: 0 | BJ77: 0 | BK77: 0 | BL77: 0 | BM77: 0 | BN77: 0 | BO77: 0
AW78: 3 | AX78: 30 | AZ78: W
B79: Drop Down List | AW79: 4 | AX79: 45 | AZ79: Th | BA79: Burn Hours | BB79: =SUM(BB89:BB112) -> 0 | BC79: 10 | BD79: 10 | BE79: 10 | BF79: 10 | BG79: 10 | BH79: 0 | BI79: Primary Hours | BK79: Secondary Hours | BM79: Tertiary Hours | BP79: WeeklyPeakHours
B80: HeatSourceType | G80: OccupancyType | P80: BusinessType | Z80: PUDStaff | AF80: AccountMgrs | AO80: City | AS80: YesNo | AW80: 5 | AZ80: F | BA80: P. Start Hr | BB80: =IF(OR(RIGHT(BB$75,1)="P",RIGHT(BI$75,1)="P"),$BJ$82, 0) -> 0 | BC80: 8 | BD80: 8 | BE80: 8 | BF80: 8 | BG80: 8 | BH80: 0 | BI80: =IF(AND(D19=12),0+F19*1/60,D19+F19*1/60) -> 8 | BJ80: =G19 -> AM | BK80: =IF(P19=12,0+R19*1/60,P19+R19*1/60) -> 0 | BL80: =S19 -> 0 | BM80: =IF(AB19=12,0+AD19*1/60,AB19+AD19*1/60) -> 0 | BN80: =AE19 -> 0 | BP80: =SUM(BC96:BF97,BC106:BF107) -> 8
B81: Electric | G81: Agricultural | P81: Dry Goods Retail | Z81: Allison Grinczel | AF81: Tom Hovde | AO81: Arlington | AS81: Yes | AW81: 6 | AZ81: Sa | BA81: P. End Hr | BB81: =IF(OR(RIGHT(BB$75,1)="P",RIGHT(BI$75,1)="P"),$BJ$83, 0) -> 0 | BC81: 18 | BD81: 18 | BE81: 18 | BF81: 18 | BG81: 18 | BH81: 0 | BI81: =IF(AND(I19=12,BJ81="AM"),K19*1/60,I19+K19*1/60) -> 6 | BJ81: =M19 -> PM | BK81: =IF(AND(U19=12,BL81="AM"),W19*1/60,U19+W19*1/60) -> 0 | BL81: =Y19 -> 0 | BM81: =IF(AND(AG19=12,BN81="AM"),AI19*1/60,AG19+AI19*1/60) -> 0 | BN81: =AK19 -> 0
B82: Gas | G82: Aircraft Hangar | P82: Grocery | Z82: John Petosa | AF82: Doug O'Donnell | AO82: Camano Island | AS82: No | AW82: 7 | AZ82: Su | BA82: P. Burn Hrs | BB82: =BB81-BB80 -> 0 | BC82: =BC81-BC80 -> 10 | BD82: 10 | BE82: 10 | BF82: 10 | BG82: 10 | BH82: 0 | BI82: =BI80 -> 8 | BJ82: =IF(AND($BI$80=12,$BJ$80="AM"),0, IF($BJ$80="AM",$BI$80, IF(AND($BI$80=12,$BJ$80="PM"),12, IF($BJ$80="PM",$BI$80+12 )))) -> 8 | BK82: =BK80 -> 0 | BL82: =IF(AND($BK$80=12,$BL$80="AM"),0, IF($BL$80="AM",$BK$80, IF(AND($BK$80=12,$BL$80="PM"),12, IF($BL$80="PM",$BK$80+12 )))) -> FALSE | BM82: =BM80 -> 0 | BN82: =IF(AND($BM$80=12,$BN$80="AM"),0, IF($BN$80="AM",$BM$80, IF(AND($BM$80=12,$BN$80="PM"),12, IF($BN$80="PM",$BM$80+12 )))) -> FALSE
B83: Oil | G83: Airport Operations | P83: Office | Z83: Rick Rosenkilde | AF83: Shelley Pattison | AO83: Bothell | AW83: 8 | BA83: S. Start Hr | BB83: =IF(OR(RIGHT(BB$76,1)="S",RIGHT(BI$76,1)="S"),$BL$82, 0) -> 0 | BC83: 0 | BD83: 0 | BE83: 0 | BF83: 0 | BG83: 0 | BH83: 0 | BI83: =IF(AND(BJ80="AM",BJ81="PM",BI81<>12),BI81+12, IF(AND(BJ80="AM",BJ81="AM",BI81<=BI80),BI81+24, IF(AND(BJ80="PM",BJ81="AM"),BI81+12, IF(AND(BJ80="PM",BJ81="PM",BI81<=BI80),BI81+24,$BI$81)))) -> 18 | BJ83: =BI85+BJ82 -> 18 | BK83: =IF(AND(BL80="AM",BL81="PM",BK81<>12),BK81+12, IF(AND(BL80="AM",BL81="AM",BK81<=BK80),BK81+24, IF(AND(BL80="PM",BL81="AM"),BK81+12, IF(AND(BL80="PM",BL81="PM",BK81<=BK80),BK81+24,$BK$81)))) -> 0 | BL83: =BK85+BL82 -> 0 | BM83: =IF(AND(BN80="AM",BN81="PM",BM81<>12),BM81+12, IF(AND(BN80="AM",BN81="AM",BM81<=BM80),BM81+24, IF(AND(BN80="PM",BN81="AM"),BM81+12, IF(AND(BN80="PM",BN81="PM",BM81<=BM80),BM81+24,$BK$81)))) -> 0 | BN83: =BM85+BN82 -> 0
B84: Propane | G84: Animal Hospital | P84: Restaurant | Z84: Rob Marks | AF84: Chuck Peterson | AO84: Brier | AW84: 9 | BA84: S. End Hr | BB84: =IF(OR(RIGHT(BB$76,1)="S",RIGHT(BI$76,1)="S"),$BL$83, 0) -> 0 | BC84: 0 | BD84: 0 | BE84: 0 | BF84: 0 | BG84: 0 | BH84: 0
B85: Heat Pump - Electric | G85: Apartments & Condos | P85: Warehouse | Z85: Shayne Moore | AF85: John Petosa | AO85: Darrington | AW85: 10 | BA85: S. Burn Hrs | BB85: =BB84-BB83 -> 0 | BC85: =BC84-BC83 -> 0 | BD85: 0 | BE85: 0 | BF85: 0 | BG85: 0 | BH85: 0 | BI85: =BI83-BI82 -> 10 | BJ85: hours/day | BK85: =BK83-BK82 -> 0 | BL85: hours/day | BM85: =BM83-BM82 -> 0 | BN85: hours/day
B86: Heat Pump - Gas | G86: Bank | P86: Hospital | Z86: Sinh Tran | AF86: Laura Zorick | AO86: Edmonds | AW86: 11 | BA86: T. Start Hr | BB86: =IF(OR(RIGHT(BB$77,1)="T",RIGHT(BI$77,1)="T"),$BN82, 0) -> 0 | BC86: 0 | BD86: 0 | BE86: 0 | BF86: 0 | BG86: 0 | BH86: 0
B87: VRF | G87: Casino | P87: Hotel/Motel | AO87: Everett | AW87: 12 | BA87: T. End Hr | BB87: 0 | BC87: 0 | BD87: 0 | BE87: 0 | BF87: 0 | BG87: 0 | BH87: 0
B88: None | G88: Cell Tower | P88: Other Health | AO88: Gold Bar | BA88: T. Burn Hrs | BB88: =BB87-BB86 -> 0 | BC88: 0 | BD88: 0 | BE88: 0 | BF88: 0 | BG88: 0 | BH88: 0
G89: Church | P89: School | AO89: Granite Falls | BA89: 0 | BB89: =IF($AW$19=TRUE,1, IF(AND(BB$80<=$BA89,(BB$80+BB$82)>=($BA89+1)),1+N("Primary"), IF(AND(BH$80>$BA89,(BH$80+BH$82)>=($BA89+1+24)),1+N("Primary"), IF(AND(BB$83<=$BA89,(BB$83+BB$85)>=($BA89+1)),1+N("Secondary"), IF(AND(BH$83>$BA89,(BH$83+BH$85)>=($BA89+1+24)),1+N("Secondary"), IF(AND(BB$86<=$BA89,(BB$86+BB$88)>=($BA89+1)),1+N("Tertiary"), IF(AND(BH$86>$BA89,(BH$86+BH$88)>=($BA89+1+24)),1+N("Tertiary"), IF(AND(ROUNDDOWN(BB$80,0)=$BA89,BB$82>0),1-(BB$80-ROUNDDOWN(BB$80,0))+IF(ROUNDDOWN(BH$81,0)-24=$BA89,(BH$81-ROUNDDOWN(BH$81,0)),0)+N("Primary"), IF(AND(ROUNDDOWN(BB$83,0)=$BA89,BB$85>0),1-(BB$83-ROUNDDOWN(BB$83,0))+IF(ROUNDDOWN(BH$84,0)-24=$BA89,(BH$84-ROUNDDOWN(BH$84,0)),0)+N("Secondary"), IF(AND(ROUNDDOWN(BB$86,0)=$BA89,BB$88>0),1-(BB$86-ROUNDDOWN(BB$86,0))+IF(ROUNDDOWN(BH$87,0)-24=$BA89,(BH$87-ROUNDDOWN(BH$87,0)),0)+N("Tertiary"), IF(AND(ROUNDDOWN(BB$81,0)=$BA89,BB$82>0),(BB$81-ROUNDDOWN(BB$81,0))+N("Primary"), IF(AND(ROUNDDOWN(BB$84,0)=$BA89,BB$85>0),(BB$84-ROUNDDOWN(BB$84,0))+N("Secondary"), IF(AND(ROUNDDOWN(BB$87,0)=$BA89,BB$88>0),(BB$87-ROUNDDOWN(BB$87,0))+N("Tertiary"), 0))))))))))))) -> 0 | BC89: =IF($AW$19=TRUE,1, IF(AND(BC$80<=$BA89,(BC$80+BC$82)>=($BA89+1)),1+N("Primary"), IF(AND(BB$80>$BA89,(BB$80+BB$82)>=($BA89+1+24)),1+N("Primary"), IF(AND(BC$83<=$BA89,(BC$83+BC$85)>=($BA89+1)),1+N("Secondary"), IF(AND(BB$83>$BA89,(BB$83+BB$85)>=($BA89+1+24)),1+N("Secondary"), IF(AND(BC$86<=$BA89,(BC$86+BC$88)>=($BA89+1)),1+N("Tertiary"), IF(AND(BB$86>$BA89,(BB$86+BB$88)>=($BA89+1+24)),1+N("Tertiary"), IF(AND(ROUNDDOWN(BC$80,0)=$BA89,BC$82>0),1-(BC$80-ROUNDDOWN(BC$80,0))+IF(ROUNDDOWN(BB$81,0)-24=$BA89,(BB$81-ROUNDDOWN(BB$81,0)),0)+N("Primary"), IF(AND(ROUNDDOWN(BC$83,0)=$BA89,BC$85>0),1-(BC$83-ROUNDDOWN(BC$83,0))+IF(ROUNDDOWN(BB$84,0)-24=$BA89,(BB$84-ROUNDDOWN(BB$84,0)),0)+N("Secondary"), IF(AND(ROUNDDOWN(BC$86,0)=$BA89,BC$88>0),1-(BC$86-ROUNDDOWN(BC$86,0))+IF(ROUNDDOWN(BB$87,0)-24=$BA89,(BB$87-ROUNDDOWN(BB$87,0)),0)+N("Tertiary"), IF(AND(ROUNDDOWN(BC$81,0)=$BA89,BC$82>0),(BC$81-ROUNDDOWN(BC$81,0))+N("Primary"), IF(AND(ROUNDDOWN(BC$84,0)=$BA89,BC$85>0),(BC$84-ROUNDDOWN(BC$84,0))+N("Secondary"), IF(AND(ROUNDDOWN(BC$87,0)=$BA89,BC$88>0),(BC$87-ROUNDDOWN(BC$87,0))+N("Tertiary"), 0))))))))))))) -> 0 | BD89: 0 | BE89: 0 | BF89: 0 | BG89: 0 | BH89: 0
G90: Church / School | P90: University | Z90: Customer Role | AO90: Index | BA90: 1 | BB90: 0 | BC90: 0 | BD90: 0 | BE90: 0 | BF90: 0 | BG90: 0 | BH90: 0
G91: Clinic | P91: Other | Z91: Owner | AO91: Lake Stevens | BA91: 2 | BB91: 0 | BC91: 0 | BD91: 0 | BE91: 0 | BF91: 0 | BG91: 0 | BH91: 0
G92: Communication | Z92: Facility Manager | AO92: Lynnwood | BA92: 3 | BB92: 0 | BC92: 0 | BD92: 0 | BE92: 0 | BF92: 0 | BG92: 0 | BH92: 0
G93: Conference Center | Z93: Property Manager | AO93: Marysville | BA93: 4 | BB93: 0 | BC93: 0 | BD93: 0 | BE93: 0 | BF93: 0 | BG93: 0 | BH93: 0
G94: Data Center | Z94: Tenant | AO94: Mill Creek | BA94: 5 | BB94: 0 | BC94: 0 | BD94: 0 | BE94: 0 | BF94: 0 | BG94: 0 | BH94: 0
G95: Daycare | Z95: Customer Rep | AO95: Monroe | BA95: 6 | BB95: 0 | BC95: 0 | BD95: 0 | BE95: 0 | BF95: 0 | BG95: 0 | BH95: 0
G96: District Facility | AO96: Mountlake Terrace | BA96: 7 | BB96: 0 | BC96: 0 | BD96: 0 | BE96: 0 | BF96: 0 | BG96: 0 | BH96: 0
G97: Federal Government | P97: Commercial | Q97: Industrial | AF97: Spec Sheets | AG97: FALSE | AO97: Mukilteo | BA97: 8 | BB97: 0 | BC97: 1 | BD97: 1 | BE97: 1 | BF97: 1 | BG97: 1 | BH97: 0
G98: FPD | P98: Large Office >50K SQ FT | Q98: Transportation, Equipment | AF98: Project Bid | AG98: FALSE | AO98: Silvana | BA98: 9 | BB98: 0 | BC98: 1 | BD98: 1 | BE98: 1 | BF98: 1 | BG98: 1 | BH98: 0
G99: Hospital | P99: Medium Office 5K-50K SQ FT | Q99: Metal Fabrication | AF99: Customer W9 | AG99: FALSE | AO99: Snohomish | BA99: 10 | BB99: 0 | BC99: =IF($AW$19=TRUE,1, IF(AND(BC$80<=$BA99,(BC$80+BC$82)>=($BA99+1)),1+N("Primary"), IF(AND(BB$80>$BA99,(BB$80+BB$82)>=($BA99+1+24)),1+N("Primary"), IF(AND(BC$83<=$BA99,(BC$83+BC$85)>=($BA99+1)),1+N("Secondary"), IF(AND(BB$83>$BA99,(BB$83+BB$85)>=($BA99+1+24)),1+N("Secondary"), IF(AND(BC$86<=$BA99,(BC$86+BC$88)>=($BA99+1)),1+N("Tertiary"), IF(AND(BB$86>$BA99,(BB$86+BB$88)>=($BA99+1+24)),1+N("Tertiary"), IF(AND(ROUNDDOWN(BC$80,0)=$BA99,BC$82>0),1-(BC$80-ROUNDDOWN(BC$80,0))+IF(ROUNDDOWN(BB$81,0)-24=$BA99,(BB$81-ROUNDDOWN(BB$81,0)),0)+N("Primary"), IF(AND(ROUNDDOWN(BC$83,0)=$BA99,BC$85>0),1-(BC$83-ROUNDDOWN(BC$83,0))+IF(ROUNDDOWN(BB$84,0)-24=$BA99,(BB$84-ROUNDDOWN(BB$84,0)),0)+N("Secondary"), IF(AND(ROUNDDOWN(BC$86,0)=$BA99,BC$88>0),1-(BC$86-ROUNDDOWN(BC$86,0))+IF(ROUNDDOWN(BB$87,0)-24=$BA99,(BB$87-ROUNDDOWN(BB$87,0)),0)+N("Tertiary"), IF(AND(ROUNDDOWN(BC$81,0)=$BA99,BC$82>0),(BC$81-ROUNDDOWN(BC$81,0))+N("Primary"), IF(AND(ROUNDDOWN(BC$84,0)=$BA99,BC$85>0),(BC$84-ROUNDDOWN(BC$84,0))+N("Secondary"), IF(AND(ROUNDDOWN(BC$87,0)=$BA99,BC$88>0),(BC$87-ROUNDDOWN(BC$87,0))+N("Tertiary"), 0))))))))))))) -> 1 | BD99: 1 | BE99: 1 | BF99: 1 | BG99: 1 | BH99: 0
G100: Hotel / Motel | P100: Small Office <5K SQ FT | Q100: Misc Manufacturing | AF100: Contractor W9 | AG100: FALSE | AO100: Stanwood | BA100: 11 | BB100: 0 | BC100: 1 | BD100: 1 | BE100: 1 | BF100: 1 | BG100: 1 | BH100: 0
G101: Industrial & Manufacturing | P101: Extra Large Retail >100K SQ FT | Q101: Foundries | AO101: Sultan | BA101: 12 | BB101: 0 | BC101: 1 | BD101: 1 | BE101: 1 | BF101: 1 | BG101: 1 | BH101: 0
G102: Library | P102: Large Retail >50K - 100K SQ FT | Q102: Indoor Agriculture | AO102: Woodinville | BA102: 13 | BB102: 0 | BC102: 1 | BD102: 1 | BE102: 1 | BF102: 1 | BG102: 1 | BH102: 0
G103: Local Government | P103: Medium Retail 5K - 50K SQ FT | Q103: Refinery | AO103: Woodway | BA103: 14 | BB103: 0 | BC103: 1 | BD103: 1 | BE103: 1 | BF103: 1 | BG103: 1 | BH103: 0
G104: Medical & Dental | P104: Small Retail <5K | Q104: Water and Wastewater | BA104: 15 | BB104: 0 | BC104: 1 | BD104: 1 | BE104: 1 | BF104: 1 | BG104: 1 | BH104: 0
G105: Non-profit | P105: K-12 | Q105: Data Center | BA105: 16 | BB105: 0 | BC105: 1 | BD105: 1 | BE105: 1 | BF105: 1 | BG105: 1 | BH105: 0
G106: Nursing & Retirement Homes | P106: University | Q106: Data Closet | BA106: 17 | BB106: 0 | BC106: 1 | BD106: 1 | BE106: 1 | BF106: 1 | BG106: 1 | BH106: 0
G107: Office Building | P107: Warehouse | Q107: Cold Storage | BA107: 18 | BB107: 0 | BC107: 0 | BD107: 0 | BE107: 0 | BF107: 0 | BG107: 0 | BH107: 0
G108: Other - Commercial | P108: Supermarket => 5K SQ FT | Q108: Chemical | BA108: 19 | BB108: 0 | BC108: 0 | BD108: 0 | BE108: 0 | BF108: 0 | BG108: 0 | BH108: 0
G109: Other - Industrial | P109: MiniMart < 5K SQ FT | Q109: Wood - Lumber | BA109: 20 | BB109: 0 | BC109: =IF($AW$19=TRUE,1, IF(AND(BC$80<=$BA109,(BC$80+BC$82)>=($BA109+1)),1+N("Primary"), IF(AND(BB$80>$BA109,(BB$80+BB$82)>=($BA109+1+24)),1+N("Primary"), IF(AND(BC$83<=$BA109,(BC$83+BC$85)>=($BA109+1)),1+N("Secondary"), IF(AND(BB$83>$BA109,(BB$83+BB$85)>=($BA109+1+24)),1+N("Secondary"), IF(AND(BC$86<=$BA109,(BC$86+BC$88)>=($BA109+1)),1+N("Tertiary"), IF(AND(BB$86>$BA109,(BB$86+BB$88)>=($BA109+1+24)),1+N("Tertiary"), IF(AND(ROUNDDOWN(BC$80,0)=$BA109,BC$82>0),1-(BC$80-ROUNDDOWN(BC$80,0))+IF(ROUNDDOWN(BB$81,0)-24=$BA109,(BB$81-ROUNDDOWN(BB$81,0)),0)+N("Primary"), IF(AND(ROUNDDOWN(BC$83,0)=$BA109,BC$85>0),1-(BC$83-ROUNDDOWN(BC$83,0))+IF(ROUNDDOWN(BB$84,0)-24=$BA109,(BB$84-ROUNDDOWN(BB$84,0)),0)+N("Secondary"), IF(AND(ROUNDDOWN(BC$86,0)=$BA109,BC$88>0),1-(BC$86-ROUNDDOWN(BC$86,0))+IF(ROUNDDOWN(BB$87,0)-24=$BA109,(BB$87-ROUNDDOWN(BB$87,0)),0)+N("Tertiary"), IF(AND(ROUNDDOWN(BC$81,0)=$BA109,BC$82>0),(BC$81-ROUNDDOWN(BC$81,0))+N("Primary"), IF(AND(ROUNDDOWN(BC$84,0)=$BA109,BC$85>0),(BC$84-ROUNDDOWN(BC$84,0))+N("Secondary"), IF(AND(ROUNDDOWN(BC$87,0)=$BA109,BC$88>0),(BC$87-ROUNDDOWN(BC$87,0))+N("Tertiary"), 0))))))))))))) -> 0 | BD109: 0 | BE109: 0 | BF109: 0 | BG109: 0 | BH109: 0
G110: Parking Garage | P110: Restaurant | Q110: Wood - Panel | BA110: 21 | BB110: 0 | BC110: 0 | BD110: 0 | BE110: 0 | BF110: 0 | BG110: 0 | BH110: 0
G111: Recreational | P111: Multifamily | Q111: Wood - Other | BA111: 22 | BB111: 0 | BC111: 0 | BD111: 0 | BE111: 0 | BF111: 0 | BG111: 0 | BH111: 0
G112: Research Lab | P112: Lodging | Q112: Paper | BA112: 23 | BB112: 0 | BC112: 0 | BD112: 0 | BE112: 0 | BF112: 0 | BG112: 0 | BH112: 0
G113: Restaurant & Tavern | P113: Hospital | Q113: Other
G114: Retail Trade & Services | P114: Outpatient Care
G115: School | P115: Residential Care
G116: Senior Center | P116: Assembly
G117: Storage | P117: Other
G118: Transportation
G119: Warehouse
G120: Water / Wastewater
G121: Wholesale & Retail Food
G122: Other

Sheet Tracking Sheet (hidden)
C2: 1 | D2: 2 | E2: 3 | F2: 4 | G2: 5 | H2: 6 | I2: 7 | J2: 8 | K2: 9 | L2: 10 | M2: 11 | N2: 12 | O2: 13 | P2: 14 | Q2: 15 | R2: 16 | S2: 17 | T2: 18 | U2: 19 | V2: 20 | W2: 21 | X2: 22 | Y2: 23 | Z2: 24 | AA2: 25 | AB2: 26 | AC2: 27 | AD2: 28 | AE2: 29 | AF2: 30 | AG2: 31 | AH2: 32 | AI2: 33 | AJ2: 34 | AK2: 35 | AL2: 36 | AM2: 37 | AN2: 38 | AO2: 39 | AP2: 40 | AQ2: 41 | AR2: 42
C3: =BannerText -> Energy Services ● eebiz@snopud.com ● www.snopud.com
M4: Energy Efficiency Project Tracking Sheet
C5: CUSTOMER INFO | X5: CONTRACTOR INFO
C7: Business Name (from W-9): | Q7: Mng'd Acct? | T7: Vendor # | X7: Business Name (from W-9): | AO7: Vendor #
C8: =App_CustName -> 0 | Q8: 2 | X8: =IF(SelfInstall,"Self-Install",TAcompany) -> 0 | AV8: 0
C9: Primary Contact | L9: Phone | Q9: Email | X9: Primary Contact | AG9: Phone | AL9: Email
C10: =App_CustPriName -> 0 | L10: =App_CustPriPhone -> 0 | Q10: =App_CustPriEmail -> 0 | X10: =IF(SelfInstall,"",TAcontact) -> 0 | AG10: =IF(SelfInstall,"",TAphone) -> 0 | AL10: =IF(SelfInstall,"",TAemail) -> 0
C11: Secondary Contact | L11: Phone | Q11: Email | X11: Secondary Contact | AG11: Phone | AL11: Email
C13: Mailing Address | O13: City | S13: State | U13: Zip | X13: Mailing Address | AJ13: City | AN13: State | AP13: Zip
C14: =IF(App_SameAddressFlag,App_FacAdd,App_CustAdd) -> 0 | O14: =IF(App_SameAddressFlag,App_FacCity,App_CustCity) -> 0 | S14: =IF(App_SameAddressFlag,"WA",App_CustState) -> 0 | U14: =IF(App_SameAddressFlag,App_FacZip,App_CustZip) -> 0 | X14: =IF(SelfInstall,"",TAaddress) -> 0 | AJ14: =IF(SelfInstall,"",TAcity) -> 0 | AN14: =IF(SelfInstall,"",TAstate) -> 0 | AP14: =IF(SelfInstall,"",TAzip) -> 0
C16: =IF(App_FacName="","Facility Info",App_FacName) -> Facility Info
C18: Facility Address: | Q18: Commercial/Industrial? | W18: Premise Type | AC18: Multi-Tenant | AF18: Sq Footage | AI18: Cooling | AL18: Heating Type | AO18: Total Facility kWh
C19: =IF(App_FacAdd="","",App_FacAdd&" "&App_FacCity&", WA "&FacZip) ->  | Q19: =IF(App_PremCategory="","[Select Facility Type]",IF(App_PremCategory=1,"Commercial","Industrial")) -> Commercial | W19: =App_PremType -> [Select Premise Type] | AC19: =App_MultiTen -> 0 | AF19: =App_SqFt -> 0 | AI19: =App_AC -> 0 | AL19: =App_HeatSource -> 0 | AO19: =SUM(S21:U24) -> 0
C20: Account # | G20: Meter # | K20: Premise | O20: Installation | S20: Annual kWh | V20: Peak KW | X20: Notes
C25: Project Info
C28: Program Name | I28: Project Name | R28: =40-LEN(I29)&" Characters Remaining" -> 40 Characters Remaining | S28: Assigned Staff | X28: Assigned Date | AA28: Commit. Date | AD28: Exp. Pay Date | AG28: Active Promo Code | AM28: Promo Exp. | AP28: SharePoint ID
C29: Lighting Efficiency
C30: Authorization
C31: Authorization Approved By | F31: Authorization Date | I31: Authorization Expiration | L31: Project Expiration | O31: Project Cost | R31: Base Incentive | U31: Bonus Incentive | X31: Admin Incentive | AA31: Total Incentive | AD31: Cust. kWh/yr Savings | AG31: Incen. kWh/yr Savings | AJ31: Non-Incen. Savings | AM31: kW Reduction | AP31: Peak kW Reduction
O32: =TotalCost -> 0 | R32: =BaseIncentive -> 0 | U32: =_xlfn.SINGLE(BonusIncentive) -> 0 | X32: =IF(BaseIncentive=0,0,ProjDevIncentive) -> 0 | AA32: =IFERROR(SUM(AuthBaseIncentive,AuthBonusIncentive,AuthAdminIncentive),0) -> 0 | AD32: =TotalSavings -> 0 | AG32: =IncentedkWh -> 0 | AJ32: =NonIncentedkWh -> 0 | AM32: =kWReduction -> 0 | AP32: =kWReductionPeak -> 0
C33: Project Completion
C34: Inspection Date | F34: Payment App. Req. Date | I34: Payment Approved By | L34: Payment Approval Date | O34: Project Cost | R34: Base Incentive | U34: Bonus Incentive | X34: Admin Incentive | AA34: Total Incentive | AD34: Cust. kWh/yr Savings | AG34: Incen. kWh/yr Savings | AJ34: Non-Incen. Savings | AM34: kW Reduction | AP34: Peak kW Reduction
C35: =VerificationDate -> 00:00:00 | O35: =IF(VerificationDate="","",TotalCost) ->  | R35: =IF(VerificationDate="","",BaseIncentive) ->  | U35: =IF(VerificationDate="","",BonusIncentive) ->  | X35: =IF(VerificationDate="",0,ProjDevIncentive) -> 0 | AA35: =IFERROR(SUM(FinalBaseIncentive,FinalBonusIncentive,FinalAdminIncentive),0) -> 0 | AD35: =IF(VerificationDate="","",TotalSavings) ->  | AG35: =IF(VerificationDate="","",IncentedkWh) ->  | AJ35: =IF(VerificationDate="","",NonIncentedkWh) ->  | AM35: =IF(VerificationDate="","",kWReduction) ->  | AP35: =IF(VerificationDate="","",kWReductionPeak) -> 
C36: Notes | Q36: Additional Info->: | R36: Active Incentive Rate | U36: Project Cost/kWh | X36: Baseline Adjusted? | AA36: Baseline as % of total kWh | AD36: kWh/yr Reduction % | AG36: Cust. $/yr Savings | AJ36: Incentive As % of Cost | AM36: ="Cust. Net $ ("&CostType&")" -> Cust. Net $ (Material) | AP36: Cancel Date
R37: 2025 | U37: =CostPerKWH ->  | AA37: =ExistingPercentofTotalUse ->  | AD37: =PercentkWhSavings ->  | AG37: =EstAnnualCostSavings -> 0 | AJ37: =IFERROR(IncentiveAmount/TotalCost,"") ->  | AM37: =CustNetCost -> 0
AR38: =Version -> Version April 2025 - Effective Date April 1st, 2025

Sheet Participation Agreement (hidden)
C3: =BannerText -> Energy Services ● eebiz@snopud.com ● www.snopud.com
C5: Participation Agreement | W5: Promo Code: | X5: =PromoInputValue -> 0 | AD5: Important Dates
W6: PUD Staff: | X6: =AssignedStaff -> 0 | AD6: =AuthExpDate -> 00:00:00 | AE6: = Complete/Sign This Form By:
C7: For Energy Efficiency Projects in Commercial & Industrial Facilities | T7: Project Name: | U7: =ProjectName -> 0 | AD7: =ProjExpDate -> 00:00:00 | AE7: = Agreement Expires On:
M9: =IF(AsBuiltFlag="As-Built"," AS-BUILT ","") -> 
C10: Facility & Project Information
C11: Customer's Business Name | M11: Facility Name | R11: Facility Address
C12: =CustW9Name -> 0 | M12: =App_FacName -> 0 | R12: =FacAddressFull -> 
J13: Estimated Annual Energy Savings | Q13: Energy Savings Incentive | T13: Project Development Incentive2
D14: Energy Efficiency Project(s) | M14: Project Cost | O14: Cost Type
D15: Lighting Retrofit Project1 | J15: =IFERROR(TotalSavings,0) -> 0 | M15: =TotalCost -> 0 | O15: =CostType -> Material | Q15: =IF(OR(TotalCost=0,TotalCost=""),0,IncentiveAmount) -> 0 | T15: =ProjDevIncentive -> 50
D17: ="1.) Please see attached Worksheets for Details 2.) "& "The Project Development Incentive is paid to the company primarily responsible for filling out this workbook, assembling the required documents and submitting the complete application packet. The Project Development Incentive shall be paid to: " & IF(AND(NOT(PDItoCust),LEN(ContractorW9Name)>1),ContractorW9Name,CustW9Name) -> 1.) Please see attached Worksheets for Details 2.) The Project Development Incentive is paid to the company primarily responsible for filling out this workbook, assembling the required documents and submitting the complete application packet. The Project Development Incentive shall be paid to: 0
C20: Project Verification
C23: Terms & Conditions
C32: Project Payment (Please select one option below.)
E34: Customer Receives PUD Energy Incentive Payment (Rebates) | AD34: Customer Payment Flag
E35: Customer Assigns PUD Energy Incentive Payment (Rebates) to: | M35: =TAcompany -> 0 | AD35: 1
C41: By signing below, I certify that I have read, understand, and agree to the terms and conditions above.
F44: Authorized Signature | M44: Date | O44: Print Name | T44: Title
AA46: =Version -> Version April 2025 - Effective Date April 1st, 2025
D49: Drop Down List
D50: VerificationType | G50: SheetsToPrint
D51: (Please select Verification Type) | G51: Lighting Input Form | H51: .
D52: Snohomish PUD will verify the scope of this project has been installed as Authorized. On-site progress and/or post installation verification may be required. | G52: Lighting Retrofit Summary | H52: .
D53: Customer certifies the scope of this project has been completed, specified products have been installed, and the invoiced amount matches your records. | G53: Lighting Retrofit Worksheet | H53: .

Sheet Lighting Input Form
C3: =BannerText -> Energy Services ● eebiz@snopud.com ● www.snopud.com
C5: Lighting Input Form | P5: =IFERROR(IF(AND(AsBuiltFlag="AS-BUILT",AuthDate<>""),"AS-BUILT", IF(AND(IncentiveAmount>25000,OR(AuthDate="",AuthDate=0)),"! Large Rebate Alert !","")),"") -> 
X6: PUD Staff: | Y6: =AssignedStaff -> 0
C7: For Energy Efficiency Projects in Commercial & Industrial Facilities. | P7: =IFERROR(IF(P5="! Large Rebate Alert !", IF(MaxRebate>=RebateCap,"Max Rebate "&TEXT(RebateCap,"$0,0"), "Contact PUD to Ensure Funding Availability"),""),"") ->  | X7: Form Completed By: | AF7: Freeze Panes Flag | AH7: PromoCodeValue | AI7: Color Template
X8: Date: | AF8: FALSE | AH8: =IFERROR(VLOOKUP(PromoInputValue,PromoInputTable,1,FALSE ),0) -> 0 | AK8: Range for Peak Tracking
AK9: P
AF10: Copy Line Flag | AH10: Import Flag
C11: =FacilityName -> Facility Info | AA11: =ProjectName -> 0 | AF11: FALSE | AH11: FALSE
C12: =FacAddressFull ->  | O12: Facility Type: | P12: =IF(PremCategory="","",PremCategory&" - "&PremType) -> Commercial - [Select Premise Type] | X12: Facility Sq Ft: | Y12: =IF(App_SqFt="","[Enter Facility Size]",App_SqFt) -> [Enter Facility Size]
D16: Line # | E16: Location (Area/Room) | G16: Heat Source | H16: Hours/ Year | I16: Existing/ Proposed | J16: Fixture ID | K16: # of Fixtures | L16: Lighting Technology | O16: Fixture Type | P16: # of Lamps / Fixture | Q16: Lamp Wattage | R16: Ballast Type | S16: Watts / Fixture | T16: Existing: Notes / Other Proposed: Mfg / Model # | W16: Qualified (Yes/No) | X16: Control Type ---------- # of Sensors | Y16: Rebate / (Fixt.) or (Lamp) | Z16: Maximum Rebate Amount | AE16: Fixture Type Code | AF16: Error Code | AG16: As-Built | AH16: Validation Lookup | AI16: Promo Active? | AJ16: Base Rebate ($) | AK16: Bonus ($)
D17: 1 | I17: Exist: | S17: =IFERROR(IF(ISNUMBER(MATCH($L17,InputNoLampVal,0)),$P17*VLOOKUP($AE17,InputWattageCode,2,FALSE),IF(OR($L17="LED Lamp",$L17="Existing TLED",$L17="TLED (Type A)",$L17="TLED (Type B/C)"),$P17*$Q17,IF(OR($L17="Exit Sign",$L17="Exit Sign (LED)"),VLOOKUP($AE17,InputWattageCode,2,FALSE),VLOOKUP($AE17,InputWattageCode,$P17+1,FALSE)))),"") ->  | Y17: =IFERROR(IF(HLOOKUP("Rebate / (Fixt.) or (Lamp)",RebateDataTable,MATCH($D17,RebateDataLineNumbers,0)+1,FALSE)="","",HLOOKUP("Rebate / (Fixt.) or (Lamp)",RebateDataTable,MATCH($D17,RebateDataLineNumbers,0)+1,FALSE)&" ")&HLOOKUP("Control Rebate / (Fixt) or (Sen)",RebateDataTable,MATCH($D17,RebateDataLineNumbers,0)+1,FALSE),"") ->  | Z17: =IFERROR( IF(AND(AF17="",AJ17=""),"", IF(AND(AF17="",OR(AI17="",AK17=0)),$AJ17, IF(AF17="",IF(LEN($AJ17)>1,TEXT($AJ17,"$0,0"),TEXT($AJ17,"$0"))& IF($AK17>=10000," + ",IF($AK17>1000," + ("," +("))&IF($AK17>10,TEXT($AK17,"$0,0"),IF($AK17<1,TEXT($AK17,"$0.00"),TEXT($AK17,"$0")))&IF($AK17>=10000,"",")"), VLOOKUP($AF17,ErrorCheckingTable,2,FALSE )))),"") -> 0 | AE17: =IFERROR(CONCATENATE(VLOOKUP($L17,ExistingTypeLookup,2,0),"(",$Q17,")",$R17),"") ->  | AF17: =HLOOKUP("Error Code",RebateDataTable,MATCH($D17,RebateDataLineNumbers,0)+1,FALSE) ->  | AH17: =IFERROR(IF(ISNUMBER(FIND("T12",L17)),"ProposedTypeTechnologyLinT12", IF(VLOOKUP(L17,ExistingTypeLookup,4,FALSE)="N","ProposedTypeTechnologyNonLin", IF(VLOOKUP(L17,ExistingTypeLookup,4,FALSE)="L","ProposedTypeTechnologyLin", IF(VLOOKUP(L17,ExistingTypeLookup,4,FALSE)="E","ProposedTypeTechnologyExit", "ProposedTypeTechnologyGen")))), "ProposedTypeTechnologyGen") -> ProposedTypeTechnologyGen | AJ17: =IF(Y17=" ","",HLOOKUP("Base Rebate Amount",RebateDataTable,MATCH($D17,RebateDataLineNumbers,0)+1,FALSE)) -> 0 | AK17: =IFERROR( HLOOKUP("Lighting $Bonus",RebateDataTable,MATCH($D17,RebateDataLineNumbers,0)+1,FALSE) +HLOOKUP("Controls $Bonus",RebateDataTable,MATCH($D17,RebateDataLineNumbers,0)+1,FALSE),"") -> 0
I18: Prop: | S18: =IFERROR(IF(ISNUMBER(MATCH($L18,InputNoLampVal,0)),$P18*VLOOKUP($AE18,InputWattageCode,2,FALSE),IF(OR($L18="LED Lamp",$L18="Existing TLED",$L18="TLED (Type A)",$L18="TLED (Type B/C)"),$P18*$Q18,IF(OR($L18="Exit Sign",$L18="Exit Sign (LED)"),VLOOKUP($AE18,InputWattageCode,2,FALSE),VLOOKUP($AE18,InputWattageCode,$P18+1,FALSE)))),"") ->  | AB18: =IF(AJ17= "",0,IF($H17>6000,"P",IF(AND($H17>=(HoursOfOperation-200),PeakHours>0),"P",IF(AND($G17="Exterior",$H17>4200),"P",0)))) -> 0 | AE18: =IFERROR(CONCATENATE(VLOOKUP($L18,ProposedTypeLookup,2,0),"(",$Q18,")",$R18),"") -> 
D19: =$D17+1 -> 2 | I19: Exist: | S19: =IFERROR(IF(ISNUMBER(MATCH($L19,InputNoLampVal,0)),$P19*VLOOKUP($AE19,InputWattageCode,2,FALSE),IF(OR($L19="LED Lamp",$L19="Existing TLED",$L19="TLED (Type A)",$L19="TLED (Type B/C)"),$P19*$Q19,IF(OR($L19="Exit Sign",$L19="Exit Sign (LED)"),VLOOKUP($AE19,InputWattageCode,2,FALSE),VLOOKUP($AE19,InputWattageCode,$P19+1,FALSE)))),"") ->  | Y19: =IFERROR(IF(HLOOKUP("Rebate / (Fixt.) or (Lamp)",RebateDataTable,MATCH($D19,RebateDataLineNumbers,0)+1,FALSE)="","",HLOOKUP("Rebate / (Fixt.) or (Lamp)",RebateDataTable,MATCH($D19,RebateDataLineNumbers,0)+1,FALSE)&" ")&HLOOKUP("Control Rebate / (Fixt) or (Sen)",RebateDataTable,MATCH($D19,RebateDataLineNumbers,0)+1,FALSE),"") ->  | Z19: =IFERROR( IF(AND(AF19="",AJ19=""),"", IF(AND(AF19="",OR(AI19="",AK19=0)),$AJ19, IF(AF19="",IF(LEN($AJ19)>1,TEXT($AJ19,"$0,0"),TEXT($AJ19,"$0"))& IF($AK19>=10000," + ",IF($AK19>1000," + ("," +("))&IF($AK19>10,TEXT($AK19,"$0,0"),IF($AK19<1,TEXT($AK19,"$0.00"),TEXT($AK19,"$0")))&IF($AK19>=10000,"",")"), VLOOKUP($AF19,ErrorCheckingTable,2,FALSE )))),"") -> 0 | AE19: =IFERROR(CONCATENATE(VLOOKUP($L19,ExistingTypeLookup,2,0),"(",$Q19,")",$R19),"") ->  | AF19: =HLOOKUP("Error Code",RebateDataTable,MATCH($D19,RebateDataLineNumbers,0)+1,FALSE) ->  | AH19: =IFERROR(IF(ISNUMBER(FIND("T12",L19)),"ProposedTypeTechnologyLinT12", IF(VLOOKUP(L19,ExistingTypeLookup,4,FALSE)="N","ProposedTypeTechnologyNonLin", IF(VLOOKUP(L19,ExistingTypeLookup,4,FALSE)="L","ProposedTypeTechnologyLin", IF(VLOOKUP(L19,ExistingTypeLookup,4,FALSE)="E","ProposedTypeTechnologyExit", "ProposedTypeTechnologyGen")))), "ProposedTypeTechnologyGen") -> ProposedTypeTechnologyGen | AJ19: =IF(Y19=" ","",HLOOKUP("Base Rebate Amount",RebateDataTable,MATCH($D19,RebateDataLineNumbers,0)+1,FALSE)) -> 0 | AK19: =IFERROR( HLOOKUP("Lighting $Bonus",RebateDataTable,MATCH($D19,RebateDataLineNumbers,0)+1,FALSE) +HLOOKUP("Controls $Bonus",RebateDataTable,MATCH($D19,RebateDataLineNumbers,0)+1,FALSE),"") -> 0
I20: Prop: | S20: =IFERROR(IF(ISNUMBER(MATCH($L20,InputNoLampVal,0)),$P20*VLOOKUP($AE20,InputWattageCode,2,FALSE),IF(OR($L20="LED Lamp",$L20="Existing TLED",$L20="TLED (Type A)",$L20="TLED (Type B/C)"),$P20*$Q20,IF(OR($L20="Exit Sign",$L20="Exit Sign (LED)"),VLOOKUP($AE20,InputWattageCode,2,FALSE),VLOOKUP($AE20,InputWattageCode,$P20+1,FALSE)))),"") ->  | AB20: =IF(AJ19= "",0,IF($H19>6000,"P",IF(AND($H19>=(HoursOfOperation-200),PeakHours>0),"P",IF(AND($G19="Exterior",$H19>4200),"P",0)))) -> 0 | AE20: =IFERROR(CONCATENATE(VLOOKUP($L20,ProposedTypeLookup,2,0),"(",$Q20,")",$R20),"") -> 
D21: 3 | I21: Exist: | S21: =IFERROR(IF(ISNUMBER(MATCH($L21,InputNoLampVal,0)),$P21*VLOOKUP($AE21,InputWattageCode,2,FALSE),IF(OR($L21="LED Lamp",$L21="TLED (Type A)",$L21="TLED (Type B/C)"),$P21*$Q21,IF(OR($L21="Exit Sign",$L21="Exit Sign (LED)"),VLOOKUP($AE21,InputWattageCode,2,FALSE),VLOOKUP($AE21,InputWattageCode,$P21+1,FALSE)))),"") ->  | Y21: =IFERROR(IF(HLOOKUP("Rebate / (Fixt.) or (Lamp)",RebateDataTable,MATCH($D21,RebateDataLineNumbers,0)+1,FALSE)="","",HLOOKUP("Rebate / (Fixt.) or (Lamp)",RebateDataTable,MATCH($D21,RebateDataLineNumbers,0)+1,FALSE)&" ")&HLOOKUP("Control Rebate / (Fixt) or (Sen)",RebateDataTable,MATCH($D21,RebateDataLineNumbers,0)+1,FALSE),"") ->  | Z21: =IFERROR( IF(AND(AF21="",AJ21=""),"", IF(AND(AF21="",OR(AI21="",AK21=0)),$AJ21, IF(AF21="",IF(LEN($AJ21)>1,TEXT($AJ21,"$0,0"),TEXT($AJ21,"$0"))& IF($AK21>=10000," + ",IF($AK21>1000," + ("," +("))&IF($AK21>10,TEXT($AK21,"$0,0"),IF($AK21<1,TEXT($AK21,"$0.00"),TEXT($AK21,"$0")))&IF($AK21>=10000,"",")"), VLOOKUP($AF21,ErrorCheckingTable,2,FALSE )))),"") -> 0 | AE21: =IFERROR(CONCATENATE(VLOOKUP($L21,ExistingTypeLookup,2,0),"(",$Q21,")",$R21),"") ->  | AF21: =HLOOKUP("Error Code",RebateDataTable,MATCH($D21,RebateDataLineNumbers,0)+1,FALSE) ->  | AH21: =IFERROR(IF(ISNUMBER(FIND("T12",L21)),"ProposedTypeTechnologyLinT12", IF(VLOOKUP(L21,ExistingTypeLookup,4,FALSE)="N","ProposedTypeTechnologyNonLin", IF(VLOOKUP(L21,ExistingTypeLookup,4,FALSE)="L","ProposedTypeTechnologyLin", IF(VLOOKUP(L21,ExistingTypeLookup,4,FALSE)="E","ProposedTypeTechnologyExit", "ProposedTypeTechnologyGen")))), "ProposedTypeTechnologyGen") -> ProposedTypeTechnologyGen | AJ21: =IF(Y21=" ","",HLOOKUP("Base Rebate Amount",RebateDataTable,MATCH($D21,RebateDataLineNumbers,0)+1,FALSE)) -> 0 | AK21: =IFERROR( HLOOKUP("Lighting $Bonus",RebateDataTable,MATCH($D21,RebateDataLineNumbers,0)+1,FALSE) +HLOOKUP("Controls $Bonus",RebateDataTable,MATCH($D21,RebateDataLineNumbers,0)+1,FALSE),"") -> 0
I22: Prop: | AB22: =IF(AJ21= "",0,IF($H21>6000,"P",IF(AND($H21>=(HoursOfOperation-200),PeakHours>0),"P",IF(AND($G21="Exterior",$H21>4200),"P",0)))) -> 0 | AE22: =IFERROR(CONCATENATE(VLOOKUP($L22,ProposedTypeLookup,2,0),"(",$Q22,")",$R22),"") -> 
D23: 4 | I23: Exist: | Y23: =IFERROR(IF(HLOOKUP("Rebate / (Fixt.) or (Lamp)",RebateDataTable,MATCH($D23,RebateDataLineNumbers,0)+1,FALSE)="","",HLOOKUP("Rebate / (Fixt.) or (Lamp)",RebateDataTable,MATCH($D23,RebateDataLineNumbers,0)+1,FALSE)&" ")&HLOOKUP("Control Rebate / (Fixt) or (Sen)",RebateDataTable,MATCH($D23,RebateDataLineNumbers,0)+1,FALSE),"") ->  | Z23: =IFERROR( IF(AND(AF23="",AJ23=""),"", IF(AND(AF23="",OR(AI23="",AK23=0)),$AJ23, IF(AF23="",IF(LEN($AJ23)>1,TEXT($AJ23,"$0,0"),TEXT($AJ23,"$0"))& IF($AK23>=10000," + ",IF($AK23>1000," + ("," +("))&IF($AK23>10,TEXT($AK23,"$0,0"),IF($AK23<1,TEXT($AK23,"$0.00"),TEXT($AK23,"$0")))&IF($AK23>=10000,"",")"), VLOOKUP($AF23,ErrorCheckingTable,2,FALSE )))),"") -> 0 | AE23: =IFERROR(CONCATENATE(VLOOKUP($L23,ExistingTypeLookup,2,0),"(",$Q23,")",$R23),"") ->  | AF23: =HLOOKUP("Error Code",RebateDataTable,MATCH($D23,RebateDataLineNumbers,0)+1,FALSE) ->  | AH23: =IFERROR(IF(ISNUMBER(FIND("T12",L23)),"ProposedTypeTechnologyLinT12", IF(VLOOKUP(L23,ExistingTypeLookup,4,FALSE)="N","ProposedTypeTechnologyNonLin", IF(VLOOKUP(L23,ExistingTypeLookup,4,FALSE)="L","ProposedTypeTechnologyLin", IF(VLOOKUP(L23,ExistingTypeLookup,4,FALSE)="E","ProposedTypeTechnologyExit", "ProposedTypeTechnologyGen")))), "ProposedTypeTechnologyGen") -> ProposedTypeTechnologyGen | AJ23: =IF(Y23=" ","",HLOOKUP("Base Rebate Amount",RebateDataTable,MATCH($D23,RebateDataLineNumbers,0)+1,FALSE)) -> 0 | AK23: =IFERROR( HLOOKUP("Lighting $Bonus",RebateDataTable,MATCH($D23,RebateDataLineNumbers,0)+1,FALSE) +HLOOKUP("Controls $Bonus",RebateDataTable,MATCH($D23,RebateDataLineNumbers,0)+1,FALSE),"") -> 0
I24: Prop: | AB24: =IF(AJ23= "",0,IF($H23>6000,"P",IF(AND($H23>=(HoursOfOperation-200),PeakHours>0),"P",IF(AND($G23="Exterior",$H23>4200),"P",0)))) -> 0 | AE24: =IFERROR(CONCATENATE(VLOOKUP($L24,ProposedTypeLookup,2,0),"(",$Q24,")",$R24),"") -> 
D25: 5 | I25: Exist: | Y25: =IFERROR(IF(HLOOKUP("Rebate / (Fixt.) or (Lamp)",RebateDataTable,MATCH($D25,RebateDataLineNumbers,0)+1,FALSE)="","",HLOOKUP("Rebate / (Fixt.) or (Lamp)",RebateDataTable,MATCH($D25,RebateDataLineNumbers,0)+1,FALSE)&" ")&HLOOKUP("Control Rebate / (Fixt) or (Sen)",RebateDataTable,MATCH($D25,RebateDataLineNumbers,0)+1,FALSE),"") ->  | Z25: =IFERROR( IF(AND(AF25="",AJ25=""),"", IF(AND(AF25="",OR(AI25="",AK25=0)),$AJ25, IF(AF25="",IF(LEN($AJ25)>1,TEXT($AJ25,"$0,0"),TEXT($AJ25,"$0"))& IF($AK25>=10000," + ",IF($AK25>1000," + ("," +("))&IF($AK25>10,TEXT($AK25,"$0,0"),IF($AK25<1,TEXT($AK25,"$0.00"),TEXT($AK25,"$0")))&IF($AK25>=10000,"",")"), VLOOKUP($AF25,ErrorCheckingTable,2,FALSE )))),"") -> 0 | AE25: =IFERROR(CONCATENATE(VLOOKUP($L25,ExistingTypeLookup,2,0),"(",$Q25,")",$R25),"") ->  | AF25: =HLOOKUP("Error Code",RebateDataTable,MATCH($D25,RebateDataLineNumbers,0)+1,FALSE) ->  | AH25: =IFERROR(IF(ISNUMBER(FIND("T12",L25)),"ProposedTypeTechnologyLinT12", IF(VLOOKUP(L25,ExistingTypeLookup,4,FALSE)="N","ProposedTypeTechnologyNonLin", IF(VLOOKUP(L25,ExistingTypeLookup,4,FALSE)="L","ProposedTypeTechnologyLin", IF(VLOOKUP(L25,ExistingTypeLookup,4,FALSE)="E","ProposedTypeTechnologyExit", "ProposedTypeTechnologyGen")))), "ProposedTypeTechnologyGen") -> ProposedTypeTechnologyGen | AJ25: =IF(Y25=" ","",HLOOKUP("Base Rebate Amount",RebateDataTable,MATCH($D25,RebateDataLineNumbers,0)+1,FALSE)) -> 0 | AK25: =IFERROR( HLOOKUP("Lighting $Bonus",RebateDataTable,MATCH($D25,RebateDataLineNumbers,0)+1,FALSE) +HLOOKUP("Controls $Bonus",RebateDataTable,MATCH($D25,RebateDataLineNumbers,0)+1,FALSE),"") -> 0
I26: Prop: | AB26: =IF(AJ25= "",0,IF($H25>6000,"P",IF(AND($H25>=(HoursOfOperation-200),PeakHours>0),"P",IF(AND($G25="Exterior",$H25>4200),"P",0)))) -> 0 | AE26: =IFERROR(CONCATENATE(VLOOKUP($L26,ProposedTypeLookup,2,0),"(",$Q26,")",$R26),"") -> 
Y27: =IF(MaxRebate>=RebateCap,"Sub Total Rebate (Max):","Sub Total Rebate:") -> Sub Total Rebate: | Z27: =MIN(BaseRebateLighting+BaseRebateControls+BaseRebateRemoval) -> 0
Y28: Promotional Bonus: | Z28: =IF(PromoCodeValid="Valid",BonusRebateLighting+BonusRebateControls,"") -> 
T29: Existing Energy Use as a % of Facility Total Electrical Use: | U29: =IFERROR( IF(ExistingUse=0,"", IF(SUM(FacilityTotalKWH)>0, IF(ROUND(ExistingUse/FacilityTotalKWH,2)<0.01,"< 1%", ROUND(ExistingUse/FacilityTotalKWH,2)), IF(SUM(App_EstkWh)>0, IF(ROUND(ExistingUse/App_EstkWh,2)<0.01,"<1%", ROUND(ExistingUse/App_EstkWh,2)), ""))),"") ->  | Y29: =IF(MaxRebate>=RebateCap,"Total Rebate (100% Cost):","Total Rebate:") -> Total Rebate: | Z29: =IF(AND(SUM(BaseIncentiveCols)>0,TotalCost=0),"Cost?",MIN(MaxRebate,RebateCap)) -> 0
C32: Cost Information: | AF32: Material AsBuilt Flag
D33: Fixture Material Cost | H33: Labor Cost | K33: Misc. Cost (permit, etc.) | O33: Subtotal | Q33: Tax Rate | S33: =IF(OR($H$34="",$H$34=0),"Total Material Cost","Total Installed Cost") -> Total Material Cost | V33: Total Bid Cost (incl. sales tax) | AF33: Labor AsBuilt Flag
O34: =IF(AND(LIF_TotCost="",LIF_MatCost<>""),SUM(LIF_MatCost,LIF_LabCost,LIF_MisCost),"-") -> - | S34: =IFERROR(IF(LIF_TotCost="",LIF_Subtotal*(1+IF(LIF_TaxRate="Tax Exempt",0,LIF_TaxRate)),"-"),"") ->  | U34: OR | AF34: Misc AsBuilt Flag
AF35: Tax Rate
AF36: Total AsBuilt Flag
C37: Notes:
AG38: As Built?
AB39: =Version -> Version April 2025 - Effective Date April 1st, 2025 | AG39: =IF(COUNTIF(AsBuiltInputTable,"=AS-BUILT")+COUNTIF(AsBuiltCostTable,"=AS-BUILT")>0,"AS-BUILT","") -> 

Sheet Lighting Retrofit Summary
C3: =BannerText -> Energy Services ● eebiz@snopud.com ● www.snopud.com
C5: Lighting Retrofit Summary | S5: Promo Code: | T5: =PromoInputValue -> 0
L6: =AsBuiltFlag ->  | S6: PUD Staff: | T6: =AssignedStaff -> 0
C7: For Energy Efficiency Projects in Commercial & Industrial Facilities. | S7: Form Completed By: | T7: =LIF_CompletedBy -> 0
S8: Date: | T8: =LIF_Date -> 00:00:00
C11: =FacilityName -> Facility Info | V11: =ProjectName -> 0
C12: =FacAddressFull -> 
AA14: Pivot Filter | AB14: ShowDetails
D15: Estimated Electrical Energy Use & Proposed Savings | L15: Project Retrofit Summary Table | AA15: Rebate Type Description | AB15: TRUE
D16: Existing Energy Use: | I16: =ExistingUse -> 0 | M16: (E)# of Fixts | N16: (E)# of Lamps | O16: (P)# of Fixts | P16: (P)# of Lamps | Q16: kW Reduction | R16: Lighting kWh/Yr. Savings | S16: Controls kWh/Yr. Savings | T16: Lighting Rebate Amount | U16: Controls Rebate Amount | Y16: X
E17: Lighting Retrofit Savings: | I17: =KWhSavingsLighting -> 0 | L17: Total | M17: --- | N17: --- | O17: --- | P17: --- | Q17: --- | R17: --- | S17: --- | T17: --- | U17: --- | Y17: X
E18: Lighting Controls Savings: | I18: =IF(KWhSavingsControls=0,"---",KWhSavingsControls) -> --- | Y18: X
E19: Total Electrical Energy Savings: | I19: =SUM(KWhSavingsLighting,KWhSavingsControls) -> 0 | Y19: X
D20: Proposed Energy Use: | I20: =ProposedUse -> 0 | Y20: X
D21: % Savings: | I21: =IFERROR(TotalSavings/ExistingUse,"") ->  | Y21: X
D22: Electrical Demand / Load Reduction: | I22: =kWReduction -> 0 | Y22: X
Y23: X
D24: Project Cost & Rebate | Y24: X
D25: =IF('Lighting Input Form'!$V$34<>"","Total Bid Cost:",IF(OR('Lighting Input Form'!$H$34="",'Lighting Input Form'!$H$34=0),"Total Material Cost:","Total Installed Cost:")) -> Total Material Cost: | I25: =SUM(IF(LIF_TotCost<>"",LIF_TotCost,LIF_TotCostDetailed),N("Use Sum to force NUMBER data type")) -> 0 | Y25: X
D26: Cost Type: | I26: =IF(OR(LIF_LabCost<>"",LIF_TotCost<>""),"Total","Material") -> Material | Y26: X
D27: =IF('Lighting Input Form'!$V$34<>"","Bid Cost Averaged per Fixture:",IF(OR('Lighting Input Form'!$H$34="",'Lighting Input Form'!$H$34=0),"Average Material Cost per Fixture:","Average Installed Cost per Fixture:")) -> Average Material Cost per Fixture: | I27: =IFERROR(TotalCost/NumFixtsProposed,"---") -> --- | Y27: X
D28: Lighting Retrofit Rebate Amount: | I28: =IFERROR(SUM(BaseRebateLighting,BaseRebateRemoval),"") -> 0 | Y28: X
E29: Lighting Promotional Bonus: | I29: =IFERROR(IF(BonusRebateLighting=0,"---",BonusRebateLighting),"---") -> ---
D30: Lighting Controls Rebate Amount: | I30: =IFERROR(IF(BaseRebateControls=0,"---",BaseRebateControls),"---") -> --- | Y30: X
E31: Controls Promotional Bonus: | I31: =IFERROR(IF(BonusRebateControls=0,"---",BonusRebateControls),"---") -> ---
D32: Project Rebate Amount: | I32: =MIN(MaxRebate,TotalCost,RebateCap) -> 0 | Y32: X
D33: Project Development Incentive: | I33: =IF(TotalCost<>"",ProjDevIncentive,"---") -> 50
D34: =IF('Lighting Input Form'!$V$34<>"","Rebate as a % of Total Bid Cost:",IF(OR('Lighting Input Form'!$H$34="",'Lighting Input Form'!$H$34=0),"Rebate as a % of Total Material Cost:","Rebate as a % of Total Installed Cost:")) -> Rebate as a % of Total Material Cost: | I34: =IFERROR(IncentiveAmount/TotalCost,"---") -> --- | Y34: X
D35: Average Rebate Amount per Fixture: | I35: =IFERROR(IncentiveAmount/NumFixtsProposed,"") ->  | Y35: X
D36: Rebate Amount per kWh | I36: =IFERROR(IncentiveAmount/TotalSavings,"") ->  | Y36: X
Y37: X
D38: Customer's Project Economic Analysis | Y38: X
G39: Cost per kWh (Elec. Demand): | H39: 0.0885 | I39: =IF(MAX(TrackingPeakkW)>100,5.95,0.00001) -> 1e-05 | Y39: X
D40: Est. Annual Electrical Cost Savings: | I40: =SUM((TotalSavings*kWhRate),(kWReduction*kWRate*12)) -> 0 | Y40: X
D41: Customer's Net Cost: | I41: =IFERROR(TotalCost-IncentiveAmount,"") -> 0 | Y41: X
D42: Simple Payback (w/o Rebate): | I42: =IFERROR( IF(TotalCost/EstAnnualCostSavings>20,"20+ Years", TotalCost/EstAnnualCostSavings),"") ->  | Y42: X
D43: Return on Investment (ROI) (w/o Rebate): | I43: =IFERROR(1/ProjSimplePaybackNoRebate,"") ->  | Y43: X
D44: Simple Payback (w/ Rebate): | I44: =IFERROR( IF(CustNetCost/EstAnnualCostSavings>20,"20+ Years", CustNetCost/EstAnnualCostSavings),"") ->  | Y44: X
D45: Return on Investment (ROI) (w/ Rebate): | I45: =IFERROR(1/ProjSimplePayback_Rebate,"") ->  | Y45: X
Y46: X
Y47: X
Y48: X
Y49: X

Sheet Lighting Retrofit Worksheet
C3: =BannerText -> Energy Services ● eebiz@snopud.com ● www.snopud.com
C5: Lighting Retrofit Worksheet | DG5: Promo Code: | DH5: =PromoInputValue -> 0
BD6: =AsBuiltFlag ->  | DG6: PUD Staff: | DH6: =AssignedStaff -> 0 | DP6: FALSE
C7: For Energy Efficiency Projects in Commercial & Industrial Facilities. | DG7: Form Completed By: | DH7: =LIF_CompletedBy -> 0
DG8: Date: | DH8: =LIF_Date -> 00:00:00
C11: =FacilityName -> Facility Info | DJ11: =ProjectName -> 0
C12: =FacAddressFull -> 
D14: Light Fixture Rebate Data & Calculations
G16: Lighting | AK16: Controls | AN16: Customer Savings (Existing vs. Proposed) | BI16: BPA Baseline Adjustments | BN16: Inelligible | BP16: Incented vs. Non-Incented Savings | BS16: Lighting Lookup Code | BY16: Controls Lookup Code | CQ16: Promotion Information
D17: Line # | E17: Heat Source | F17: Hours/ Year | G17: (E) # of Fixts | H17: (P) # of Fixts | I17: Location (Area/Room) | J17: (E) Fixture ID | K17: (E) Fixture Type | L17: (E) Lighting Technology | M17: (E) # of Lamps | N17: (E) # of Lamps Total | O17: (E) Lamp Wattage | P17: (E) Ballast Type | Q17: (E) Watts Per Fixture | R17: (E) kW (Load) | S17: (E) Description | T17: (P) Fixture ID | U17: (P) Fixture Type | V17: (P) Lighting Technology | W17: (P) # of Lamps | X17: (P) # of Lamps Total | Y17: (P) Lamp Wattage | Z17: (P) Ballast Type | AA17: (P) Watts Per Fixture | AB17: (P) kW (Load) | AC17: (P) Description | AD17: Qualified (Yes/No) | AE17: Retrofit Description (Detailed) | AF17: Retrofit Description | AG17: Retrofit Type | AH17: % Reduct for Burnouts | AI17: Wattage Reduct / Fixture | AJ17: Wattage Reduct / Lamp | AK17: Control Type | AL17: # of Sens | AM17: % Hrs Red | AN17: kW (Load) Reduct | AO17: Peak kW (Load) Reduction | AP17: Mon Morning Peak kW Reduction | AQ17: Mon Evening Peak 1 kW Reduction | AR17: Mon Evening Peak 2 kW Reduction | AS17: Tues Morning Peak kW Reduction | AT17: Tues Evening Peak 1 kW Reduction | AU17: Tues Evening Peak 2 kW Reduction | AV17: Wed Morning Peak kW Reduction | AW17: Wed Evening Peak 1 kW Reduction | AX17: Wed Evening Peak 2 kW Reduction | AY17: Thurs Morning Peak kW Reduction | AZ17: Thurs Evening Peak 1 kW Reduction | BA17: Thurs Evening Peak 2 kW Reduction | BB17: (E) kWh/Yr (Use) | BC17: (P) kWh/Yr (Use) | BD17: kWh/Yr Savings | BE17: HVAC Adjustment Factor | BF17: Lighting kWh/Yr Savings | BG17: Contrls kWh/Yr Savings | BH17: HVAC Adjusted kWh/Yr Savings | BI17: Adjusted Watts per Lamp | BJ17: Adjusted Watts per Fixture | BK17: Adjusted kW (Load) Baseline | BL17: Non-Reported kW (Load) Reduction | BM17: Non-Reported kWh/Yr Savings | BN17: Inelligible kW (Load) Reduction | BO17: Inelligible kWh/Yr Savings | BP17: Incented kW (Load) Reduction | BQ17: Incented kWh/Yr Savings | BR17: Non-Incented kWh/Yr Savings | BS17: Rebate Type Code | BT17: Rebate Type Description | BU17: Rebate Retrofit Type Code | BV17: Rebate Wattage Reduction Code | BW17: Rebate Hours Code | BX17: Rebate Proposed Tech. Type Code | BY17: Type Code | BZ17: Controls Hours Code | CA17: Wattage Range Code | CB17: Lighting Lookup Code | CC17: Lighting Lookup Value | CD17: Lighting Rebate / (Fixt.) or (Lamp) | CE17: Lighting Base Rebate | CF17: Lighting Total Rebate | CG17: Controls Lookup Code | CH17: Controls Rebate / Fixt | CI17: Controls Rebate / Sensor | CJ17: Controls Rebate (Fixt) | CK17: Controls Rebate / Sensor | CL17: Controls Base Rebate | CM17: Controls Total Rebate | CN17: Remove Lookup Code | CO17: Remove Rebate / (Fixt.) | CP17: Removal Base Rebate | CQ17: Rebate Type Check | CR17: Retrofit Type Check | CS17: Heat Source Check | CT17: Controls Bonus Check | CU17: Other Checks | CV17: Lighting %Bonus | CW17: Lighting $Bonus | CX17: Controls %Bonus | CY17: Controls $Bonus | CZ17: Base Rebate Amount | DA17: Project Development Rebate | DB17: Error Code | DC17: Ltg Qty | DD17: Rebate Lookup Code(s) | DE17: Rebate / (Fixt.) or (Lamp) | DF17: Control Rebate / (Fixt) or (Sen) | DG17: Bonus Amount | DH17: Base Rebate Amount | DI17: Maximum Rebate Amount | DO17: Extra Incentive Increase | DP17: 1
D18: 1 | E18: =HLOOKUP(E$17,InputTable,MATCH($D18,InputLineNumbers,0)+1,FALSE) -> 0 | F18: 0 | G18: =HLOOKUP("# of Fixtures",InputTable,MATCH($D18,InputLineNumbers,0)+1,FALSE) -> 0 | H18: =IF(OR($BX18="C",$BX18="X"),G18, HLOOKUP("# of Fixtures",InputTable,MATCH($D18,InputLineNumbers,0)+2,FALSE)) -> 0 | I18: =HLOOKUP(I$17,InputTable,MATCH($D18,InputLineNumbers,0)+1,FALSE) -> 0 | J18: =IFERROR(IF(HLOOKUP("Fixture ID",InputTable,MATCH($D18,InputLineNumbers,0)+1,FALSE)<>"", HLOOKUP("Fixture ID",InputTable,MATCH($D18,InputLineNumbers,0)+1,FALSE), IF(SUM(Q18)>0,"Non-Tagged","---")),"") -> --- | K18: =HLOOKUP("Fixture Type",InputTable,MATCH($D18,InputLineNumbers,0)+1,FALSE) -> 0 | L18: =HLOOKUP("Lighting Technology",InputTable,MATCH($D18,InputLineNumbers,0)+1,FALSE) -> 0 | M18: =HLOOKUP("# of Lamps / Fixture",InputTable,MATCH($D18,InputLineNumbers,0)+1,FALSE) -> 0 | N18: =G18*M18 -> 0 | O18: =HLOOKUP("Lamp Wattage",InputTable,MATCH($D18,InputLineNumbers,0)+1,FALSE) -> 0 | P18: =HLOOKUP("Ballast Type",InputTable,MATCH($D18,InputLineNumbers,0)+1,FALSE) -> 0 | Q18: =N(HLOOKUP("Watts / Fixture",InputTable,MATCH($D18,InputLineNumbers,0)+1,FALSE)) -> 0 | R18: =IFERROR(($G18*$Q18*(1-MAX(0,$AH18-0.1)))/1000,"") -> 0 | S18: =IF($L18=0,"", IF($L18="Other (Specify in Notes)", CONCATENATE($Q18,"W ",LEFT($L18,5)), IF($L18="Specialty Lighting", CONCATENATE(Q18,"W ","Specialty Lighting"), IF(OR($L18="Existing LED", $L18="Linear (Other)", $L18="HID (Other)", $L18="eHID", $L18="Plasma", $L18="Induction"), CONCATENATE($Q18,"W ",$L18), IF(OR($L18="Metal Halide", $L18="Ceramic Metal Halide", $L18="High Pressure Sodium", $L18="Low Pressure Sodium", $L18="Mecury Vapor", $L18="Exit Sign"), CONCATENATE($O18," ",VLOOKUP($L18,ExistingTypeLookup,2,FALSE)), IF($L18="Compact Fluor Lamp", CONCATENATE("(",$M18,"L) ",$O18," ",VLOOKUP($L18,ExistingTypeLookup,2,FALSE)), IF($L18="Compact Fluor Fixture / Kit", CONCATENATE("(",$M18,"L) ",$O18," ","CFL Fixture / Kit"), IF(OR($L18="Incandescent (A , BR, etc.)", $L18="Incandescent (BR, G, etc.)"), CONCATENATE("(",$M18,"L) ",$O18," ",LEFT($L18,12)), IF($L18="Halogen (PAR, MR16, etc.)", CONCATENATE("(",$M18,"L) ",$O18," ",LEFT($L18,7)), IF($L18="Existing TLED", CONCATENATE("(",$M18,"L) ",$O18,"W ",$L18), IF($L18="Ceramic MH (PAR, MR16, etc.)", CONCATENATE("(",$M18,"L) ",$O18," ",LEFT($L18,11)," Lamp"), IF(ISNUMBER(FIND("Linear Fluor -",$L18,1)), CONCATENATE("(",$M18,"L) ",$O18," ",RIGHT($L18,LEN($L18)-15)), CONCATENATE("(",$M18,"L) ",$O18," ",$L18))))))))))))) ->  | T18: =IFERROR(IF(HLOOKUP("Fixture ID",InputTable,MATCH($D18,InputLineNumbers,0)+2,FALSE)<>"", HLOOKUP("Fixture ID",InputTable,MATCH($D18,InputLineNumbers,0)+2,FALSE), IF(V18="**Lighting Controls Only**","Lighting Controls", IF(V18="**Fixture Removal Only**","Fixture Removal", IF(V18="**Existing to Remain**","Existing to Remain", IF(SUM(AA18)>0,"Non-Tagged","---"))))),"") -> --- | U18: =HLOOKUP("Fixture Type",InputTable,MATCH($D18,InputLineNumbers,0)+2,FALSE) -> 0 | V18: =HLOOKUP("Lighting Technology",InputTable,MATCH($D18,InputLineNumbers,0)+2,FALSE) -> 0 | W18: =HLOOKUP("# of Lamps / Fixture",InputTable,MATCH($D18,InputLineNumbers,0)+2,FALSE) -> 0 | X18: =W18*H18 -> 0 | Y18: =HLOOKUP("Lamp Wattage",InputTable,MATCH($D18,InputLineNumbers,0)+2,FALSE) -> 0 | Z18: =HLOOKUP("Ballast Type",InputTable,MATCH($D18,InputLineNumbers,0)+2,FALSE) -> 0 | AA18: =HLOOKUP("Watts / Fixture",InputTable,MATCH($D18,InputLineNumbers,0)+2,FALSE) ->  | AB18: =IFERROR( IF($BX18="R",0, IF(OR($BX18="X",$BX18="C"),$R18, $H18*$AA18/1000)), "") ->  | AC18: =IF(OR($V18="LED Fixt / Kit",$V18="LED Kit",$V18="LED Fixture",$V18="LED Components",$V18="Exit Sign"),CONCATENATE($AA18,"W ",$V18), IF($V18=0,"", IF(OR($V18="**Lighting Controls Only**",$V18="**Fixture Removal Only**",$V18="**Existing to Remain**"),$V18, IF(OR($V18="LED Lamp",$V18="TLED (Type A)",$V18="TLED (Type B/C)"),CONCATENATE("(",$W18,"L)"," ",$Y18,"W ",$V18),)))) ->  | AD18: =HLOOKUP(AD$17,InputTable,MATCH($D18,InputLineNumbers,0)+1,FALSE) -> 0 | AE18: =IF(AND($S18="",$AC18=""),"",CONCATENATE($S18," → ",$AC18)) ->  | AF18: =IFERROR(IF(OR($BX18="C",$BX18="R"),CONCATENATE("*",VLOOKUP($V18,ProposedTypeLookup,3,FALSE),"*"), IF($BX18="X",CONCATENATE("*(E) to ",VLOOKUP($V18,ProposedTypeLookup,3,FALSE),"*"), CONCATENATE(VLOOKUP($L18,ExistingTypeLookup,2,FALSE)," to ",VLOOKUP($V18,ProposedTypeLookup,2,FALSE)))),"") ->  | AG18: =IFERROR( IF(OR(V18="**Fixture Removal Only**",V18="**Lighting Controls Only**",V18="**Existing to Remain**"),"-", VLOOKUP(V18,ProposedTypeLookup,3,FALSE)), "-") -> - | AI18: =IFERROR(ROUND(IF($G18<$H18,($AN18*1000)/$G18,($AN18*1000)/$H18),0),"-") -> - | AJ18: =IFERROR(IF(AND($BS18="L",AND($L18="Linear (Other)",$BU18="L")),ROUND($AI18/$W18,0), IF(OR(AND($BS18="L",$BU18="L"),AND($BS18="L",$BU18="LD")),ROUND($AI18/$W18,0), IF(AND($BS18="4'T12-L",OR($BU18="L",$BU18="LD")),ROUND($AI18/$W18,0), IF(AND($BS18="N",$BU18="L"),ROUND($AI18/$W18,0),"-")))),"") -> - | AK18: =IF(HLOOKUP("Control Type ---------- # of Sensors",InputTable,MATCH($D18,InputLineNumbers,0)+1,FALSE)="","-",HLOOKUP("Control Type ---------- # of Sensors",InputTable,MATCH($D18,InputLineNumbers,0)+1,FALSE)) -> - | AL18: =IF(HLOOKUP("Control Type ---------- # of Sensors",InputTable,MATCH($D18,InputLineNumbers,0)+2,FALSE)="","-",HLOOKUP("Control Type ---------- # of Sensors",InputTable,MATCH($D18,InputLineNumbers,0)+2,FALSE)) -> - | AM18: =IFERROR(IF(VLOOKUP(AK18,ExistingTypeLookupControls,2,FALSE)="","-",VLOOKUP(AK18,ExistingTypeLookupControls,2,FALSE)),"-") -> - | AN18: =IFERROR(IF($BX18="R",$R18,IF($AB18=0,0,$R18-$AB18)),0) -> 0 | AO18: =IF(INDEX(PeakOverride,$D18*2,1)="P",$AN18, 0) -> 0 | AP18: =IF($AO18=0,0, IF($F18>8000,$AN18, IF(AND($F18>=(HoursOfOperation-200),MonMornPeak=1),$AN18, IF(AND($E18="Exterior",$F18>=4200),$AN18*0.5, 0)))) -> 0 | AQ18: =IF($AO18=0,0, IF($F18>8000,$AN18, IF(AND($F18>=(HoursOfOperation-200),MonEvePeak1=1),$AN18, IF(AND($E18="Exterior",$F18>=4200),$AN18, 0)))) -> 0 | AR18: =IF($AO18=0,0, IF($F18>8000,$AN18, IF(AND($F18>=(HoursOfOperation-200),MonEvePeak2=1),$AN18, IF(AND($E18="Exterior",$F18>=4200),$AN18, 0)))) -> 0 | AS18: =IF($AO18=0,0, IF($F18>8000,$AN18, IF(AND($F18>=(HoursOfOperation-200),TueMornPeak=1),$AN18, IF(AND($E18="Exterior",$F18>=4200),$AN18*0.5, 0)))) -> 0 | AT18: =IF($AO18=0,0, IF($F18>8000,$AN18, IF(AND($F18>=(HoursOfOperation-200),TueEvePeak1=1),$AN18, IF(AND($E18="Exterior",$F18>=4200),$AN18, 0)))) -> 0 | AU18: =IF($AO18=0,0, IF($F18>8000,$AN18, IF(AND($F18>=(HoursOfOperation-200),TueEvePeak2=1),$AN18, IF(AND($E18="Exterior",$F18>=4200),$AN18, 0)))) -> 0 | AV18: =IF($AO18=0,0, IF($F18>8000,$AN18, IF(AND($F18>=(HoursOfOperation-200),WedMornPeak=1),$AN18, IF(AND($E18="Exterior",$F18>=4200),$AN18*0.5, 0)))) -> 0 | AW18: =IF($AO18=0,0, IF($F18>8000,$AN18, IF(AND($F18>=(HoursOfOperation-200),WedEvePeak1=1),$AN18, IF(AND($E18="Exterior",$F18>=4200),$AN18, 0)))) -> 0 | AX18: =IF($AO18=0,0, IF($F18>8000,$AN18, IF(AND($F18>=(HoursOfOperation-200),WedEvePeak2=1),$AN18, IF(AND($E18="Exterior",$F18>=4200),$AN18, 0)))) -> 0 | AY18: =IF($AO18=0,0, IF($F18>8000,$AN18, IF(AND($F18>=(HoursOfOperation-200),ThurMornPeak=1),$AN18, IF(AND($E18="Exterior",$F18>=4200),$AN18*0.5, 0)))) -> 0 | AZ18: =IF($AO18=0,0, IF($F18>8000,$AN18, IF(AND($F18>=(HoursOfOperation-200),ThurEvePeak1=1),$AN18, IF(AND($E18="Exterior",$F18>=4200),$AN18, 0)))) -> 0 | BA18: =IF($AO18=0,0, IF($F18>8000,$AN18, IF(AND($F18>=(HoursOfOperation-200),ThurEvePeak2=1),$AN18, IF(AND($E18="Exterior",$F18>=4200),$AN18, 0)))) -> 0 | BB18: =IFERROR($F18*$R18,"") -> 0 | BC18: =IFERROR($F18*(1-SUM($AM18))*$AB18,"") ->  | BD18: =IFERROR($BB18-$BC18,"") ->  | BE18: =IFERROR(IF($E18="","",OFFSET(HVACadjustment,MATCH($E18,HeatSource,0),HVACAreaOffset,1,1)),0) -> 0 | BF18: =IFERROR(AN18*F18*BE18,0) -> 0 | BG18: =IFERROR(IF(BX18="C",R18,AB18)*F18*AM18*BE18,0) -> 0 | BH18: =SUM(BF18:BG18) -> 0 | BI18: =IFERROR(VLOOKUP(CONCATENATE(VLOOKUP($L18,ExistingTypeLookup,2,0),"(",$O18,")"),BPAAdjustInputWatts,2,FALSE),"") ->  | BJ18: =IFERROR($M18*$BI18,"") ->  | BK18: =IF(AND($BI18="",$BJ18=""),"",$G18*$BJ18*(1-$AH18)/1000) ->  | BL18: =IFERROR(IF($AB18=0,0,$R18-$BK18),0) -> 0 | BM18: =IFERROR($F18*$BL18*BE18,0) -> 0 | BN18: =IF(ISNUMBER(FIND("ER",DB18)),$AN18,0) -> 0 | BO18: =IFERROR($F18*$BN18*BE18,0) -> 0 | BP18: =IFERROR(IF($AN18-$BN18=0,0,$AN18-$BL18),0) -> 0 | BQ18: =IFERROR($F18*$BP18*BE18+BG18,0) -> 0 | BR18: =IFERROR($BH18-$BQ18,0) -> 0 | BS18: =IFERROR(VLOOKUP($L18,ExistingTypeLookup,4,FALSE),"") ->  | BT18: =IFERROR(VLOOKUP(BS18,RebateTypeDesc,2,FALSE),"---") -> --- | BU18: =IFERROR(VLOOKUP($AG18,RetrofitTypeLookup,2,FALSE),"") ->  | BV18: =IFERROR( IF(AND($AI18="-",$AJ18="-"),"", IF(AND($BS18="N",$BU18="L"),VLOOKUP($AJ18,WattReductionTable,MATCH($BS18,WattReductionTitles,0),FALSE), IF(AND($BS18="L",OR($BU18="L",$BU18="LD")),VLOOKUP($AJ18,WattReductionTable,MATCH("LL",WattReductionTitles,0),FALSE), IF($BS18="S",MAX(0,ROUND($AI18/10,0)), IF($BU18="L",VLOOKUP(MIN($AI18,500),WattReductionTable,MATCH($BS18&$BU18,WattReductionTitles,0),FALSE), VLOOKUP(MIN($AI18,500),WattReductionTable,MATCH($BS18,WattReductionTitles,0),FALSE)))))), 0) ->  | BW18: =IFERROR( IF($BS18="E","", IF(AND($F18<4000,$F18>0),"T1", IF(AND($F18>=4000,$F18<6000),"T2", IF($F18>=6000,"T3","")))), "") ->  | BX18: =IFERROR(IF($BS18="E","E",VLOOKUP($V18,ProposedTypeLookup,4,FALSE)),"") ->  | BY18: =IFERROR(VLOOKUP(AK18,ExistingTypeLookupControls,3,FALSE),"") ->  | BZ18: =IFERROR( IF($BS18="E","", IF($F18>=6000,"T3", IF($F18>=4000,"T2", IF($F18>=2000,"T1", IF($F18>0,"T0",""))))), "") ->  | CA18: =IFERROR( IF($BX18="C",VLOOKUP($Q18,WattReductionTable,MATCH("C",WattReductionTitles,0),FALSE), VLOOKUP(ROUND($AA18,0),WattReductionTable,MATCH("C",WattReductionTitles,0),FALSE)),"") ->  | CB18: =IFERROR( IF(OR($BX18="C",$BX18="R",$BX18="X"),"-", IF(AND($BS18="E",$BU18="F",$BV18="S"),"ES", IF(OR($BS18="",$BU18="",$BV18="",$BW18=""),"-", CONCATENATE($BS18,IF(BD18="E","",$BU18),$BV18,$BW18,$BX18)))), "-") -> - | CC18: =IFERROR( IF($BS18="S",GetSpecialtyRate($BU18,$BW18,$BV18), OFFSET(INDIRECT("IncentiveRate"&IncentiveRateActive),MATCH(CB18,RebateTable,0),0)), 0) -> 0 | CD18: =IFERROR( IF(OR($DB18<>"",AND($BX18<>"A",$BX18<>"E"),CE18=0),"", "$"&CE18/$DC18& IF(AND($BS18<>"E",$BS18<>"O",OR($BU18="L",$BU18="LD")),"/ea (Lamp)","/ea (Fixt.)")& IF($AH18>0.1,"*","") ),"") ->  | CE18: =IFERROR( IF(DB18<>"",0, IF($V18="LED Components",ROUND(CC18*ComponentPercent,0)*$DC18, ROUND(CC18,0)*$DC18)), 0) -> 0 | CF18: =IF(AND(CE18<>"",CE18<>0),CE18+IF(CV18>0,CW18,0),0) -> 0 | CG18: =IFERROR(IF(AND($BY18<>0,$BY18<>"",$CA18<>0,$CA18<>""),$BY18&$CA18&$BZ18,"-"),"-") -> - | CH18: =IFERROR(ROUND(OFFSET(INDIRECT("ControlsRateFixture"&IncentiveRateActive),MATCH($CG18,ControlsTable,0),0),0),"") ->  | CI18: =IFERROR(ROUND(OFFSET(INDIRECT("ControlsRateSensor"&IncentiveRateActive),MATCH($CG18,ControlsTable,0),0),0),"") ->  | CJ18: =IFERROR(IF($BX18="C",$CH18*$G18,$CH18*$H18),0) -> 0 | CK18: =IFERROR( IF(OR($BY18="CN",$BY18="CL"), IF($BX18="C",$G18*$CI18,$H18*$CI18), $CI18*$AL18),0) -> 0 | CL18: =IFERROR(IF(DB18="", IF(AND($CJ18<>"",$CK18<>""),MIN($CJ18,$CK18),0), ""),0) -> 0 | CM18: =IF(AND(CL18<>"",CL18<>0),CL18+IF(CY18>0,CY18,0),0) -> 0 | CN18: =IFERROR(IF(OR($BX18<>"R",$DC18=0),"-","R"&$BS18),"-") -> - | CO18: =IFERROR(IF(AND($DB18="",$AN18<>""),CONCATENATE("$",VLOOKUP($CN18,RemovalTable,2,FALSE),"/ea (Rem.)"),""),"") ->  | CP18: =IF($BX18="R",DC18*VLOOKUP(CN18,RemovalTable,2,FALSE),0) -> 0 | CQ18: FALSE | CR18: FALSE | CS18: FALSE | CT18: FALSE | CU18: TRUE | CV18: =IFERROR(IF(AND($CQ18=TRUE,$CR18=TRUE,$CS18=TRUE,$CU18=TRUE,$DB18=""),BonusSize,0),0) -> 0 | CW18: =IFERROR(IF($DB18="", IF(CV18=0,0, IF(BonusCap=0,ROUND(CV18*CE18,0), IF(SUM(INDIRECT("CQ18:CQ"&(D18+16)),INDIRECT("CS18:CS"&(D18+16)),CV18*CE18)>=BonusCap,BonusCap-SUM(INDIRECT("CQ18:CQ"&(D18+16)),INDIRECT("CS18:CS"&(D18+16))), ROUND(CV18*CE18,0) ))),0),0) -> 0 | CX18: =IF(AND($CT18=TRUE,AND($BY18="CI",$CR18=TRUE)),ControlsBonusRate,0) -> 0 | CY18: =IFERROR(IF(DB18="", IF(CX18=0,0, IF(BonusCap=0,ROUND(CX18*CL18,0), IF(SUM(INDIRECT("CQ18:CQ"&(D18+17)),INDIRECT("CS18:CS"&(D18+16)))=BonusCap,0, IF(SUM(INDIRECT("CQ18:CQ"&(D18+17)),INDIRECT("CS18:CS"&(D18+16)),CX18*CL18)>BonusCap,BonusCap-SUM(INDIRECT("CQ18:CQ"&(D18+17)),INDIRECT("CS18:CS"&(D18+16))), ROUND(CX18*CL18,0))))),0),0) -> 0 | CZ18: =IFERROR( IF($DB18="", IF($BX18="R",$CP18,SUM(CE18,CL18)),0),0) -> 0 | DA18: =SUM(BF18*PDIrate_Base, BG18*SUM(PDIrate_Base,IF(AK18="Network",PDIrate_Networked,0),IF(AK18="LLLC",PDIrate_LLLC,0))) -> 0 | DB18: =InputErrorCheck(E18,F18,L18,BS18,M18,Q18,G18,V18,W18,AA18,H18,AD18,BV18,AK18,AL18) ->  | DC18: =IFERROR(IF(OR($BX18="C",$BX18="X"),"-", IF($BX18="R",$G18, IF($G18<$H18, IF(AND($BS18<>"H",$BS18<>"E",$BS18<>"O",OR($BU18="L",$BU18="LD")),$W18*$G18, $G18), IF(AND($BS18<>"H",$BS18<>"E",$BS18<>"O",OR($BU18="L",$BU18="LD")),$X18, $H18)))),"") -> 0 | DD18: =IFERROR(IF($BX18="R",$CN18, IF($BX18="C",$CG18, IF($CB18="-","",$CB18)&IF($CG18="-","",CHAR(10)&$CG18))),"") ->  | DE18: =IFERROR( IF(OR($BX18="C",$BX18="X",AND($CB18="-",OR($CO18="",$CO18=0))),"", IF($BX18="R",$CO18,$CD18)), "") ->  | DF18: =IFERROR( IF(OR(SUM($CJ18)=0,SUM($CK18=0)),"", IF(CJ18>CK18,"$"&CI18&"/Sen", IF(OR(BY18="CN",BY18="CL"), IF(BX18="C","$"&ROUND(CL18/G18,1)&"/Sen","$"&ROUND(CL18/H18,1)&"/Sen"), "$"&ROUND(CL18/AL18,1)&"/Sen"))),"") ->  | DG18: =CW18+CY18 -> 0 | DH18: =CZ18 -> 0 | DI18: =IF($DB18="",CZ18+CW18+CY18,VLOOKUP(DB18,ErrorCheckingTable,3,FALSE)) -> 0 | DJ18: =IFERROR(IF(OR($CW18>0,$CY18>0),"B",""),"") -> 
D19: =$D18+1 -> 2 | E19: 0 | F19: 0 | G19: 0 | H19: =IF(OR($BX19="C",$BX19="X"),G19, HLOOKUP("# of Fixtures",InputTable,MATCH($D19,InputLineNumbers,0)+2,FALSE)) -> 0 | I19: 0 | J19: --- | K19: 0 | L19: 0 | M19: 0 | N19: =G19*M19 -> 0 | O19: 0 | P19: 0 | Q19: 0 | R19: =IFERROR(($G19*$Q19*(1-MAX(0,$AH19-0.1)))/1000,"") -> 0 | T19: --- | U19: 0 | V19: 0 | W19: 0 | X19: =W19*H19 -> 0 | Y19: 0 | Z19: 0 | AA19: =HLOOKUP("Watts / Fixture",InputTable,MATCH($D19,InputLineNumbers,0)+2,FALSE) ->  | AB19: =IFERROR( IF($BX19="R",0, IF(OR($BX19="X",$BX19="C"),$R19, $H19*$AA19/1000)), "") ->  | AD19: 0 | AG19: =IFERROR( IF(OR(V19="**Fixture Removal Only**",V19="**Lighting Controls Only**",V19="**Existing to Remain**"),"-", VLOOKUP(V19,ProposedTypeLookup,3,FALSE)), "-") -> - | AI19: =IFERROR(ROUND(IF($G19<$H19,($AN19*1000)/$G19,($AN19*1000)/$H19),0),"-") -> - | AJ19: =IFERROR(IF(AND($BS19="L",AND($L19="Linear (Other)",$BU19="L")),ROUND($AI19/$W19,0), IF(OR(AND($BS19="L",$BU19="L"),AND($BS19="L",$BU19="LD")),ROUND($AI19/$W19,0), IF(AND($BS19="4'T12-L",OR($BU19="L",$BU19="LD")),ROUND($AI19/$W19,0), IF(AND($BS19="N",$BU19="L"),ROUND($AI19/$W19,0),"-")))),"") -> - | AK19: - | AL19: - | AM19: =IFERROR(IF(VLOOKUP(AK19,ExistingTypeLookupControls,2,FALSE)="","-",VLOOKUP(AK19,ExistingTypeLookupControls,2,FALSE)),"-") -> - | AN19: =IFERROR(IF($BX19="R",$R19,IF($AB19=0,0,$R19-$AB19)),0) -> 0 | AO19: 0 | AP19: 0 | AQ19: 0 | AR19: 0 | AS19: 0 | AT19: 0 | AU19: 0 | AV19: 0 | AW19: 0 | AX19: 0 | AY19: 0 | AZ19: 0 | BA19: 0 | BB19: =IFERROR($F19*$R19,"") -> 0 | BC19: =IFERROR($F19*(1-SUM($AM19))*$AB19,"") ->  | BD19: =IFERROR($BB19-$BC19,"") ->  | BE19: =IFERROR(IF($E19="","",OFFSET(HVACadjustment,MATCH($E19,HeatSource,0),HVACAreaOffset,1,1)),0) -> 0 | BF19: =IFERROR(AN19*F19*BE19,0) -> 0 | BG19: =IFERROR(IF(BX19="C",R19,AB19)*F19*AM19*BE19,0) -> 0 | BH19: =SUM(BF19:BG19) -> 0 | BK19: =IF(AND($BI19="",$BJ19=""),"",$G19*$BJ19*(1-$AH19)/1000) ->  | BL19: =IFERROR(IF($AB19=0,0,$R19-$BK19),0) -> 0 | BM19: =IFERROR($F19*$BL19*BE19,0) -> 0 | BN19: =IF(ISNUMBER(FIND("ER",DB19)),$AN19,0) -> 0 | BO19: =IFERROR($F19*$BN19*BE19,0) -> 0 | BP19: =IFERROR(IF($AN19-$BN19=0,0,$AN19-$BL19),0) -> 0 | BQ19: =IFERROR($F19*$BP19*BE19+BG19,0) -> 0 | BR19: 0 | BS19: =IFERROR(VLOOKUP($L19,ExistingTypeLookup,4,FALSE),"") ->  | BT19: =IFERROR(VLOOKUP(BS19,RebateTypeDesc,2,FALSE),"---") -> --- | BV19: =IFERROR( IF(AND($AI19="-",$AJ19="-"),"", IF(AND($BS19="N",$BU19="L"),VLOOKUP($AJ19,WattReductionTable,MATCH($BS19,WattReductionTitles,0),FALSE), IF(AND($BS19="L",OR($BU19="L",$BU19="LD")),VLOOKUP($AJ19,WattReductionTable,MATCH("LL",WattReductionTitles,0),FALSE), IF($BS19="S",MAX(0,ROUND($AI19/10,0)), IF($BU19="L",VLOOKUP(MIN($AI19,500),WattReductionTable,MATCH($BS19&$BU19,WattReductionTitles,0),FALSE), VLOOKUP(MIN($AI19,500),WattReductionTable,MATCH($BS19,WattReductionTitles,0),FALSE)))))), 0) ->  | BW19: =IFERROR( IF($BS19="E","",IF(AND($F19<4000,$F19>0),"T1", IF(AND($F19>=4000,$F19<6000),"T2", IF($F19>=6000,"T3","")))), "") ->  | BY19: =IFERROR(VLOOKUP(AK19,ExistingTypeLookupControls,3,FALSE),"") ->  | BZ19: =IFERROR( IF($BS19="E","", IF($F19>=6000,"T3", IF($F19>=4000,"T2", IF($F19>=2000,"T1", IF($F19>0,"T0",""))))), "") ->  | CB19: =IFERROR( IF(OR($BX19="C",$BX19="R",$BX19="X"),"-", IF(AND($BS19="E",$BU19="F",$BV19="S"),"ES", IF(OR($BS19="",$BU19="",$BV19="",$BW19=""),"-", CONCATENATE($BS19,IF(BD19="E","",$BU19),$BV19,$BW19,$BX19)))), "-") -> - | CC19: =IFERROR( IF($BS19="S",GetSpecialtyRate($BU19,$BW19,$BV19), OFFSET(INDIRECT("IncentiveRate"&IncentiveRateActive),MATCH(CB19,RebateTable,0),0)), 0) -> 0 | CD19: =IFERROR( IF(OR($DB19<>"",AND($BX19<>"A",$BX19<>"E"),CE19=0),"", "$"&CE19/$DC19& IF(AND($BS19<>"E",$BS19<>"O",OR($BU19="L",$BU19="LD")),"/ea (Lamp)","/ea (Fixt.)")& IF($AH19>0.1,"*","") ),"") ->  | CE19: =IFERROR( IF(DB19<>"",0, IF($V19="LED Components",ROUND(CC19*ComponentPercent,0)*$DC19, ROUND(CC19,0)*$DC19)), 0) -> 0 | CF19: =IF(AND(CE19<>"",CE19<>0),CE19+IF(CV19>0,CW19,0),0) -> 0 | CG19: =IFERROR(IF(AND($BY19<>0,$BY19<>"",$CA19<>0,$CA19<>""),$BY19&$CA19&$BZ19,"-"),"-") -> - | CH19: =IFERROR(ROUND(OFFSET(INDIRECT("ControlsRateFixture"&IncentiveRateActive),MATCH($CG19,ControlsTable,0),0),0),"") ->  | CI19: =IFERROR(ROUND(OFFSET(INDIRECT("ControlsRateSensor"&IncentiveRateActive),MATCH($CG19,ControlsTable,0),0),0),"") ->  | CJ19: =IFERROR(IF($BX19="C",$CH19*$G19,$CH19*$H19),0) -> 0 | CK19: =IFERROR( IF(OR($BY19="CN",$BY19="CL"), IF($BX19="C",$G19*$CI19,$H19*$CI19), $CI19*$AL19),0) -> 0 | CL19: =IFERROR(IF(DB19="", IF(AND($CJ19<>"",$CK19<>""),MIN($CJ19,$CK19),0), ""),0) -> 0 | CM19: =IF(AND(CL19<>"",CL19<>0),CL19+IF(CY19>0,CY19,0),0) -> 0 | CN19: =IFERROR(IF(OR($BX19<>"R",$DC19=0),"-","R"&$BS19),"-") -> - | CP19: =IF($BX19="R",DC19*VLOOKUP(CN19,RemovalTable,2,FALSE),0) -> 0 | CQ19: FALSE | CR19: FALSE | CS19: FALSE | CT19: FALSE | CU19: TRUE | CV19: =IFERROR(IF(AND($CQ19=TRUE,$CR19=TRUE,$CS19=TRUE,$CU19=TRUE,$DB19=""),BonusSize,0),0) -> 0 | CW19: =IFERROR(IF($DB19="", IF(CV19=0,0, IF(BonusCap=0,ROUND(CV19*CE19,0), IF(SUM(INDIRECT("CQ18:CQ"&(D19+16)),INDIRECT("CS18:CS"&(D19+16)),CV19*CE19)>=BonusCap,BonusCap-SUM(INDIRECT("CQ18:CQ"&(D19+16)),INDIRECT("CS18:CS"&(D19+16))), ROUND(CV19*CE19,0) ))),0),0) -> 0 | CX19: 0 | CY19: =IFERROR(IF(DB19="", IF(CX19=0,0, IF(BonusCap=0,ROUND(CX19*CL19,0), IF(SUM(INDIRECT("CQ18:CQ"&(D19+17)),INDIRECT("CS18:CS"&(D19+16)))=BonusCap,0, IF(SUM(INDIRECT("CQ18:CQ"&(D19+17)),INDIRECT("CS18:CS"&(D19+16)),CX19*CL19)>BonusCap,BonusCap-SUM(INDIRECT("CQ18:CQ"&(D19+17)),INDIRECT("CS18:CS"&(D19+16))), ROUND(CX19*CL19,0))))),0),0) -> 0 | CZ19: =IFERROR( IF($DB19="", IF($BX19="R",$CP19,SUM(CE19,CL19)),0),0) -> 0 | DA19: 0 | DB19: =InputErrorCheck(E19,F19,L19,BS19,M19,Q19,G19,V19,W19,AA19,H19,AD19,BV19,AK19,AL19) ->  | DC19: =IFERROR(IF(OR($BX19="C",$BX19="X"),"-", IF($BX19="R",$G19, IF($G19<$H19, IF(AND($BS19<>"H",$BS19<>"E",$BS19<>"O",OR($BU19="L",$BU19="LD")),$W19*$G19, $G19), IF(AND($BS19<>"H",$BS19<>"E",$BS19<>"O",OR($BU19="L",$BU19="LD")),$X19, $H19)))),"") -> 0 | DF19: =IFERROR( IF(OR(SUM($CJ19)=0,SUM($CK19=0)),"", IF(CJ19>CK19,"$"&CI19&"/Sen", IF(OR(BY19="CN",BY19="CL"), IF(BX19="C","$"&ROUND(CL19/G19,1)&"/Sen","$"&ROUND(CL19/H19,1)&"/Sen"), "$"&ROUND(CL19/AL19,1)&"/Sen"))),"") ->  | DG19: =CW19+CY19 -> 0 | DH19: =CZ19 -> 0 | DI19: =IF($DB19="",CZ19+CW19+CY19,VLOOKUP(DB19,ErrorCheckingTable,3,FALSE)) -> 0
D20: 3 | E20: 0 | F20: 0 | G20: 0 | H20: =IF(OR($BX20="C",$BX20="X"),G20, HLOOKUP("# of Fixtures",InputTable,MATCH($D20,InputLineNumbers,0)+2,FALSE)) -> 0 | I20: 0 | J20: --- | K20: 0 | L20: 0 | M20: 0 | N20: =G20*M20 -> 0 | O20: 0 | P20: 0 | Q20: 0 | R20: =IFERROR(($G20*$Q20*(1-MAX(0,$AH20-0.1)))/1000,"") -> 0 | T20: --- | U20: 0 | V20: 0 | W20: 0 | X20: =W20*H20 -> 0 | Y20: 0 | Z20: 0 | AD20: 0 | AG20: =IFERROR( IF(OR(V20="**Fixture Removal Only**",V20="**Lighting Controls Only**",V20="**Existing to Remain**"),"-", VLOOKUP(V20,ProposedTypeLookup,3,FALSE)), "-") -> - | AI20: =IFERROR(ROUND(IF($G20<$H20,($AN20*1000)/$G20,($AN20*1000)/$H20),0),"-") -> - | AJ20: =IFERROR(IF(AND($BS20="L",AND($L20="Linear (Other)",$BU20="L")),ROUND($AI20/$W20,0), IF(OR(AND($BS20="L",$BU20="L"),AND($BS20="L",$BU20="LD")),ROUND($AI20/$W20,0), IF(AND($BS20="4'T12-L",OR($BU20="L",$BU20="LD")),ROUND($AI20/$W20,0), IF(AND($BS20="N",$BU20="L"),ROUND($AI20/$W20,0),"-")))),"") -> - | AK20: - | AL20: - | AM20: =IFERROR(IF(VLOOKUP(AK20,ExistingTypeLookupControls,2,FALSE)="","-",VLOOKUP(AK20,ExistingTypeLookupControls,2,FALSE)),"-") -> - | AN20: =IFERROR(IF($BX20="R",$R20,IF($AB20=0,0,$R20-$AB20)),0) -> 0 | AO20: 0 | AP20: 0 | AQ20: 0 | AR20: 0 | AS20: 0 | AT20: 0 | AU20: 0 | AV20: 0 | AW20: 0 | AX20: 0 | AY20: 0 | AZ20: 0 | BA20: 0 | BB20: 0 | BE20: =IFERROR(IF($E20="","",OFFSET(HVACadjustment,MATCH($E20,HeatSource,0),HVACAreaOffset,1,1)),0) -> 0 | BF20: =IFERROR(AN20*F20*BE20,0) -> 0 | BG20: =IFERROR(IF(BX20="C",R20,AB20)*F20*AM20*BE20,0) -> 0 | BH20: =SUM(BF20:BG20) -> 0 | BK20: =IF(AND($BI20="",$BJ20=""),"",$G20*$BJ20*(1-$AH20)/1000) ->  | BL20: =IFERROR(IF($AB20=0,0,$R20-$BK20),0) -> 0 | BM20: =IFERROR($F20*$BL20*BE20,0) -> 0 | BN20: =IF(ISNUMBER(FIND("ER",DB20)),$AN20,0) -> 0 | BO20: =IFERROR($F20*$BN20*BE20,0) -> 0 | BP20: =IFERROR(IF($AN20-$BN20=0,0,$AN20-$BL20),0) -> 0 | BQ20: =IFERROR($F20*$BP20*BE20+BG20,0) -> 0 | BR20: 0 | BS20: =IFERROR(VLOOKUP($L20,ExistingTypeLookup,4,FALSE),"") ->  | BT20: =IFERROR(VLOOKUP(BS20,RebateTypeDesc,2,FALSE),"---") -> --- | BV20: =IFERROR( IF(AND($AI20="-",$AJ20="-"),"", IF(AND($BS20="N",$BU20="L"),VLOOKUP($AJ20,WattReductionTable,MATCH($BS20,WattReductionTitles,0),FALSE), IF(AND($BS20="L",OR($BU20="L",$BU20="LD")),VLOOKUP($AJ20,WattReductionTable,MATCH("LL",WattReductionTitles,0),FALSE), IF($BS20="S",ROUND($AI20/10,0), IF($BU20="L",VLOOKUP(MIN($AI20,500),WattReductionTable,MATCH($BS20&$BU20,WattReductionTitles,0),FALSE), VLOOKUP(MIN($AI20,500),WattReductionTable,MATCH($BS20,WattReductionTitles,0),FALSE)))))), 0) ->  | BW20: =IFERROR( IF($BS20="E","",IF(AND($F20<4000,$F20>0),"T1", IF(AND($F20>=4000,$F20<6000),"T2", IF($F20>=6000,"T3","")))), "") ->  | BY20: =IFERROR(VLOOKUP(AK20,ExistingTypeLookupControls,3,FALSE),"") ->  | CB20: =IFERROR( IF(OR($BX20="C",$BX20="R",$BX20="X"),"-", IF(AND($BS20="E",$BU20="F",$BV20="S"),"ES", IF(OR($BS20="",$BU20="",$BV20="",$BW20=""),"-", CONCATENATE($BS20,IF(BD20="E","",$BU20),$BV20,$BW20,$BX20)))), "-") -> - | CC20: =IFERROR( IF($BS20="S",GetSpecialtyRate($BU20,$BW20,$BV20), OFFSET(INDIRECT("IncentiveRate"&IncentiveRateActive),MATCH(CB20,RebateTable,0),0)), 0) -> 0 | CD20: =IFERROR( IF(OR($DB20<>"",AND($BX20<>"A",$BX20<>"E"),CE20=0),"", "$"&CE20/$DC20& IF(AND($BS20<>"E",$BS20<>"O",OR($BU20="L",$BU20="LD")),"/ea (Lamp)","/ea (Fixt.)")& IF($AH20>0.1,"*","") ),"") ->  | CE20: =IFERROR( IF(DB20<>"",0, IF($V20="LED Components",ROUND(CC20*ComponentPercent,0)*$DC20, ROUND(CC20,0)*$DC20)), 0) -> 0 | CF20: =IF(AND(CE20<>"",CE20<>0),CE20+IF(CV20>0,CW20,0),0) -> 0 | CG20: - | CH20: =IFERROR(ROUND(OFFSET(INDIRECT("ControlsRateFixture"&IncentiveRateActive),MATCH($CG20,ControlsTable,0),0),0),"") ->  | CI20: =IFERROR(ROUND(OFFSET(INDIRECT("ControlsRateSensor"&IncentiveRateActive),MATCH($CG20,ControlsTable,0),0),0),"") ->  | CJ20: =IFERROR(IF($BX20="C",$CH20*$G20,$CH20*$H20),0) -> 0 | CK20: =IFERROR( IF(OR($BY20="CN",$BY20="CL"), IF($BX20="C",$G20*$CI20,$H20*$CI20), $CI20*$AL20),0) -> 0 | CL20: =IFERROR(IF(DB20="", IF(AND($CJ20<>"",$CK20<>""),MIN($CJ20,$CK20),0), ""),0) -> 0 | CM20: =IF(AND(CL20<>"",CL20<>0),CL20+IF(CY20>0,CY20,0),0) -> 0 | CN20: =IFERROR(IF(OR($BX20<>"R",$DC20=0),"-","R"&$BS20),"-") -> - | CP20: =IFERROR(IF($BX20="R",DC20*VLOOKUP(CN20,RemovalTable,2,FALSE),0),0) -> 0 | CQ20: FALSE | CR20: FALSE | CS20: FALSE | CT20: FALSE | CU20: TRUE | CV20: =IFERROR(IF(AND($CQ20=TRUE,$CR20=TRUE,$CS20=TRUE,$CU20=TRUE,$DB20=""),BonusSize,0),0) -> 0 | CW20: =IFERROR(IF($DB20="", IF(CV20=0,0, IF(BonusCap=0,ROUND(CV20*CE20,0), MIN(BonusCap,ROUND(CV20*CE20,0)) )),0),0) -> 0 | CX20: 0 | CY20: =IFERROR(IF(DB20="", IF(CX20=0,0, IF(BonusCap=0,ROUND(CX20*CL20,0), IF(CW20=BonusCap,0, IF((CW20+CX20*CL20)>BonusCap,BonusCap-CW20, ROUND(CX20*CL20,0))))),0),0) -> 0 | CZ20: =IFERROR( IF($DB20="", IF($BX20="R",$CP20,SUM(CE20,CL20)),0),0) -> 0 | DA20: 0 | DB20: =InputErrorCheck(E20,F20,L20,BS20,M20,Q20,G20,V20,W20,AA20,H20,AD20,BV20,AK20,AL20) ->  | DC20: =IFERROR(IF(OR($BX20="C",$BX20="X"),"-", IF($BX20="R",$G20, IF($G20<$H20, IF(AND($BS20<>"H",$BS20<>"E",$BS20<>"O",OR($BU20="L",$BU20="LD")),$W20*$G20, $G20), IF(AND($BS20<>"H",$BS20<>"E",$BS20<>"O",OR($BU20="L",$BU20="LD")),$X20, $H20)))),"") -> 0 | DF20: =IFERROR( IF(OR(SUM($CJ20)=0,SUM($CK20=0)),"", IF(CJ20>CK20,"$"&CI20&"/Sen", IF(OR(BY20="CN",BY20="CL"), IF(BX20="C","$"&ROUND(CL20/G20,1)&"/Sen","$"&ROUND(CL20/H20,1)&"/Sen"), "$"&ROUND(CL20/AL20,1)&"/Sen"))),"") ->  | DG20: =CW20+CY20 -> 0 | DH20: =CZ20 -> 0 | DI20: =IF($DB20="",CZ20+CW20+CY20,VLOOKUP(DB20,ErrorCheckingTable,3,FALSE)) -> 0
D21: 4 | E21: 0 | F21: 0 | G21: 0 | H21: =IF(OR($BX21="C",$BX21="X"),G21, HLOOKUP("# of Fixtures",InputTable,MATCH($D21,InputLineNumbers,0)+2,FALSE)) -> 0 | I21: 0 | J21: --- | K21: =HLOOKUP("Fixture Type",InputTable,MATCH($D21,InputLineNumbers,0)+1,FALSE) -> 0 | L21: 0 | M21: 0 | N21: =G21*M21 -> 0 | O21: 0 | P21: 0 | Q21: 0 | R21: =IFERROR(($G21*$Q21*(1-MAX(0,$AH21-0.1)))/1000,"") -> 0 | T21: --- | U21: 0 | V21: 0 | W21: 0 | X21: =W21*H21 -> 0 | Y21: 0 | Z21: 0 | AD21: 0 | AG21: =IFERROR( IF(OR(V21="**Fixture Removal Only**",V21="**Lighting Controls Only**",V21="**Existing to Remain**"),"-", VLOOKUP(V21,ProposedTypeLookup,3,FALSE)), "-") -> - | AI21: =IFERROR(ROUND(IF($G21<$H21,($AN21*1000)/$G21,($AN21*1000)/$H21),0),"-") -> - | AJ21: - | AK21: - | AL21: - | AM21: =IFERROR(IF(VLOOKUP(AK21,ExistingTypeLookupControls,2,FALSE)="","-",VLOOKUP(AK21,ExistingTypeLookupControls,2,FALSE)),"-") -> - | AN21: =IFERROR(IF($BX21="R",$R21,IF($AB21=0,0,$R21-$AB21)),0) -> 0 | AO21: 0 | AP21: 0 | AQ21: 0 | AR21: 0 | AS21: 0 | AT21: 0 | AU21: 0 | AV21: 0 | AW21: 0 | AX21: 0 | AY21: 0 | AZ21: 0 | BA21: 0 | BB21: 0 | BE21: =IFERROR(IF($E21="","",OFFSET(HVACadjustment,MATCH($E21,HeatSource,0),HVACAreaOffset,1,1)),0) -> 0 | BF21: =IFERROR(AN21*F21*BE21,0) -> 0 | BG21: =IFERROR(IF(BX21="C",R21,AB21)*F21*AM21*BE21,0) -> 0 | BH21: =SUM(BF21:BG21) -> 0 | BK21: =IF(AND($BI21="",$BJ21=""),"",$G21*$BJ21*(1-$AH21)/1000) ->  | BL21: =IFERROR(IF($AB21=0,0,$R21-$BK21),0) -> 0 | BM21: =IFERROR($F21*$BL21*BE21,0) -> 0 | BN21: =IF(ISNUMBER(FIND("ER",DB21)),$AN21,0) -> 0 | BO21: =IFERROR($F21*$BN21*BE21,0) -> 0 | BP21: =IFERROR(IF($AN21-$BN21=0,0,$AN21-$BL21),0) -> 0 | BQ21: =IFERROR($F21*$BP21*BE21+BG21,0) -> 0 | BR21: 0 | BT21: =IFERROR(VLOOKUP(BS21,RebateTypeDesc,2,FALSE),"---") -> --- | BW21: =IFERROR( IF($BS21="E","",IF(AND($F21<4000,$F21>0),"T1", IF(AND($F21>=4000,$F21<6000),"T2", IF($F21>=6000,"T3","")))), "") ->  | BY21: =IFERROR(VLOOKUP(AK21,ExistingTypeLookupControls,3,FALSE),"") ->  | CB21: =IFERROR( IF(OR($BX21="C",$BX21="R",$BX21="X"),"-", IF(AND($BS21="E",$BU21="F",$BV21="S"),"ES", IF(OR($BS21="",$BU21="",$BV21="",$BW21=""),"-", CONCATENATE($BS21,IF(BD21="E","",$BU21),$BV21,$BW21,$BX21)))), "-") -> - | CC21: =IFERROR( IF($BS21="S",GetSpecialtyRate($BU21,$BW21,$BV21), OFFSET(INDIRECT("IncentiveRate"&IncentiveRateActive),MATCH(CB21,RebateTable,0),0)), 0) -> 0 | CD21: =IFERROR( IF(OR($DB21<>"",AND($BX21<>"A",$BX21<>"E"),CE21=0),"", "$"&CE21/$DC21& IF(AND($BS21<>"E",$BS21<>"O",OR($BU21="L",$BU21="LD")),"/ea (Lamp)","/ea (Fixt.)")& IF($AH21>0.1,"*","") ),"") ->  | CE21: =IFERROR( IF(DB21<>"",0, IF($V21="LED Components",ROUND(CC21*ComponentPercent,0)*$DC21, ROUND(CC21,0)*$DC21)), 0) -> 0 | CF21: =IF(AND(CE21<>"",CE21<>0),CE21+IF(CV21>0,CW21,0),0) -> 0 | CG21: - | CH21: =IFERROR(ROUND(OFFSET(INDIRECT("ControlsRateFixture"&IncentiveRateActive),MATCH($CG21,ControlsTable,0),0),0),"") ->  | CI21: =IFERROR(ROUND(OFFSET(INDIRECT("ControlsRateSensor"&IncentiveRateActive),MATCH($CG21,ControlsTable,0),0),0),"") ->  | CJ21: =IFERROR(IF($BX21="C",$CH21*$G21,$CH21*$H21),0) -> 0 | CK21: =IFERROR( IF(OR($BY21="CN",$BY21="CL"), IF($BX21="C",$G21*$CI21,$H21*$CI21), $CI21*$AL21),0) -> 0 | CL21: =IFERROR(IF(DB21="", IF(AND($CJ21<>"",$CK21<>""),MIN($CJ21,$CK21),0), ""),0) -> 0 | CM21: =IF(AND(CL21<>"",CL21<>0),CL21+IF(CY21>0,CY21,0),0) -> 0 | CN21: - | CP21: =IFERROR(IF($BX21="R",DC21*VLOOKUP(CN21,RemovalTable,2,FALSE),0),0) -> 0 | CQ21: FALSE | CR21: FALSE | CS21: FALSE | CT21: FALSE | CU21: TRUE | CV21: 0 | CW21: =IFERROR(IF($DB21="", IF(CV21=0,0, IF(BonusCap=0,ROUND(CV21*CE21,0), MIN(BonusCap,ROUND(CV21*CE21,0)) )),0),0) -> 0 | CX21: 0 | CY21: =IFERROR(IF(DB21="", IF(CX21=0,0, IF(BonusCap=0,ROUND(CX21*CL21,0), IF(CW21=BonusCap,0, IF((CW21+CX21*CL21)>BonusCap,BonusCap-CW21, ROUND(CX21*CL21,0))))),0),0) -> 0 | CZ21: =IFERROR( IF($DB21="", IF($BX21="R",$CP21,SUM(CE21,CL21)),0),0) -> 0 | DA21: 0 | DB21: =InputErrorCheck(E21,F21,L21,BS21,M21,Q21,G21,V21,W21,AA21,H21,AD21,BV21,AK21,AL21) ->  | DC21: =IFERROR(IF(OR($BX21="C",$BX21="X"),"-", IF($BX21="R",$G21, IF($G21<$H21, IF(AND($BS21<>"H",$BS21<>"E",$BS21<>"O",OR($BU21="L",$BU21="LD")),$W21*$G21, $G21), IF(AND($BS21<>"H",$BS21<>"E",$BS21<>"O",OR($BU21="L",$BU21="LD")),$X21, $H21)))),"") -> 0 | DF21: =IFERROR( IF(OR(SUM($CJ21)=0,SUM($CK21=0)),"", IF(CJ21>CK21,"$"&CI21&"/Sen", IF(OR(BY21="CN",BY21="CL"), IF(BX21="C","$"&ROUND(CL21/G21,1)&"/Sen","$"&ROUND(CL21/H21,1)&"/Sen"), "$"&ROUND(CL21/AL21,1)&"/Sen"))),"") ->  | DG21: =CW21+CY21 -> 0 | DH21: =CZ21 -> 0 | DI21: =IF($DB21="",CZ21+CW21+CY21,VLOOKUP(DB21,ErrorCheckingTable,3,FALSE)) -> 0
D22: 5 | E22: 0 | F22: 0 | G22: 0 | H22: 0 | I22: 0 | J22: --- | K22: =HLOOKUP("Fixture Type",InputTable,MATCH($D22,InputLineNumbers,0)+1,FALSE) -> 0 | L22: 0 | M22: 0 | N22: =G22*M22 -> 0 | O22: 0 | P22: 0 | Q22: 0 | R22: =IFERROR(($G22*$Q22*(1-MAX(0,$AH22-0.1)))/1000,"") -> 0 | T22: --- | U22: 0 | V22: 0 | W22: 0 | X22: =W22*H22 -> 0 | Y22: 0 | Z22: 0 | AD22: 0 | AG22: =IFERROR( IF(OR(V22="**Fixture Removal Only**",V22="**Lighting Controls Only**",V22="**Existing to Remain**"),"-", VLOOKUP(V22,ProposedTypeLookup,3,FALSE)), "-") -> - | AI22: =IFERROR(ROUND(IF($G22<$H22,($AN22*1000)/$G22,($AN22*1000)/$H22),0),"-") -> - | AJ22: - | AK22: - | AL22: - | AM22: =IFERROR(IF(VLOOKUP(AK22,ExistingTypeLookupControls,2,FALSE)="","-",VLOOKUP(AK22,ExistingTypeLookupControls,2,FALSE)),"-") -> - | AN22: =IFERROR(IF($BX22="R",$R22,IF($AB22=0,0,$R22-$AB22)),0) -> 0 | AO22: 0 | AP22: 0 | AQ22: 0 | AR22: 0 | AS22: 0 | AT22: 0 | AU22: 0 | AV22: 0 | AW22: 0 | AX22: 0 | AY22: 0 | AZ22: 0 | BA22: 0 | BB22: 0 | BE22: =IFERROR(IF($E22="","",OFFSET(HVACadjustment,MATCH($E22,HeatSource,0),HVACAreaOffset,1,1)),0) -> 0 | BF22: =IFERROR(AN22*F22*BE22,0) -> 0 | BG22: =IFERROR(IF(BX22="C",R22,AB22)*F22*AM22*BE22,0) -> 0 | BH22: =SUM(BF22:BG22) -> 0 | BK22: =IF(AND($BI22="",$BJ22=""),"",$G22*$BJ22*(1-$AH22)/1000) ->  | BL22: =IFERROR(IF($AB22=0,0,$R22-$BK22),0) -> 0 | BM22: =IFERROR($F22*$BL22*BE22,0) -> 0 | BN22: =IF(ISNUMBER(FIND("ER",DB22)),$AN22,0) -> 0 | BO22: =IFERROR($F22*$BN22*BE22,0) -> 0 | BP22: =IFERROR(IF($AN22-$BN22=0,0,$AN22-$BL22),0) -> 0 | BQ22: =IFERROR($F22*$BP22*BE22+BG22,0) -> 0 | BR22: 0 | BT22: =IFERROR(VLOOKUP(BS22,RebateTypeDesc,2,FALSE),"---") -> --- | BW22: =IFERROR( IF($BS22="E","",IF(AND($F22<4000,$F22>0),"T1", IF(AND($F22>=4000,$F22<6000),"T2", IF($F22>=6000,"T3","")))), "") ->  | CB22: =IFERROR( IF(OR($BX22="C",$BX22="R",$BX22="X"),"-", IF(AND($BS22="E",$BU22="F",$BV22="S"),"ES", IF(OR($BS22="",$BU22="",$BV22="",$BW22=""),"-", CONCATENATE($BS22,IF(BD22="E","",$BU22),$BV22,$BW22,$BX22)))), "-") -> - | CC22: =IFERROR( IF($BS22="S",GetSpecialtyRate($BU22,$BW22,$BV22), OFFSET(INDIRECT("IncentiveRate"&IncentiveRateActive),MATCH(CB22,RebateTable,0),0)), 0) -> 0 | CD22: =IFERROR( IF(OR($DB22<>"",AND($BX22<>"A",$BX22<>"E"),CE22=0),"", "$"&CE22/$DC22& IF(AND($BS22<>"E",$BS22<>"O",OR($BU22="L",$BU22="LD")),"/ea (Lamp)","/ea (Fixt.)")& IF($AH22>0.1,"*","") ),"") ->  | CE22: 0 | CF22: =IF(AND(CE22<>"",CE22<>0),CE22+IF(CV22>0,CW22,0),0) -> 0 | CG22: - | CH22: =IFERROR(ROUND(OFFSET(INDIRECT("ControlsRateFixture"&IncentiveRateActive),MATCH($CG22,ControlsTable,0),0),0),"") ->  | CI22: =IFERROR(ROUND(OFFSET(INDIRECT("ControlsRateSensor"&IncentiveRateActive),MATCH($CG22,ControlsTable,0),0),0),"") ->  | CJ22: =IFERROR(IF($BX22="C",$CH22*$G22,$CH22*$H22),0) -> 0 | CK22: =IFERROR( IF(OR($BY22="CN",$BY22="CL"), IF($BX22="C",$G22*$CI22,$H22*$CI22), $CI22*$AL22),0) -> 0 | CL22: =IFERROR(IF(DB22="", IF(AND($CJ22<>"",$CK22<>""),MIN($CJ22,$CK22),0), ""),0) -> 0 | CM22: =IF(AND(CL22<>"",CL22<>0),CL22+IF(CY22>0,CY22,0),0) -> 0 | CN22: - | CP22: =IFERROR(IF($BX22="R",DC22*VLOOKUP(CN22,RemovalTable,2,FALSE),0),0) -> 0 | CQ22: FALSE | CR22: FALSE | CS22: FALSE | CT22: FALSE | CU22: TRUE | CV22: 0 | CW22: =IFERROR(IF($DB22="", IF(CV22=0,0, IF(BonusCap=0,ROUND(CV22*CE22,0), MIN(BonusCap,ROUND(CV22*CE22,0)) )),0),0) -> 0 | CX22: 0 | CY22: =IFERROR(IF(DB22="", IF(CX22=0,0, IF(BonusCap=0,ROUND(CX22*CL22,0), IF(CW22=BonusCap,0, IF((CW22+CX22*CL22)>BonusCap,BonusCap-CW22, ROUND(CX22*CL22,0))))),0),0) -> 0 | CZ22: =IFERROR( IF($DB22="", IF($BX22="R",$CP22,SUM(CE22,CL22)),0),0) -> 0 | DA22: 0 | DB22: =InputErrorCheck(E22,F22,L22,BS22,M22,Q22,G22,V22,W22,AA22,H22,AD22,BV22,AK22,AL22) ->  | DC22: =IFERROR(IF(OR($BX22="C",$BX22="X"),"-", IF($BX22="R",$G22, IF($G22<$H22, IF(AND($BS22<>"H",$BS22<>"E",$BS22<>"O",OR($BU22="L",$BU22="LD")),$W22*$G22, $G22), IF(AND($BS22<>"H",$BS22<>"E",$BS22<>"O",OR($BU22="L",$BU22="LD")),$X22, $H22)))),"") -> 0 | DF22: =IFERROR( IF(OR(SUM($CJ22)=0,SUM($CK22=0)),"", IF(CJ22>CK22,"$"&CI22&"/Sen", IF(OR(BY22="CN",BY22="CL"), IF(BX22="C","$"&ROUND(CL22/G22,1)&"/Sen","$"&ROUND(CL22/H22,1)&"/Sen"), "$"&ROUND(CL22/AL22,1)&"/Sen"))),"") ->  | DG22: =CW22+CY22 -> 0 | DH22: =CZ22 -> 0 | DI22: =IF($DB22="",CZ22+CW22+CY22,VLOOKUP(DB22,ErrorCheckingTable,3,FALSE)) -> 0
G23: =SUM(G18:G22) -> 0 | H23: =SUM(H18:H22) -> 0 | R23: =SUMIF($DB$18:$DB$22,"",R18:R22) -> 0 | AB23: =SUMIF($DB$18:$DB$22,"",AB18:AB22) -> 0 | AN23: =SUM(AN18:AN22) -> 0 | AO23: =SUMIF($DB$18:$DB$22,"",AO18:AO22) -> 0 | AP23: 0 | AQ23: 0 | AR23: 0 | AS23: 0 | AT23: 0 | AU23: 0 | AV23: 0 | AW23: 0 | AX23: 0 | AY23: 0 | AZ23: 0 | BA23: 0 | BB23: =SUM(BB18:BB22) -> 0 | BC23: =SUM(BC18:BC22) -> 0 | BD23: =SUM(BD18:BD22) -> 0 | BF23: =SUM(BF18:BF22) -> 0 | BG23: =SUM(BG18:BG22) -> 0 | BH23: =SUM(BH18:BH22) -> 0 | BL23: =SUM(BL18:BL22) -> 0 | BM23: 0 | BN23: 0 | BO23: 0 | BP23: 0 | BQ23: 0 | BR23: 0 | CE23: =SUM(CE18:CE22) -> 0 | CF23: =SUM(CF18:CF22) -> 0 | CL23: =SUM(CL18:CL22) -> 0 | CM23: =SUM(CM18:CM22) -> 0 | CP23: =SUM(CP18:CP22) -> 0 | CT23: Bonus Cap | CU23: 0 | CV23: Totals: | CZ23: =MIN(TotalCost,SUM(CZ18:CZ22)) -> 0 | DA23: =IF(SUM(TotalCost)=0,ProjDevMin, IF(AND(PDItoCust,NOT(AoF)),MAX(0,MIN(TotalCost-MaxRebate,MAX(SUM(DA18:DA22),ProjDevMin))), MAX(SUM(DA18:DA22),ProjDevMin))) -> 50 | DH23: Total Maximum Rebate: | DI23: =MIN(TotalCost,SUM(DI18:DI22)) -> 0
AP24: kW Controls | AQ24: =SUMIF(CL18:CL22,">0",AN18:AN22) -> 0 | AS24: #Fixts Controlled | AT24: =SUMIF(CL18:CL22,">0",H18:H22) -> 0 | DH24: Maximum Rebate / kWh: | DI24: =IFERROR($DI$23/$BH$23,"") -> 
AG26: Existing Energy Use as a % of Facility Total Electrical Use: | AH26: =ExistingPercentofTotalUse ->  | BC26: Total Electrical Energy Savings: | BD26: =SUM($BH$23) -> 0
C29: Notes:
DJ31: =Version -> Version April 2025 - Effective Date April 1st, 2025

Sheet Verification Report (hidden)
C3: =BannerText -> Energy Services ● eebiz@snopud.com ● www.snopud.com
C5: Energy Efficiency Project Verification Report
C7: Project Name | O7: PUD Staff | R7: Verification Date
C8: =ProjectName -> 0 | O8: =AssignedStaff -> 0
C9: Facility Name | I9: Facility Address | O9: City | R9: State | S9: Zip Code
C10: =FacilityName -> Facility Info | I10: =App_FacAdd -> 0 | O10: =App_FacCity -> 0 | R10: WA | S10: =FacZip -> 0
C12: Project Characteristic | L12: Project Type
E13: Existing Building | I13: New Construction | N13: Lighting Retrofits | R13: HVAC System
E14: Equipment Upgrade | I14: Major Renovation | N14: Rebates - Small HVAC Unitary | R14: Large HVAC Unitary
E15: New installation | I15: Remodel T/I | N15: Rebates - Others | R15: Process Equipment
E16: New addition | I16: Change of Use | N16: Compressed Air | R16: Custom - Others
C18: Measurement & Verification (M&V) | J18: (check all that apply)
E19: Pre-installation verification at site | N19: Post-installation verification at site
E20: Pre-installation trend data | N20: Post-installation trend data
E21: Pre-installation metering | N21: Post-installation metering
E22: Progress inspection | N22: Pre- & post-installation verification of facility energy use
C24: Actions and Findings
C46: Recommendations
C52: =Version -> Version April 2025 - Effective Date April 1st, 2025 | O52: Initial: | R52: Date:

Sheet Payment Request (hidden)
C3: =BannerText -> Energy Services ● eebiz@snopud.com ● www.snopud.com
C5: Energy Efficiency Project Incentive Payment
J8: Payment Processing
C9: To | J9: Warrant #
C10: Accounts Payable
C11: From | J11: Purchase Requisition (PR) # | P11: Mail Check Flag
C12: Project Lead | P12: 1
C13: Date | J13: Purchase Order (PO) / Service Entry Sheet (SES) #
J15: Residential | L15: Non-Residential
D16: Please remit payment to Recipient | L16: X
D17: Please deliver check to Energy Services
C19: Payment Notes:
C22: RECIPIENT INFORMATION
C23: Vendor Name (Customer) | L23: Vendor #
C24: =IF(AoF,ContractorW9Name,CustW9Name) -> 0 | L24: =IF(AoF,ContVendor,CustVendor) -> 0
C25: Mailing Address | H25: City | K25: State | L25: Zip Code
C26: =IF(AoF,ContractorMailingAddress,CustMailingAddress) -> 0 | H26: =IF(AoF,ContractorCity,CustCity) -> 0 | K26: =IF(AoF,ContractorState,CustState) -> 0 | L26: =IF(AoF,ContractorZip,CustZip) -> 0
C28: ACCOUNTS PAYABLE INFORMATION
C29: Project Name | H29: Project Engineer | K29: Amount
C30: =ProjectName -> 0 | H30: =AssignedStaff -> 0 | K30: =IF(OR(AND(NOT(AoF),PDItoCust),AND(AoF,NOT(PDItoCust))), SUM(MIN(FinalProjCost,SUM(FinalBaseIncentive,FinalBonusIncentive)),FinalAdminIncentive), MIN(FinalProjCost,SUM(FinalBaseIncentive,FinalBonusIncentive))) -> 0
C31: G/L Account - Cost Element | G31: Internal Order # | J31: WBS Order Description (EE Program Name)
C32: 614219 | G32: 900314 | J32: Lighting Efficiency
C34: ENERGY EFFICIENCY PROJECT INFORMATION
C35: Business Name | L35: Vendor #
C36: =CustW9Name -> 0 | L36: =CustVendor -> 0
C37: Facility Name | H37: Average Load Reduction | J37: Winter Peak Load Reduction | L37: Annual Energy Savings
C38: =FacilityName -> Facility Info | H38: =kWReduction -> 0 | J38: =kWReductionPeak -> 0 | L38: =TotalSavings -> 0
C39: Facility Address | H39: City | K39: State | L39: Zip Code
C40: =App_FacAdd -> 0 | H40: =App_FacCity -> 0 | K40: WA | L40: =App_FacZip -> 0
C41: Contact Name | H41: Email | L41: Phone Number
C42: =CustPrimaryContactName -> 0 | H42: =CustPrimaryContactEmail -> 0 | L42: =CustPrimaryContactPhone -> 0
C44: APPROVAL
C45: Approval Signature(s) | G45: Date | H45: Name | K45: Title
K46: Project Lead
C47: =Version -> Version April 2025 - Effective Date April 1st, 2025
C50: Below For Non-Assignment of Funds Only
C51: =BannerText -> Energy Services ● eebiz@snopud.com ● www.snopud.com
C53: Energy Efficiency Project Development Incentive Payment
J56: Payment Processing
C57: To | J57: Warrant #
C58: Accounts Payable
C59: From | J59: Purchase Requisition (PR) # | P59: Mail Check Flag
C60: Project Lead | P60: 1
C61: Date | J61: Purchase Order (PO) / Service Entry Sheet (SES) #
C62: =PayReqDate -> 00:00:00
J63: Residential | L63: Non-Residential
C64: Please remit payment to Recipient | L64: X
C67: Payment Notes:
C70: RECIPIENT INFORMATION
C71: Vendor Name (Customer) | L71: Vendor #
C72: =IF(PDItoCust,CustW9Name,ContractorW9Name) -> 0 | L72: =IF(PDItoCust,CustVendor,ContVendor) -> 0
C73: Mailing Address | H73: City | K73: State | L73: Zip Code
C74: =IF(PDItoCust,CustMailingAddress,ContractorMailingAddress) -> 0 | H74: =IF(PDItoCust,CustCity,ContractorCity) -> 0 | K74: =IF(PDItoCust,CustState,ContractorState) -> 0 | L74: =IF(PDItoCust,CustZip,ContractorZip) -> 0
C76: ACCOUNTS PAYABLE INFORMATION
C77: Project Name | H77: Project Engineer | K77: Amount
C78: =ProjectName -> 0 | H78: =AssignedStaff -> 0 | K78: =FinalAdminIncentive -> 0
C79: G/L Account - Cost Element | G79: Internal Order # | J79: WBS Order Description (EE Program Name)
C80: 614219 | G80: 900314 | J80: Lighting Efficiency
C82: ENERGY EFFICIENCY PROJECT INFORMATION
C83: Business Name | L83: Vendor #
C84: =CustW9Name -> 0 | L84: =CustVendor -> 0
C85: Facility Name | H85: Average Load Reduction | J85: Winter Peak Load Reduction | L85: Annual Energy Savings
C86: =FacilityName -> Facility Info | H86: =kWReduction -> 0 | J86: =kWReductionPeak -> 0 | L86: =TotalSavings -> 0
C87: Facility Address | H87: City | K87: State | L87: Zip Code
C88: =App_FacAdd -> 0 | H88: =App_FacCity -> 0 | K88: WA | L88: =App_FacZip -> 0
C89: Contact Name | H89: Email | L89: Phone Number
C90: =CustPrimaryContactName -> 0 | H90: =CustPrimaryContactEmail -> 0 | L90: =CustPrimaryContactPhone -> 0
C92: APPROVAL
C93: Approval Signature(s) | G93: Date | H93: Name | K93: Title
K94: Project Lead
C95: =Version -> Version April 2025 - Effective Date April 1st, 2025
B103: Customer was original payee but payment is now going to the contractor. Business name and vendor number has been updated to the contractor’s information.
B104: Contractor was original payee but payment is now going to the customer. Business name and vendor number has been updated to the customer’s information.

Sheet Pay Letter - Assignee (hidden)
B9: =CONCATENATE(TEXT(TODAY(),"mmmm d, yyyy")) -> April 1, 2025
B12: =IF(ContractorW9Name="Self-Install","Go To Application Worksheet and Fill-In Contractor Company Name to Self-Populate",ContractorW9Name) -> 0
B13: =IF(ContractorContactName="","Go To Application Worksheet and Fill-In Contractor Contact Name to Self-Populate","Attn: "&ContractorContactName) -> Attn: 0
B14: =IF(ContractorMailingAddress=0,"Go To Application Worksheet and Fill-In Contractor Street Address to Self-Populate",ContractorMailingAddress) -> Go To Application Worksheet and Fill-In Contractor Street Address to Self-Populate
B15: =IF(ContractorCity=0,"Go To Application Worksheet and Fill-In, City, State, Zip Code to Self-Populate",ContractorCity&", "&ContractorState&" "&ContractorZip) -> Go To Application Worksheet and Fill-In, City, State, Zip Code to Self-Populate
B17: =IF(FacilityName="", "Go To Application Worksheet and Fill-In Facility/Business Name to Self-Populate ","Re: Payment for "&FacilityName&" LED Lighting Rebate") -> Re: Payment for Facility Info LED Lighting Rebate
B19: =IFERROR(IF(ContractorW9Name="","Go To Application Worksheet and Fill-In Contractor Contact Name to Self-Populate","Dear "&LEFT(ContractorContactName,FIND(" ",ContractorContactName,1)-1)&","),"Go To Application Worksheet and Fill-In Contractor Contact Name to Self-Populate") -> Go To Application Worksheet and Fill-In Contractor Contact Name to Self-Populate
B21: ="The PUD has approved payment to "&ContractorW9Name& IF(App_ContPayPref="Electronic (ACH)"," via ACH","")& " in the amount of "& IF(AND(AoF,NOT(PDItoCust)), IFERROR(DOLLAR(FinalBaseIncentive+FinalBonusIncentive,2),0)&" as assigned by "&CustW9Name&" and "&IFERROR(DOLLAR(FinalAdminIncentive,2),0)&" for the development and admininstration of the energy efficiency project above.", IF(AND(AoF,PDItoCust), IFERROR(DOLLAR(FinalBaseIncentive+FinalBonusIncentive,2),0)&" as assigned by "&CustW9Name&" for the energy efficiency project above.", IFERROR(DOLLAR(FinalAdminIncentive,2),0)&" for the development and administration of the energy efficiency project above.")) -> The PUD has approved payment to 0 in the amount of $0.00 for the development and administration of the energy efficiency project above.
B23: Thank you for participating in our Energy Efficiency programs. We are looking forward to working with you again in the near future. Please don't hesitate to contact me with any questions you may have.
B25: Sincerely,
B27: =IF(AssignedStaff="","Engineer",AssignedStaff) -> Engineer | C27: <DropDown List For Engineer
B28: =B27 -> Engineer
B29: =IFERROR(VLOOKUP($B$28,PayLetterContactInfo,2,FALSE),"Title") -> Title
B30: Snohomish County PUD No.1
B31: =IFERROR(VLOOKUP($B$28,PayLetterContactInfo,3,FALSE),"Phone") -> Phone
B32: =IFERROR(VLOOKUP($B$28,PayLetterContactInfo,4,FALSE),"Email") -> Email
B34: =IF(ProjectName="","Reference: SnoPUD Project Name", "Reference: SnoPUD Project Name "&ProjectName) -> Reference: SnoPUD Project Name

Sheet Pay Letter - Customer (hidden)
B9: =CONCATENATE(TEXT(TODAY(),"mmmm d, yyyy")) -> April 1, 2025
B12: =IF(CustW9Name=0,"Cust. Business Name ",CustW9Name) -> Cust. Business Name
B13: =IF(CustPrimaryContactName=0,"Business Contact Name ","Attn: "&CustPrimaryContactName) -> Business Contact Name
B14: =IF(CustMailingAddress=0,"Business Mailing Address ",CustMailingAddress) -> Business Mailing Address
B15: =IF(CustCity=0,"City, State, Zip Code",CustCity&", "&CustState&" "&CustZip) -> City, State, Zip Code
B17: =IF(FacilityName="", "Facility/Business Name","Re: Payment for "&FacilityName&" LED Lighting Rebate") -> Re: Payment for Facility Info LED Lighting Rebate
B19: =IF(CustPrimaryContactName=0,"Go To Application Worksheet and Fill-In Contractor Contact Name to Self-Populate","Dear "&LEFT(CustPrimaryContactName,FIND(" ",CustPrimaryContactName,1)-1)&",") -> Go To Application Worksheet and Fill-In Contractor Contact Name to Self-Populate
B21: ="Thank you for your conservation efforts! The PUD has approved payment to "& IF(AoF,"your Assignee, "&ContractorW9Name,CustW9Name)& ", in the amount of "&DOLLAR(SUM(FinalBaseIncentive,FinalBonusIncentive),2)&" for the energy efficiency project above"& IF(PDItoCust,", as well as a project development incentive payment of "&DOLLAR(SUM(FinalAdminIncentive),2)& IF(AoF," to "&CustW9Name,""),"")& "." -> Thank you for your conservation efforts! The PUD has approved payment to 0, in the amount of $0.00 for the energy efficiency project above, as well as a project development incentive payment of $0.00.
B22: ="This project is estimated to save "&IFERROR(DOLLAR(EstAnnualCostSavings,0),0)&" per year in avoided energy costs." -> This project is estimated to save $0 per year in avoided energy costs.
C23: TRUE
B24: Energy conservation is our lowest cost resource! As our community's energy needs grow, it is more important than ever that we raise awareness of energy efficiency and help all of us use energy wisely.
B26: Your facility's next opportunities are: | C26: Hide or Unhide any cells you don't need
B27: Building Controls | C27: <DropDown List For Opportunities
B28: Commercial Kitchen Equipment | C28: <DropDown List For Opportunities
B29: Compressed Air | C29: <DropDown List For Opportunities
B30: Engine Block Heaters | C30: <DropDown List For Opportunities
B31: Heat Pumps (including ductless) | C31: <DropDown List For Opportunities
B33: Thank you for participating in our Energy Efficiency programs. We are looking forward to working with you again in the near future. Please don't hesitate to contact me with any questions you may have.
B35: Sincerely,
B37: =IF(AssignedStaff="","Engineer",AssignedStaff) -> Engineer | C37: <DropDown List For Engineer
B38: =B37 -> Engineer
B39: =IFERROR(VLOOKUP($B$37,PayLetterContactInfo,2,FALSE),"Title") -> Title
B40: Snohomish County PUD No.1
B41: =IFERROR(VLOOKUP($B$37,PayLetterContactInfo,3,FALSE),"Phone") -> Phone
B42: =IFERROR(VLOOKUP($B$37,PayLetterContactInfo,4,FALSE),"Email") -> Email
B44: =IF(ProjectName="","Reference: SnoPUD Project Name", "Reference: SnoPUD Project Name "&ProjectName) -> Reference: SnoPUD Project Name

Sheet Input Tables (hidden)
B2: Workbook Version | C2: L | E2: Rebate Cap | F2: PDI Minimum | G2: PDI Base Rate | H2: PDI Net. Controls | I2: PDI LLLCs | J2: Bonus Incentive | AH2: Top | AI2: Left | AJ2: Open?
B3: Version | C3: Effective Date | E3: =IF(TotalCost=0,500000,MIN(TotalCost,500000)) -> 500000 | F3: 50 | G3: =IF(NXTLevelCert,OFFSET(LookupPDI_NXT,MATCH(IncentiveRateActive,LookupIncentiveRates,0),0), OFFSET(LookupPDI_Base,MATCH(IncentiveRateActive,LookupIncentiveRates,0),0)) -> 0.02 | H3: =OFFSET(LookupPDI_Networked,MATCH(IncentiveRateActive,LookupIncentiveRates,0),0) -> 0.01 | I3: =OFFSET(LookupPDI_LLLC,MATCH(IncentiveRateActive,LookupIncentiveRates,0),0) -> 0.015 | J3: 0 | AG3: Fixt Schedule | AJ3: FALSE | AK3: Open Schedule after Edit
B4: April 2025 | C4: April 1st, 2025 | AG4: Add Existing | AK4: QRT to Edit
C5: ="Version "&$B$4&" - Effective Date "&$C$4 -> Version April 2025 - Effective Date April 1st, 2025 | AG5: Add New | AK5: Fixt to Select
F6: Fixture Input Options | I6: Lighting Input Table 'Enabled' Validation Map (i.e. False = Locked)
B7: Fixture Type | C7: Type Lookup | D7: Rebate Type | E7: RebateType Lookup | F7: Lamp Qty | G7: Lamp Wattage | H7: Ballast Type | I7: Fixture Type | J7: # of Fixtures | K7: # of Lamps / Fixture | L7: # of Lamps / Fixture Validation | M7: Lamp Wattage | N7: Lamp Wattage Validation Type | O7: Ballast Type | P7: Watts / Fixture | Q7: Watts / Fixture Validation
I8: TRUE | J8: TRUE | K8: FALSE | L8: FALSE | M8: FALSE | N8: 0 | O8: FALSE | P8: FALSE | Q8: FALSE | S8: Lamp / Fixture Wattage Table
B9: Linear Fluor - 2' T8 | C9: LF2ftT8 | D9: Linear | E9: L | F9: 1,2,3,4,6 | G9: 17W,40W (Biax),55W (Biax) | H9: LBF,NBF,HBF | I9: TRUE | J9: TRUE | K9: TRUE | L9: TRUE | M9: TRUE | N9: 1 | O9: TRUE | P9: FALSE | Q9: FALSE | S9: Lamp w/ Ballast | T9: 1L | U9: 2L | V9: 3L | W9: 4L | X9: 5L | Y9: 6L | Z9: 7L | AA9: 8L | AE9: Existing Validation List | AG9: Existing Lighting ID Reference Table | AP9: Proposed Validation List | AR9: Proposed Lighting ID Reference Table
B10: Linear Fluor - 4' T8 | C10: LF4ftT8 | D10: Linear | E10: L | F10: 1,2,3,4,6,8 | G10: 25W,28W,32W | H10: LBF,NBF,HBF | I10: TRUE | J10: TRUE | K10: TRUE | L10: TRUE | M10: TRUE | N10: 1 | O10: TRUE | P10: FALSE | Q10: FALSE | S10: IncA(40W) | T10: 40 | U10: =T10*2 -> 80 | AG10: Fixt ID | AH10: Lighting Technology | AI10: Fixture Type | AJ10: Lamps / Fixture | AK10: Lamp Wattage | AL10: Watts / Fixture | AM10: Ballast Type | AN10: Notes | AR10: Fixt ID | AS10: Lighting Technology | AT10: Make | AU10: Model # | AV10: Wattage | AW10: Qualified | AX10: Power Factor < 0.9 | AY10: 5+ Year Warranty | AZ10: uL / ETL Certification | BA10: Unit Cost | BB10: Controls | BC10: Fixture Type | BD10: Lamps / Fixture | BE10: Control Strategies | BF10: Controls DLC
B11: Linear Fluor - 2' T5/HO | C11: LF2ftT5 | D11: Linear | E11: L | F11: 1,2,3,4,6 | G11: 14W,24W (HO) | H11: Std-Elect | I11: TRUE | J11: TRUE | K11: TRUE | L11: TRUE | M11: TRUE | N11: 1 | O11: TRUE | P11: FALSE | Q11: FALSE | S11: IncA(60W) | T11: 60 | U11: =T11*2 -> 120 | AE11: Add New | AP11: Add New
B12: Linear Fluor - 4' T5/HO | C12: LF4ftT5 | D12: Linear | E12: L | F12: 1,2,3,4,6,8 | G12: 25-26W,28W,44-47W (HO),49-51W (HO),54W (HO) | H12: Std-Elect | I12: TRUE | J12: TRUE | K12: TRUE | L12: TRUE | M12: TRUE | N12: 1 | O12: TRUE | P12: FALSE | Q12: FALSE | S12: IncA(75W) | T12: 75 | U12: =T12*2 -> 150 | AD12: 1 | AE12: =IFERROR(INDEX(IDRefTable_Existing[Fixt ID],AD12),"") -> 0 | AP12: =IFERROR(INDEX(IDRefTable_Proposed[Fixt ID],AD12),"") -> 0
B13: Linear Fluor - 2' T12 | C13: LF2ftT12 | D13: T12Linear | E13: L | F13: 1,2,3,4 | G13: 20W | H13: All | I13: TRUE | J13: TRUE | K13: TRUE | L13: TRUE | M13: TRUE | N13: 1 | O13: TRUE | P13: FALSE | Q13: FALSE | S13: IncA(100W) | T13: 100 | U13: =T13*2 -> 200 | AD13: =AD12+1 -> 2 | AE13: =IFERROR(INDEX(IDRefTable_Existing[Fixt ID],AD13),"") ->  | AP13: =IFERROR(INDEX(IDRefTable_Proposed[Fixt ID],AD13),"") -> 
B14: Linear Fluor - 4' T12 | C14: LF4ftT12 | D14: T12Linear | E14: 4'T12-L | F14: 1,2,3,4,6 | G14: 34W-40W | H14: All | I14: TRUE | J14: TRUE | K14: TRUE | L14: TRUE | M14: TRUE | N14: 1 | O14: TRUE | P14: FALSE | Q14: FALSE | S14: Inc(5W) | T14: 5 | U14: =T14*2 -> 10 | AD14: =AD13+1 -> 3 | AE14: =IFERROR(INDEX(IDRefTable_Existing[Fixt ID],AD14),"") ->  | AP14: =IFERROR(INDEX(IDRefTable_Proposed[Fixt ID],AD14),"") -> 
B15: Linear Fluor - 8' T12 | C15: LF8ftT12 | D15: T12Linear | E15: 8'T12-L | F15: 1,2,3,4 | G15: 60W-75W,95W-110W,185W-215W | H15: All | I15: TRUE | J15: TRUE | K15: TRUE | L15: TRUE | M15: TRUE | N15: 1 | O15: TRUE | P15: FALSE | Q15: FALSE | S15: Inc(7W) | T15: 7 | U15: =T15*2 -> 14 | AD15: 4 | AE15: =IFERROR(INDEX(IDRefTable_Existing[Fixt ID],AD15),"") ->  | AP15: =IFERROR(INDEX(IDRefTable_Proposed[Fixt ID],AD15),"") -> 
B16: Linear (Other) | C16: LFOther | D16: Linear | E16: L | F16: N/A | G16: N/A | H16: N/A | I16: TRUE | J16: TRUE | K16: FALSE | L16: FALSE | M16: FALSE | N16: 0 | O16: FALSE | P16: TRUE | Q16: TRUE | S16: Inc(10W) | T16: 10 | U16: 20 | AD16: 5 | AE16: =IFERROR(INDEX(IDRefTable_Existing[Fixt ID],AD16),"") ->  | AP16: =IFERROR(INDEX(IDRefTable_Proposed[Fixt ID],AD16),"") -> 
B17: Metal Halide | C17: MH | D17: HID | E17: H | F17: 1 | G17: 35W,50W,70W,100W,150W,175W,200W,250W,320W,400W,750W,1000W,1500W | H17: Mag,Pulse-Start | I17: TRUE | J17: TRUE | K17: TRUE | L17: TRUE | M17: TRUE | N17: 1 | O17: TRUE | P17: FALSE | Q17: FALSE | S17: Inc(15W) | T17: 15 | U17: 30 | AD17: 6 | AE17: =IFERROR(INDEX(IDRefTable_Existing[Fixt ID],AD17),"") ->  | AP17: =IFERROR(INDEX(IDRefTable_Proposed[Fixt ID],AD17),"") -> 
B18: Ceramic Metal Halide | C18: CMH | D18: HID | E18: H | F18: 1,2 | G18: 20W,39W,50W,70W,100W,150W | H18: Elect | I18: TRUE | J18: TRUE | K18: TRUE | L18: TRUE | M18: TRUE | N18: 1 | O18: TRUE | P18: FALSE | Q18: FALSE | S18: Inc(25W) | T18: 25 | U18: 50 | AD18: 7 | AE18: =IFERROR(INDEX(IDRefTable_Existing[Fixt ID],AD18),"") ->  | AP18: =IFERROR(INDEX(IDRefTable_Proposed[Fixt ID],AD18),"") -> 
B19: High Pressure Sodium | C19: HPS | D19: HID | E19: H | F19: 1 | G19: 35W,50W,70W,100W,150W,200W,250W,310W,400W,600W,750W,1000W | H19: Mag | I19: TRUE | J19: TRUE | K19: TRUE | L19: TRUE | M19: TRUE | N19: 1 | O19: TRUE | P19: FALSE | Q19: FALSE | S19: Inc(40W) | T19: 40 | U19: 80 | AD19: 8 | AE19: =IFERROR(INDEX(IDRefTable_Existing[Fixt ID],AD19),"") ->  | AP19: =IFERROR(INDEX(IDRefTable_Proposed[Fixt ID],AD19),"") -> 
B20: Low Pressure Sodium | C20: LPS | D20: HID | E20: H | F20: 1 | G20: 18W,35W,55W,90W,135W,180W | H20: Mag | I20: TRUE | J20: TRUE | K20: TRUE | L20: TRUE | M20: TRUE | N20: 1 | O20: TRUE | P20: FALSE | Q20: FALSE | S20: Inc(50W) | T20: 50 | U20: 100 | AD20: 9 | AE20: =IFERROR(INDEX(IDRefTable_Existing[Fixt ID],AD20),"") ->  | AP20: =IFERROR(INDEX(IDRefTable_Proposed[Fixt ID],AD20),"") -> 
B21: Mercury Vapor | C21: MV | D21: HID | E21: H | F21: 1 | G21: 100W,175W,250W,400W,1000W | H21: Mag | I21: TRUE | J21: TRUE | K21: TRUE | L21: TRUE | M21: TRUE | N21: 1 | O21: TRUE | P21: FALSE | Q21: FALSE | S21: Inc(60W) | T21: 60 | U21: 120 | AD21: 10 | AE21: =IFERROR(INDEX(IDRefTable_Existing[Fixt ID],AD21),"") ->  | AP21: =IFERROR(INDEX(IDRefTable_Proposed[Fixt ID],AD21),"") -> 
B22: HID (Other) | C22: HIDOther | D22: HID | E22: H | F22: N/A | G22: N/A | H22: N/A | I22: TRUE | J22: TRUE | K22: FALSE | L22: FALSE | M22: FALSE | N22: 0 | O22: FALSE | P22: TRUE | Q22: TRUE | S22: Inc(65W) | T22: 65 | U22: =T22*2 -> 130 | AD22: 11 | AE22: =IFERROR(INDEX(IDRefTable_Existing[Fixt ID],AD22),"") ->  | AP22: =IFERROR(INDEX(IDRefTable_Proposed[Fixt ID],AD22),"") -> 
B23: eHID | C23: eHID | D23: HID | E23: H | F23: N/A | G23: N/A | H23: N/A | I23: TRUE | J23: TRUE | K23: FALSE | L23: FALSE | M23: FALSE | N23: 0 | O23: FALSE | P23: TRUE | Q23: TRUE | S23: Inc(75W) | T23: 75 | U23: 150 | AD23: 12 | AE23: =IFERROR(INDEX(IDRefTable_Existing[Fixt ID],AD23),"") ->  | AP23: =IFERROR(INDEX(IDRefTable_Proposed[Fixt ID],AD23),"") -> 
B24: Plasma | C24: Plas | D24: HID | E24: H | F24: N/A | G24: N/A | H24: N/A | I24: TRUE | J24: TRUE | K24: FALSE | L24: FALSE | M24: FALSE | N24: 0 | O24: FALSE | P24: TRUE | Q24: TRUE | S24: Inc(90W) | T24: 90 | U24: 180 | AD24: 13 | AE24: =IFERROR(INDEX(IDRefTable_Existing[Fixt ID],AD24),"") ->  | AP24: =IFERROR(INDEX(IDRefTable_Proposed[Fixt ID],AD24),"") -> 
B25: Induction | C25: Ind | D25: HID | E25: H | F25: N/A | G25: N/A | H25: N/A | I25: TRUE | J25: TRUE | K25: FALSE | L25: FALSE | M25: FALSE | N25: 0 | O25: FALSE | P25: TRUE | Q25: TRUE | S25: Inc(100W) | T25: 100 | U25: 200 | AD25: 14 | AE25: =IFERROR(INDEX(IDRefTable_Existing[Fixt ID],AD25),"") ->  | AP25: =IFERROR(INDEX(IDRefTable_Proposed[Fixt ID],AD25),"") -> 
B26: Exit Sign | C26: Exit | D26: Exit | E26: E | F26: N/A | G26: INC,CFL | H26: N/A | I26: TRUE | J26: TRUE | K26: FALSE | L26: FALSE | M26: TRUE | N26: 1 | O26: FALSE | P26: FALSE | Q26: FALSE | S26: Inc(120W) | T26: 120 | U26: 240 | AD26: 15 | AE26: =IFERROR(INDEX(IDRefTable_Existing[Fixt ID],AD26),"") ->  | AP26: =IFERROR(INDEX(IDRefTable_Proposed[Fixt ID],AD26),"") -> 
B27: Existing LED | C27: Other | D27: Other | E27: O | F27: N/A | G27: N/A | H27: N/A | I27: TRUE | J27: TRUE | K27: FALSE | L27: FALSE | M27: FALSE | N27: 0 | O27: FALSE | P27: TRUE | Q27: TRUE | S27: Inc(150W) | T27: 150 | U27: 300 | AD27: 16 | AE27: =IFERROR(INDEX(IDRefTable_Existing[Fixt ID],AD27),"") ->  | AP27: =IFERROR(INDEX(IDRefTable_Proposed[Fixt ID],AD27),"") -> 
B28: Existing TLED | C28: LFTLED | D28: Linear | E28: L | F28: 1,2,3,4,6,8 | H28: Type A, Type B/C | I28: TRUE | J28: TRUE | K28: TRUE | L28: TRUE | M28: TRUE | N28: 2 | O28: TRUE | P28: FALSE | Q28: FALSE | S28: Inc(200W) | T28: 200 | U28: 400 | AD28: 17 | AE28: =IFERROR(INDEX(IDRefTable_Existing[Fixt ID],AD28),"") ->  | AP28: =IFERROR(INDEX(IDRefTable_Proposed[Fixt ID],AD28),"") -> 
B29: Other (Specify in Notes) | C29: Other | D29: Other | E29: O | F29: N/A | G29: N/A | H29: N/A | I29: TRUE | J29: TRUE | K29: FALSE | L29: FALSE | M29: FALSE | N29: 0 | O29: FALSE | P29: TRUE | Q29: TRUE | S29: Inc(250W) | T29: 250 | U29: 500 | AD29: 18 | AE29: =IFERROR(INDEX(IDRefTable_Existing[Fixt ID],AD29),"") ->  | AP29: =IFERROR(INDEX(IDRefTable_Proposed[Fixt ID],AD29),"") -> 
B30: Specialty Lighting | C30: Sp | D30: Sp | E30: S | F30: N/A | G30: N/A | H30: N/A | I30: TRUE | J30: TRUE | K30: FALSE | L30: FALSE | M30: FALSE | N30: 0 | O30: FALSE | P30: TRUE | Q30: TRUE | S30: Inc(300W) | T30: 300 | U30: 600 | AD30: 19 | AE30: =IFERROR(INDEX(IDRefTable_Existing[Fixt ID],AD30),"") ->  | AP30: =IFERROR(INDEX(IDRefTable_Proposed[Fixt ID],AD30),"") -> 
B31: Incandescent (A-Lamp) | C31: IncA | D31: Non-Linear | E31: N | F31: 1,2 | G31: 40W,60W,75W,100W | H31: N/A | I31: TRUE | J31: TRUE | K31: TRUE | L31: FALSE | M31: TRUE | N31: 1 | O31: FALSE | P31: FALSE | Q31: FALSE | S31: Inc(500W) | T31: 500 | U31: 1000 | AD31: 20 | AE31: =IFERROR(INDEX(IDRefTable_Existing[Fixt ID],AD31),"") ->  | AP31: =IFERROR(INDEX(IDRefTable_Proposed[Fixt ID],AD31),"") -> 
B32: Incandescent (BR, G, etc.) | C32: Inc | D32: Non-Linear | E32: N | F32: 1,2 | G32: 5W,7W,10W,15W,25W,40W,50W,60W,65W,75W,90W,100W,120W,150W,200W,250W,300W,500W | H32: N/A | I32: TRUE | J32: TRUE | K32: TRUE | L32: FALSE | M32: TRUE | N32: 1 | O32: FALSE | P32: FALSE | Q32: FALSE | S32: Hal(5W) | T32: 5 | U32: =T32*2 -> 10 | AD32: 21 | AE32: =IFERROR(INDEX(IDRefTable_Existing[Fixt ID],AD32),"") ->  | AP32: =IFERROR(INDEX(IDRefTable_Proposed[Fixt ID],AD32),"") -> 
B33: Halogen (PAR, MR16, etc.) | C33: Hal | D33: Non-Linear | E33: N | F33: 1,2 | G33: 5W,10W,20W,35W,40W,50W,60W,75W,90W,100W,120W,150W,250W,300W,500W,750W | H33: N/A | I33: TRUE | J33: TRUE | K33: TRUE | L33: FALSE | M33: TRUE | N33: 1 | O33: FALSE | P33: FALSE | Q33: FALSE | S33: Hal(10W) | T33: 10 | U33: =T33*2 -> 20 | AD33: 22 | AE33: =IFERROR(INDEX(IDRefTable_Existing[Fixt ID],AD33),"") ->  | AP33: =IFERROR(INDEX(IDRefTable_Proposed[Fixt ID],AD33),"") -> 
B34: Ceramic MH (PAR, MR16, etc.) | C34: CMHL | D34: HID | E34: N | F34: 1,2 | G34: 20W,25W,39W,50W,70W,100W | H34: Elect | I34: TRUE | J34: TRUE | K34: TRUE | L34: FALSE | M34: TRUE | N34: 1 | O34: TRUE | P34: FALSE | Q34: FALSE | S34: Hal(20W) | T34: 20 | U34: 40 | AD34: 23 | AE34: =IFERROR(INDEX(IDRefTable_Existing[Fixt ID],AD34),"") ->  | AP34: =IFERROR(INDEX(IDRefTable_Proposed[Fixt ID],AD34),"") -> 
B35: Compact Fluor Lamp | C35: CFL | D35: Non-Linear | E35: N | F35: 1,2 | G35: 3W,5W,7W,9W,10W,11W,13W,14W,15W,16W,18W,19W,20W,23W,26W,30W,32W,36W,40W,42W,55W,60W,65W,80W,85W,100W,105W,150W,180W,200W | H35: N/A | I35: TRUE | J35: TRUE | K35: TRUE | L35: FALSE | M35: TRUE | N35: 1 | O35: FALSE | P35: FALSE | Q35: FALSE | S35: Hal(35W) | T35: 35 | U35: 70 | AD35: 24 | AE35: =IFERROR(INDEX(IDRefTable_Existing[Fixt ID],AD35),"") ->  | AP35: =IFERROR(INDEX(IDRefTable_Proposed[Fixt ID],AD35),"") -> 
B36: Compact Fluor Fixture / Kit | C36: CFFixt | D36: Non-Linear | E36: N | F36: 1,2 | G36: 13W,18W,26W,32W,42W,--,5W,7W,9W,24W,25W,27W,28W,36W,40W,50W,55W,57W,70W,80W | H36: ES-Mag,Elect | I36: TRUE | J36: TRUE | K36: TRUE | L36: TRUE | M36: TRUE | N36: 1 | O36: TRUE | P36: FALSE | Q36: FALSE | S36: Hal(40W) | T36: 40 | U36: 80 | AD36: 25 | AE36: =IFERROR(INDEX(IDRefTable_Existing[Fixt ID],AD36),"") ->  | AP36: =IFERROR(INDEX(IDRefTable_Proposed[Fixt ID],AD36),"") -> 
B37: LED Lamp | C37: LEDL | D37: L | E37: A | I37: TRUE | J37: TRUE | K37: TRUE | L37: FALSE | M37: TRUE | N37: 2 | O37: FALSE | P37: FALSE | Q37: FALSE | S37: Hal(50W) | T37: 50 | U37: 100 | AD37: 26 | AE37: =IFERROR(INDEX(IDRefTable_Existing[Fixt ID],AD37),"") ->  | AP37: =IFERROR(INDEX(IDRefTable_Proposed[Fixt ID],AD37),"") -> 
B38: TLED (Type A) | C38: LEDL | D38: TLED-L | E38: A | I38: TRUE | J38: TRUE | K38: TRUE | L38: FALSE | M38: TRUE | N38: 2 | O38: FALSE | P38: FALSE | Q38: FALSE | S38: Hal(60W) | T38: 60 | U38: 120 | AD38: 27 | AE38: =IFERROR(INDEX(IDRefTable_Existing[Fixt ID],AD38),"") ->  | AP38: =IFERROR(INDEX(IDRefTable_Proposed[Fixt ID],AD38),"") -> 
B39: TLED (Type B/C) | C39: LEDL | D39: TLED-L&D | E39: A | I39: TRUE | J39: TRUE | K39: TRUE | L39: FALSE | M39: TRUE | N39: 2 | O39: FALSE | P39: FALSE | Q39: FALSE | S39: Hal(75W) | T39: 75 | U39: 150 | AD39: 28 | AE39: =IFERROR(INDEX(IDRefTable_Existing[Fixt ID],AD39),"") ->  | AP39: =IFERROR(INDEX(IDRefTable_Proposed[Fixt ID],AD39),"") -> 
B40: LED Components | C40: LEDFixt | D40: Kit | E40: A | I40: TRUE | J40: TRUE | K40: FALSE | L40: FALSE | M40: FALSE | N40: 0 | O40: FALSE | P40: TRUE | Q40: TRUE | S40: Hal(90W) | T40: 90 | U40: 180 | AD40: 29 | AE40: =IFERROR(INDEX(IDRefTable_Existing[Fixt ID],AD40),"") ->  | AP40: =IFERROR(INDEX(IDRefTable_Proposed[Fixt ID],AD40),"") -> 
B41: LED Kit | C41: LEDFixt | D41: Kit | E41: A | I41: TRUE | J41: TRUE | K41: FALSE | L41: FALSE | M41: FALSE | N41: 0 | O41: FALSE | P41: TRUE | Q41: TRUE | S41: Hal(100W) | T41: 100 | U41: 200 | AD41: 30 | AE41: =IFERROR(INDEX(IDRefTable_Existing[Fixt ID],AD41),"") ->  | AP41: =IFERROR(INDEX(IDRefTable_Proposed[Fixt ID],AD41),"") -> 
B42: LED Fixture | C42: LEDFixt | D42: NF | E42: A | I42: TRUE | J42: TRUE | K42: FALSE | L42: FALSE | M42: FALSE | N42: 0 | O42: FALSE | P42: TRUE | Q42: TRUE | S42: Hal(120W) | T42: 120 | U42: 240 | AD42: 31 | AE42: =IFERROR(INDEX(IDRefTable_Existing[Fixt ID],AD42),"") ->  | AP42: =IFERROR(INDEX(IDRefTable_Proposed[Fixt ID],AD42),"") -> 
B43: Exit Sign | C43: ExitLED | D43: NF | E43: E | S43: Hal(150W) | T43: 150 | U43: =T43*2 -> 300 | AD43: 32 | AE43: =IFERROR(INDEX(IDRefTable_Existing[Fixt ID],AD43),"") ->  | AP43: =IFERROR(INDEX(IDRefTable_Proposed[Fixt ID],AD43),"") -> 
B44: **Fixture Removal Only** | C44: FRO | D44: Removal | E44: R | I44: FALSE | J44: FALSE | K44: FALSE | L44: FALSE | M44: FALSE | N44: 0 | O44: FALSE | P44: FALSE | Q44: FALSE | S44: Hal(250W) | T44: 250 | U44: 500 | AD44: 33 | AE44: =IFERROR(INDEX(IDRefTable_Existing[Fixt ID],AD44),"") ->  | AP44: =IFERROR(INDEX(IDRefTable_Proposed[Fixt ID],AD44),"") -> 
B45: **Lighting Controls Only** | C45: LCO | D45: Controls | E45: C | I45: FALSE | J45: FALSE | K45: FALSE | L45: FALSE | M45: FALSE | N45: 0 | O45: FALSE | P45: FALSE | Q45: FALSE | S45: Hal(300W) | T45: 300 | U45: 600 | AD45: 34 | AE45: =IFERROR(INDEX(IDRefTable_Existing[Fixt ID],AD45),"") ->  | AP45: =IFERROR(INDEX(IDRefTable_Proposed[Fixt ID],AD45),"") -> 
B46: **Existing to Remain** | C46: ETR | D46: Remain | E46: X | I46: FALSE | J46: FALSE | K46: FALSE | L46: FALSE | M46: FALSE | N46: 0 | O46: FALSE | P46: FALSE | Q46: FALSE | S46: Hal(500W) | T46: 500 | U46: 1000 | AD46: 35 | AE46: =IFERROR(INDEX(IDRefTable_Existing[Fixt ID],AD46),"") ->  | AP46: =IFERROR(INDEX(IDRefTable_Proposed[Fixt ID],AD46),"") -> 
S47: Hal(750W) | T47: 750 | U47: 1500 | AD47: 36 | AE47: =IFERROR(INDEX(IDRefTable_Existing[Fixt ID],AD47),"") ->  | AP47: =IFERROR(INDEX(IDRefTable_Proposed[Fixt ID],AD47),"") -> 
B48: General Tables | S48: CFL(3W) | T48: 3 | U48: 6 | AD48: 37 | AE48: =IFERROR(INDEX(IDRefTable_Existing[Fixt ID],AD48),"") ->  | AP48: =IFERROR(INDEX(IDRefTable_Proposed[Fixt ID],AD48),"") -> 
E49: ProposedTypeTechnologyGen | F49: ProposedTypeTechnologyLin | H49: LED Component % of Kit | J49: HVAC Adjutment Factors | M49: Burnout Reduction Table | O49: Sales Tax | P49: Link Description | Q49: Link | S49: CFL(5W) | T49: 5 | U49: =T49*2 -> 10 | AD49: 38 | AE49: =IFERROR(INDEX(IDRefTable_Existing[Fixt ID],AD49),"") ->  | AP49: =IFERROR(INDEX(IDRefTable_Proposed[Fixt ID],AD49),"") -> 
B50: TechType | C50: ProductListed | E50: LED Lamp | F50: TLED (Type A) | G50: LED Lamp | H50: 0.48 | I50: HeatSource | J50: >5,000 sqft | K50: 5,000 - 20,000 sqft | L50: 20,000+ sqft | M50: Burnout % Threshold | N50: % Incentive Reduction | O50: SalesTaxRates | P50: PUD Lighting Page | Q50: https://www.snopud.com/save-energy/business/rebates/lighting/ | S50: CFL(7W) | T50: 7 | U50: 14 | AD50: 39 | AE50: =IFERROR(INDEX(IDRefTable_Existing[Fixt ID],AD50),"") ->  | AP50: =IFERROR(INDEX(IDRefTable_Proposed[Fixt ID],AD50),"") -> 
B51: LEDL | C51: Yes | E51: LED Kit | F51: TLED (Type B/C) | G51: TLED (Type A) | I51: None | J51: 1 | K51: 1 | L51: 1 | M51: 0 | N51: 0 | O51: 0.078 | P51: PUD Lighting Contractors | Q51: https://www.snopud.com/contractor-network/directory/category/lighting/ | S51: CFL(9W) | T51: 9 | U51: 18 | AD51: 40 | AE51: =IFERROR(INDEX(IDRefTable_Existing[Fixt ID],AD51),"") ->  | AP51: =IFERROR(INDEX(IDRefTable_Proposed[Fixt ID],AD51),"") -> 
C52: No | E52: LED Fixture | F52: LED Components | G52: TLED (Type B/C) | I52: Exterior | J52: 1 | K52: 1 | L52: 1 | M52: 0.1 | N52: 0.1 | O52: 0.084 | P52: IRS W9 | Q52: https://www.irs.gov/pub/irs-pdf/fw9.pdf | S52: CFL(10W) | T52: 10 | U52: 20 | AD52: 41 | AE52: =IFERROR(INDEX(IDRefTable_Existing[Fixt ID],AD52),"") ->  | AP52: =IFERROR(INDEX(IDRefTable_Proposed[Fixt ID],AD52),"") -> 
B53: LEDFixt | C53: Yes | E53: ----- | F53: LED Kit | G53: LED Components | I53: Electric | J53: 0.82 | K53: 0.88 | L53: 0.94 | M53: 0.2 | N53: 0.15 | O53: 0.087 | P53: NXT Level Training | Q53: https://nxtleveltraining.com/ | S53: CFL(11W) | T53: 11 | U53: 22 | AD53: 42 | AE53: =IFERROR(INDEX(IDRefTable_Existing[Fixt ID],AD53),"") ->  | AP53: =IFERROR(INDEX(IDRefTable_Proposed[Fixt ID],AD53),"") -> 
C54: No | E54: **Fixture Removal Only** | F54: LED Fixture | G54: LED Kit | I54: Gas | J54: 1 | K54: 1 | L54: 1 | M54: 0.3 | N54: 0.2 | O54: 0.09 | P54: Design Lights Consortium | Q54: https://www.designlights.org/ | S54: CFL(13W) | T54: 13 | U54: 26 | AD54: 43 | AE54: =IFERROR(INDEX(IDRefTable_Existing[Fixt ID],AD54),"") ->  | AP54: =IFERROR(INDEX(IDRefTable_Proposed[Fixt ID],AD54),"") -> 
E55: **Lighting Controls Only** | F55: ----- | G55: LED Fixture | I55: Oil | J55: 1 | K55: 1 | L55: 1 | M55: 0.4 | N55: 0.25 | O55: 0.092 | S55: CFL(14W) | T55: 14 | U55: 28 | AD55: 44 | AE55: =IFERROR(INDEX(IDRefTable_Existing[Fixt ID],AD55),"") ->  | AP55: =IFERROR(INDEX(IDRefTable_Proposed[Fixt ID],AD55),"") -> 
B56: RetrofitType | C56: RetrofitTypeLookup | E56: **Existing to Remain** | F56: **Fixture Removal Only** | G56: Exit Sign | I56: Propane | J56: 1 | K56: 1 | L56: 1 | M56: 0.5 | N56: 0.3 | O56: 0.093 | S56: CFL(15W) | T56: 15 | U56: =T56*2 -> 30 | AD56: 45 | AE56: =IFERROR(INDEX(IDRefTable_Existing[Fixt ID],AD56),"") ->  | AP56: =IFERROR(INDEX(IDRefTable_Proposed[Fixt ID],AD56),"") -> 
B57: L | C57: L | F57: **Lighting Controls Only** | I57: HP - Electric | J57: 0.91 | K57: 0.94 | L57: 0.97 | O57: 0.098 | S57: CFL(16W) | T57: 16 | U57: =T57*2 -> 32 | AD57: 46 | AE57: =IFERROR(INDEX(IDRefTable_Existing[Fixt ID],AD57),"") ->  | AP57: =IFERROR(INDEX(IDRefTable_Proposed[Fixt ID],AD57),"") -> 
B58: L-SI | C58: L | F58: **Existing to Remain** | I58: HP - Gas | J58: 0.91 | K58: 0.94 | L58: 0.97 | O58: 0.104 | S58: CFL(18W) | T58: 18 | U58: 36 | AD58: 47 | AE58: =IFERROR(INDEX(IDRefTable_Existing[Fixt ID],AD58),"") ->  | AP58: =IFERROR(INDEX(IDRefTable_Proposed[Fixt ID],AD58),"") -> 
B59: TLED-L | C59: L | I59: VRF | J59: 0.91 | K59: 0.94 | L59: 0.97 | O59: 0.105 | S59: CFL(19W) | T59: 19 | U59: 38 | AD59: 48 | AE59: =IFERROR(INDEX(IDRefTable_Existing[Fixt ID],AD59),"") ->  | AP59: =IFERROR(INDEX(IDRefTable_Proposed[Fixt ID],AD59),"") -> 
B60: L-LEDT5 | C60: L | O60: Tax Exempt | S60: CFL(20W) | T60: 20 | U60: 40 | AD60: 49 | AE60: =IFERROR(INDEX(IDRefTable_Existing[Fixt ID],AD60),"") ->  | AP60: =IFERROR(INDEX(IDRefTable_Proposed[Fixt ID],AD60),"") -> 
B61: L-HID | C61: L | S61: CFL(23W) | T61: 23 | U61: 46 | AD61: 50 | AE61: =IFERROR(INDEX(IDRefTable_Existing[Fixt ID],AD61),"") ->  | AP61: =IFERROR(INDEX(IDRefTable_Proposed[Fixt ID],AD61),"") -> 
B62: L&D-LEDT8 | C62: LD | H62: Fixt ID UserForm Fixt Type | I62: FixtID UserForm Lamps/Fixt | K62: Rebate Type Code | L62: Description | S62: CFL(26W) | T62: 26 | U62: 52 | AD62: 51 | AE62: =IFERROR(INDEX(IDRefTable_Existing[Fixt ID],AD62),"") ->  | AP62: =IFERROR(INDEX(IDRefTable_Proposed[Fixt ID],AD62),"") -> 
B63: L&D-LEDT5 | C63: LD | H63: [Use Existing Type] | I63: [Use Existing] | K63: L | L63: D. Linear Lighting T8 | S63: CFL(30W) | T63: 30 | U63: 60 | AD63: 52 | AE63: =IFERROR(INDEX(IDRefTable_Existing[Fixt ID],AD63),"") ->  | AP63: =IFERROR(INDEX(IDRefTable_Proposed[Fixt ID],AD63),"") -> 
B64: TLED-L&D | C64: LD | H64: Can | I64: 1 | K64: 4'T12-L | L64: B. Linear Lighting 4'T12 | S64: CFL(32W) | T64: 32 | U64: 64 | AD64: 53 | AE64: =IFERROR(INDEX(IDRefTable_Existing[Fixt ID],AD64),"") ->  | AP64: =IFERROR(INDEX(IDRefTable_Proposed[Fixt ID],AD64),"") -> 
B65: Kit | C65: K | H65: Exit Sign | I65: 2 | K65: 8'T12-L | L65: C. Linear Lighting 8'T12 | S65: CFL(36W) | T65: 36 | U65: 72 | AD65: 54 | AE65: =IFERROR(INDEX(IDRefTable_Existing[Fixt ID],AD65),"") ->  | AP65: =IFERROR(INDEX(IDRefTable_Proposed[Fixt ID],AD65),"") -> 
B66: NF | C66: F | H66: High-Bay | I66: 3 | K66: H | L66: E. HID Lighting | S66: CFL(40W) | T66: 40 | U66: 80 | AD66: 55 | AE66: =IFERROR(INDEX(IDRefTable_Existing[Fixt ID],AD66),"") ->  | AP66: =IFERROR(INDEX(IDRefTable_Proposed[Fixt ID],AD66),"") -> 
H67: Low-Bay | I67: 4 | K67: N | L67: A. Non-Linear Lighting | S67: CFL(42W) | T67: 42 | U67: 84 | AD67: 56 | AE67: =IFERROR(INDEX(IDRefTable_Existing[Fixt ID],AD67),"") ->  | AP67: =IFERROR(INDEX(IDRefTable_Proposed[Fixt ID],AD67),"") -> 
B68: LTGControlType | C68: ControlsSavings | D68: ControlsTypeCode | E68: ExteriorLTGControlType | F68: Control Strategy Types | H68: Pendant | I68: 5 | K68: E | L68: G. Exit Signs | S68: CFL(55W) | T68: 55 | U68: 110 | AD68: 57 | AE68: =IFERROR(INDEX(IDRefTable_Existing[Fixt ID],AD68),"") ->  | AP68: =IFERROR(INDEX(IDRefTable_Proposed[Fixt ID],AD68),"") -> 
B69: N/A | E69: N/A | F69: H | H69: Recessed | I69: 6 | K69: O | L69: F. Other Lighting | N69: Input | O69: 0.25 | S69: CFL(60W) | T69: 60 | U69: 120 | AD69: 58 | AE69: =IFERROR(INDEX(IDRefTable_Existing[Fixt ID],AD69),"") ->  | AP69: =IFERROR(INDEX(IDRefTable_Proposed[Fixt ID],AD69),"") -> 
B70: Occ | C70: 0.25 | D70: C | E70: Occ | F70: E | H70: Sconce | I70: 7 | K70: S | L70: G. Specialty Lighting | N70: Incentive Reduction | O70: =VLOOKUP(ROUNDDOWN(O69,1),BurnoutReductionTable,2,TRUE) -> 0.15 | S70: CFL(65W) | T70: 65 | U70: 130 | AD70: 59 | AE70: =IFERROR(INDEX(IDRefTable_Existing[Fixt ID],AD70),"") ->  | AP70: =IFERROR(INDEX(IDRefTable_Proposed[Fixt ID],AD70),"") -> 
B71: Day | C71: 0.25 | D71: C | E71: Network | F71: P | H71: Strip | I71: 8 | S71: CFL(80W) | T71: 80 | U71: 160 | AD71: 60 | AE71: =IFERROR(INDEX(IDRefTable_Existing[Fixt ID],AD71),"") ->  | AP71: =IFERROR(INDEX(IDRefTable_Proposed[Fixt ID],AD71),"") -> 
B72: Combo | C72: 0.35 | D72: CA | F72: O | H72: Surface | I72: N/A | K72: Specialty Incentive Rates | S72: CFL(85W) | T72: 85 | U72: 170 | AD72: 61 | AE72: =IFERROR(INDEX(IDRefTable_Existing[Fixt ID],AD72),"") ->  | AP72: =IFERROR(INDEX(IDRefTable_Proposed[Fixt ID],AD72),"") -> 
B73: Network | C73: 0.45 | D73: CN | F73: D | H73: Stairwell | K73: RetroType/Hours | L73: Incentive Rate ($/kWh) | S73: CFL(100W) | T73: 100 | U73: 200 | AD73: 62 | AE73: =IFERROR(INDEX(IDRefTable_Existing[Fixt ID],AD73),"") ->  | AP73: =IFERROR(INDEX(IDRefTable_Proposed[Fixt ID],AD73),"") -> 
B74: LLLC | C74: 0.45 | D74: CL | F74: S | H74: Track | K74: LT1 | L74: 0.18 | S74: CFL(105W) | T74: 105 | U74: 210 | AD74: 63 | AE74: =IFERROR(INDEX(IDRefTable_Existing[Fixt ID],AD74),"") ->  | AP74: =IFERROR(INDEX(IDRefTable_Proposed[Fixt ID],AD74),"") -> 
B75: ErrorCheckingTable | C75: LIF Message | D75: LRW Message | F75: X | H75: Troffer | K75: LT2 | L75: 0.14 | S75: CFL(150W) | T75: 150 | U75: 300 | AD75: 64 | AE75: =IFERROR(INDEX(IDRefTable_Existing[Fixt ID],AD75),"") ->  | AP75: =IFERROR(INDEX(IDRefTable_Proposed[Fixt ID],AD75),"") -> 
B76: ER1 | C76: Heat Source? | D76: Heat? | H76: Wrap | K76: LT3 | L76: 0.11 | S76: CFL(180W) | T76: 180 | U76: 360 | AD76: 65 | AE76: =IFERROR(INDEX(IDRefTable_Existing[Fixt ID],AD76),"") ->  | AP76: =IFERROR(INDEX(IDRefTable_Proposed[Fixt ID],AD76),"") -> 
B77: ER2 | C77: Hours/Yr? | D77: Hours? | H77: Wall Wash | K77: KT1 | L77: 0.32 | S77: CFL(200W) | T77: 200 | U77: 400 | AD77: 66 | AE77: =IFERROR(INDEX(IDRefTable_Existing[Fixt ID],AD77),"") ->  | AP77: =IFERROR(INDEX(IDRefTable_Proposed[Fixt ID],AD77),"") -> 
B78: ER3 | C78: # of Fixtures? | D78: # of Fixt? | H78: -- | K78: KT2 | L78: 0.25 | S78: CFFixt(13W)ES-Mag | T78: 17 | U78: 30 | AD78: =AD77+1 -> 67 | AE78: =IFERROR(INDEX(IDRefTable_Existing[Fixt ID],AD78),"") ->  | AP78: =IFERROR(INDEX(IDRefTable_Proposed[Fixt ID],AD78),"") -> 
B79: ER4 | C79: TLED's Only for T5/T8/ T12s | D79: Lin Lamp Err | H79: Flood | K79: KT3 | L79: 0.18 | S79: CFFixt(18W)ES-Mag | T79: 24 | U79: 41 | AD79: 68 | AE79: =IFERROR(INDEX(IDRefTable_Existing[Fixt ID],AD79),"") ->  | AP79: =IFERROR(INDEX(IDRefTable_Proposed[Fixt ID],AD79),"") -> 
B80: ER5 | C80: Check Wattage Reduction | D80: Wattage Reduction | H80: Landscape | K80: FT1 | L80: 0.35 | S80: CFFixt(26W)ES-Mag | T80: 34 | U80: 60 | AD80: 69 | AE80: =IFERROR(INDEX(IDRefTable_Existing[Fixt ID],AD80),"") ->  | AP80: =IFERROR(INDEX(IDRefTable_Proposed[Fixt ID],AD80),"") -> 
B81: ER6 | C81: Product Qualified? | D81: Qualified? | H81: Pole | K81: FT2 | L81: 0.28 | S81: CFFixt(32W)ES-Mag | T81: 42 | U81: 74 | AD81: 70 | AE81: =IFERROR(INDEX(IDRefTable_Existing[Fixt ID],AD81),"") ->  | AP81: =IFERROR(INDEX(IDRefTable_Proposed[Fixt ID],AD81),"") -> 
B82: ER7 | C82: Product Not Eligible | D82: Not Eligible | H82: Soffit | K82: FT3 | L82: 0.2 | S82: CFFixt(42W)ES-Mag | T82: 55 | U82: 100 | AD82: 71 | AE82: =IFERROR(INDEX(IDRefTable_Existing[Fixt ID],AD82),"") ->  | AP82: =IFERROR(INDEX(IDRefTable_Proposed[Fixt ID],AD82),"") -> 
B83: ER8 | C83: Controls? | D83: Controls? | H83: Wall Pack | S83: CFFixt(5W)ES-Mag | T83: 7 | U83: 12 | AD83: 72 | AE83: =IFERROR(INDEX(IDRefTable_Existing[Fixt ID],AD83),"") ->  | AP83: =IFERROR(INDEX(IDRefTable_Proposed[Fixt ID],AD83),"") -> 
B84: ER9 | C84: # of Sensors? | D84: # of Sens? | H84: Other | S84: CFFixt(7W)ES-Mag | T84: 9 | U84: 17 | AD84: 73 | AE84: =IFERROR(INDEX(IDRefTable_Existing[Fixt ID],AD84),"") ->  | AP84: =IFERROR(INDEX(IDRefTable_Proposed[Fixt ID],AD84),"") -> 
B85: ER10 | C85: LED Lamps for HID Only | D85: Lamps HID Only | G85: Historic Incentive Rates | S85: CFFixt(9W)ES-Mag | T85: 12 | U85: 21 | AD85: 74 | AE85: =IFERROR(INDEX(IDRefTable_Existing[Fixt ID],AD85),"") ->  | AP85: =IFERROR(INDEX(IDRefTable_Proposed[Fixt ID],AD85),"") -> 
B86: X | C86: For Reference Only | D86: Reference | G86: Rate Name | H86: PDI - Base | I86: PDI - Base w/ NXT LVL | J86: PDI - Networked Cont | K86: PDI - LLLCs | S86: CFFixt(24W)ES-Mag | T86: 31 | U86: 56 | AD86: 75 | AE86: =IFERROR(INDEX(IDRefTable_Existing[Fixt ID],AD86),"") ->  | AP86: =IFERROR(INDEX(IDRefTable_Proposed[Fixt ID],AD86),"") -> 
B87: ER12 | C87: High End Trim Required | D87: Hi Trim Req | G87: 2025 | H87: 0.02 | I87: =H87+0.005 -> 0.025 | J87: 0.01 | K87: 0.015 | S87: CFFixt(25W)ES-Mag | T87: 33 | U87: 58 | AD87: 76 | AE87: =IFERROR(INDEX(IDRefTable_Existing[Fixt ID],AD87),"") ->  | AP87: =IFERROR(INDEX(IDRefTable_Proposed[Fixt ID],AD87),"") -> 
B88: ER13 | C88: Enter Control Strategy | D88: Control Strategy? | G88: 2024 | H88: 0.02 | I88: =H88+0.005 -> 0.025 | J88: 0.01 | K88: 0.015 | S88: CFFixt(27W)ES-Mag | T88: 35 | U88: 63 | AD88: 77 | AE88: =IFERROR(INDEX(IDRefTable_Existing[Fixt ID],AD88),"") ->  | AP88: =IFERROR(INDEX(IDRefTable_Proposed[Fixt ID],AD88),"") -> 
B89: ER14 | C89: Existing Technology Inelligible | D89: Not Eligible | G89: 2023 | H89: 0.01 | I89: 0.0125 | J89: 0.01 | K89: 0.015 | S89: CFFixt(28W)ES-Mag | T89: 37 | U89: 65 | AD89: 78 | AE89: =IFERROR(INDEX(IDRefTable_Existing[Fixt ID],AD89),"") ->  | AP89: =IFERROR(INDEX(IDRefTable_Proposed[Fixt ID],AD89),"") -> 
B90: ER15 | G90: 2022 | H90: 0.01 | I90: 0.0125 | J90: 0.01 | K90: 0.01 | S90: CFFixt(36W)ES-Mag | T90: 47 | U90: 83 | AD90: 79 | AE90: =IFERROR(INDEX(IDRefTable_Existing[Fixt ID],AD90),"") ->  | AP90: =IFERROR(INDEX(IDRefTable_Proposed[Fixt ID],AD90),"") -> 
B91: C | C91: Controls (See Below) | D91: Controls | S91: CFFixt(40W)ES-Mag | T91: 52 | U91: 92 | AD91: 80 | AE91: =IFERROR(INDEX(IDRefTable_Existing[Fixt ID],AD91),"") ->  | AP91: =IFERROR(INDEX(IDRefTable_Proposed[Fixt ID],AD91),"") -> 
G92: Compatibale Import Versions | H92: Default Incentive Rate | J92: Active Incentive Rate | S92: CFFixt(50W)ES-Mag | T92: 65 | U92: 115 | AD92: 81 | AE92: =IFERROR(INDEX(IDRefTable_Existing[Fixt ID],AD92),"") ->  | AP92: =IFERROR(INDEX(IDRefTable_Proposed[Fixt ID],AD92),"") -> 
G93: Version April 2020 - Effective Date April 2nd, 2020 | H93: 2022 | J93: =IF(IncentiveRateChoice="",OFFSET(IncentiveRateDefault,MATCH(Version,OldVersions,0),0),IncentiveRateChoice) -> 2025 | S93: CFFixt(55W)ES-Mag | T93: 72 | U93: 127 | AD93: 82 | AE93: =IFERROR(INDEX(IDRefTable_Existing[Fixt ID],AD93),"") ->  | AP93: =IFERROR(INDEX(IDRefTable_Proposed[Fixt ID],AD93),"") -> 
B94: Pay Letter Opportunities | D94: Status Flags | G94: Version Sept 2020 - Effective Date September 1st, 2020 | H94: 2022 | S94: CFFixt(57W)ES-Mag | T94: 74 | U94: 132 | AD94: 83 | AE94: =IFERROR(INDEX(IDRefTable_Existing[Fixt ID],AD94),"") ->  | AP94: =IFERROR(INDEX(IDRefTable_Proposed[Fixt ID],AD94),"") -> 
D95: Proj Dev Incentive to Cust | E95: =ISNUMBER(FIND("Customer",App_PDIRecipient,1)) -> TRUE | G95: Version Jan 2021 - Effective Date January 1st, 2021 | H95: 2022 | S95: CFFixt(70W)ES-Mag | T95: 91 | U95: 161 | AD95: 84 | AE95: =IFERROR(INDEX(IDRefTable_Existing[Fixt ID],AD95),"") ->  | AP95: =IFERROR(INDEX(IDRefTable_Proposed[Fixt ID],AD95),"") -> 
B96: Advanced Rooftop Controls | D96: NXT Level Contractor | E96: FALSE | G96: Version August 2021 - Effective Date August 1st, 2021 | H96: 2022 | S96: CFFixt(80W)ES-Mag | T96: 104 | U96: 184 | AD96: 85 | AE96: =IFERROR(INDEX(IDRefTable_Existing[Fixt ID],AD96),"") ->  | AP96: =IFERROR(INDEX(IDRefTable_Proposed[Fixt ID],AD96),"") -> 
B97: Building Controls | D97: Auto Highlight AsBuilt | E97: TRUE | G97: Version Dec 2021 - Effective Date December 1st, 2021 | H97: 2022 | S97: CFFixt(13W)Elect | T97: 16 | U97: 29 | AD97: 86 | AE97: =IFERROR(INDEX(IDRefTable_Existing[Fixt ID],AD97),"") ->  | AP97: =IFERROR(INDEX(IDRefTable_Proposed[Fixt ID],AD97),"") -> 
B98: Commercial Kitchen Equipment | D98: Edit Mode | E98: FALSE | G98: Version May 2022 - Effective Date May 1st, 2022 | H98: 2022 | S98: CFFixt(18W)Elect | T98: 19 | U98: 38 | AD98: 87 | AE98: =IFERROR(INDEX(IDRefTable_Existing[Fixt ID],AD98),"") ->  | AP98: =IFERROR(INDEX(IDRefTable_Proposed[Fixt ID],AD98),"") -> 
B99: Compressed Air | D99: Loading Bar Mode | E99: 1 | G99: Version July 2022 - Effective Date July 1st, 2022 | H99: 2022 | S99: CFFixt(26W)Elect | T99: 27 | U99: 54 | AD99: 88 | AE99: =IFERROR(INDEX(IDRefTable_Existing[Fixt ID],AD99),"") ->  | AP99: =IFERROR(INDEX(IDRefTable_Proposed[Fixt ID],AD99),"") -> 
B100: Connected Thermostats | D100: Import File Path | G100: Version Sept 2022 - Effective Date September 1st, 2022 | H100: 2022 | S100: CFFixt(32W)Elect | T100: 33 | U100: 68 | AD100: 89 | AE100: =IFERROR(INDEX(IDRefTable_Existing[Fixt ID],AD100),"") ->  | AP100: =IFERROR(INDEX(IDRefTable_Proposed[Fixt ID],AD100),"") -> 
B101: Demand Control Kitchen Ventilation | D101: Import Success | G101: Version Dec 2022 - Effective Date December 1st, 2022 | H101: 2023 | S101: CFFixt(42W)Elect | T101: 43 | U101: 93 | AD101: 90 | AE101: =IFERROR(INDEX(IDRefTable_Existing[Fixt ID],AD101),"") ->  | AP101: =IFERROR(INDEX(IDRefTable_Proposed[Fixt ID],AD101),"") -> 
B102: Engine Block Heaters | D102: Macros Enabled | E102: TRUE | G102: Version January 2023 - Effective Date January 1st, 2023 | H102: 2023 | S102: CFFixt(5W)Elect | T102: 5 | U102: 11 | AD102: 91 | AE102: =IFERROR(INDEX(IDRefTable_Existing[Fixt ID],AD102),"") ->  | AP102: =IFERROR(INDEX(IDRefTable_Proposed[Fixt ID],AD102),"") -> 
B103: Heat Pumps (including ductless) | D103: Stuff Enabled | E103: TRUE | G103: Version February 2023 - Effective Date February 1st, 2023 | H103: 2023 | S103: CFFixt(7W)Elect | T103: 7 | U103: 15 | AD103: 92 | AE103: =IFERROR(INDEX(IDRefTable_Existing[Fixt ID],AD103),"") ->  | AP103: =IFERROR(INDEX(IDRefTable_Proposed[Fixt ID],AD103),"") -> 
B104: Insulation & Windows (electrically heated facility only) | G104: Version March 2023 - Effective Date March 1st, 2023 | H104: 2023 | S104: CFFixt(9W)Elect | T104: 10 | U104: 19 | AD104: 93 | AE104: =IFERROR(INDEX(IDRefTable_Existing[Fixt ID],AD104),"") ->  | AP104: =IFERROR(INDEX(IDRefTable_Proposed[Fixt ID],AD104),"") -> 
B105: Lighting | G105: Version April 2023 - Effective Date April 1st, 2023 | H105: 2023 | S105: CFFixt(24W)Elect | T105: 25 | U105: 50 | AD105: 94 | AE105: =IFERROR(INDEX(IDRefTable_Existing[Fixt ID],AD105),"") ->  | AP105: =IFERROR(INDEX(IDRefTable_Proposed[Fixt ID],AD105),"") -> 
B106: Lighting Controls | G106: Version August 2023 - Effective Date August 1st, 2023 | H106: 2023 | S106: CFFixt(25W)Elect | T106: 26 | U106: 52 | AD106: 95 | AE106: =IFERROR(INDEX(IDRefTable_Existing[Fixt ID],AD106),"") ->  | AP106: =IFERROR(INDEX(IDRefTable_Proposed[Fixt ID],AD106),"") -> 
B107: Refrigeration | G107: Version December 2023 - Effective Date December 1st, 2023 | H107: 2024 | S107: CFFixt(27W)Elect | T107: 29 | U107: 56 | AD107: 96 | AE107: =IFERROR(INDEX(IDRefTable_Existing[Fixt ID],AD107),"") ->  | AP107: =IFERROR(INDEX(IDRefTable_Proposed[Fixt ID],AD107),"") -> 
B108: Variable Speed Drive | G108: Version April 2024 - Effective Date April 1st, 2024 | H108: 2024 | S108: CFFixt(28W)Elect | T108: 30 | U108: 58 | AD108: 97 | AE108: =IFERROR(INDEX(IDRefTable_Existing[Fixt ID],AD108),"") ->  | AP108: =IFERROR(INDEX(IDRefTable_Proposed[Fixt ID],AD108),"") -> 
B109: Ventilation & Air Conditioning | G109: Version May 2024 - Effective Date May 1st, 2024 | H109: 2024 | S109: CFFixt(36W)Elect | T109: 38 | U109: 74 | AD109: 98 | AE109: =IFERROR(INDEX(IDRefTable_Existing[Fixt ID],AD109),"") ->  | AP109: =IFERROR(INDEX(IDRefTable_Proposed[Fixt ID],AD109),"") -> 
B110: Water Heating | G110: Version June 2024 - Effective Date June 1st, 2024 | H110: 2024 | S110: CFFixt(40W)Elect | T110: 42 | U110: 82 | AD110: 99 | AE110: =IFERROR(INDEX(IDRefTable_Existing[Fixt ID],AD110),"") ->  | AP110: =IFERROR(INDEX(IDRefTable_Proposed[Fixt ID],AD110),"") -> 
G111: Version December 2024 - Effective Date December 1st, 2024 | H111: 2024 | S111: CFFixt(50W)Elect | T111: 53 | U111: 103 | AD111: 100 | AE111: =IFERROR(INDEX(IDRefTable_Existing[Fixt ID],AD111),"") ->  | AP111: =IFERROR(INDEX(IDRefTable_Proposed[Fixt ID],AD111),"") -> 
B112: As-Built File Paths | G112: =Version -> Version April 2025 - Effective Date April 1st, 2025 | H112: 2025 | S112: CFFixt(55W)Elect | T112: 58 | U112: 113 | AD112: 101 | AE112: =IFERROR(INDEX(IDRefTable_Existing[Fixt ID],AD112),"") ->  | AP112: =IFERROR(INDEX(IDRefTable_Proposed[Fixt ID],AD112),"") -> 
B113: File Name | C113: File Path | E113: Pay Letter Contact Info | S113: CFFixt(57W)Elect | T113: 60 | U113: 117 | AD113: 102 | AE113: =IFERROR(INDEX(IDRefTable_Existing[Fixt ID],AD113),"") ->  | AP113: =IFERROR(INDEX(IDRefTable_Proposed[Fixt ID],AD113),"") -> 
B114: Signed Participation Agreement | E114: Engineer | F114: Title | G114: Phone | H114: Email | S114: CFFixt(70W)Elect | T114: 74 | U114: 144 | AD114: 103 | AE114: =IFERROR(INDEX(IDRefTable_Existing[Fixt ID],AD114),"") ->  | AP114: =IFERROR(INDEX(IDRefTable_Proposed[Fixt ID],AD114),"") -> 
B115: Final Invoice | E115: Allison Grinczel | F115: Energy Management Engineer | G115: 4257838275 | H115: aagrinczel@snopud.com | S115: CFFixt(80W)Elect | T115: 85 | U115: 164 | AD115: 104 | AE115: =IFERROR(INDEX(IDRefTable_Existing[Fixt ID],AD115),"") ->  | AP115: =IFERROR(INDEX(IDRefTable_Proposed[Fixt ID],AD115),"") -> 
B116: As-Built Spec Sheets | E116: Rob Marks | F116: Senior Energy Management Engineer | G116: 4257838169 | H116: rlmarks@snopud.com | S116: LF2ftT12(20W)All | T116: 24 | U116: 51 | V116: 77 | W116: 102 | AD116: 105 | AE116: =IFERROR(INDEX(IDRefTable_Existing[Fixt ID],AD116),"") ->  | AP116: =IFERROR(INDEX(IDRefTable_Proposed[Fixt ID],AD116),"") -> 
B117: Pictures | E117: Rick Rosenkilde | F117: Energy Management Engineer | G117: 4257831743 | H117: rrrosenkilde@snopud.com | S117: LF4ftT12(34W-40W)All | T117: 48 | U117: 82 | V117: 130 | W117: 164 | Y117: 260 | AD117: 106 | AE117: =IFERROR(INDEX(IDRefTable_Existing[Fixt ID],AD117),"") ->  | AP117: =IFERROR(INDEX(IDRefTable_Proposed[Fixt ID],AD117),"") -> 
B118: Misc 1. | E118: Orion Eaton | F118: Energy Management Engineer | G118: 4257258845 | H118: ojeaton@snopud.com | S118: LF8ftT12(60W-75W)All | T118: 83 | U118: 138 | V118: 220 | W118: 246 | AD118: 107 | AE118: =IFERROR(INDEX(IDRefTable_Existing[Fixt ID],AD118),"") ->  | AP118: =IFERROR(INDEX(IDRefTable_Proposed[Fixt ID],AD118),"") -> 
B119: Misc 2. | E119: Ian Tachibana | F119: Energy Management Engineer | G119: 4255507670 | H119: IPTachibana@Snopud.com | S119: LF8ftT12(95W-110W)All | T119: 125 | U119: 227 | V119: 352 | W119: 416 | AD119: 108 | AE119: =IFERROR(INDEX(IDRefTable_Existing[Fixt ID],AD119),"") ->  | AP119: =IFERROR(INDEX(IDRefTable_Proposed[Fixt ID],AD119),"") -> 
E120: Emily Kubiak | F120: Energy Management Engineer | G120: 4257831700 | H120: EAKubiak@Snopud.com | S120: LF8ftT12(185W-215W)All | T120: 200 | U120: 325 | V120: 525 | W120: 650 | AD120: 109 | AE120: =IFERROR(INDEX(IDRefTable_Existing[Fixt ID],AD120),"") ->  | AP120: =IFERROR(INDEX(IDRefTable_Proposed[Fixt ID],AD120),"") -> 
E121: Shayne Moore | F121: Energy Management Engineer | G121: 4252970168 | H121: samoore@snopud.com | S121: LF2ftT8(17W)Std-Elect | T121: 19 | U121: 33 | V121: 52 | W121: 66 | Y121: 104 | AD121: 110 | AE121: =IFERROR(INDEX(IDRefTable_Existing[Fixt ID],AD121),"") ->  | AP121: =IFERROR(INDEX(IDRefTable_Proposed[Fixt ID],AD121),"") -> 
S122: LF2ftT8(17W)LBF | T122: 15 | U122: 27 | V122: 42 | W122: 54 | Y122: 84 | AD122: 111 | AE122: =IFERROR(INDEX(IDRefTable_Existing[Fixt ID],AD122),"") ->  | AP122: =IFERROR(INDEX(IDRefTable_Proposed[Fixt ID],AD122),"") -> 
B123: Application Import Ranges | S123: LF2ftT8(17W)NBF | T123: 16 | U123: 31 | V123: 47 | W123: 62 | Y123: 94 | AD123: 112 | AE123: =IFERROR(INDEX(IDRefTable_Existing[Fixt ID],AD123),"") ->  | AP123: =IFERROR(INDEX(IDRefTable_Proposed[Fixt ID],AD123),"") -> 
B124: Range Name | C124: Old Wkbk Row Ref | D124: Old Wkbk Col Ref | S124: LF2ftT8(17W)HBF | T124: 22 | U124: 41 | V124: 63 | W124: 82 | Y124: 126 | AD124: 113 | AE124: =IFERROR(INDEX(IDRefTable_Existing[Fixt ID],AD124),"") ->  | AP124: =IFERROR(INDEX(IDRefTable_Proposed[Fixt ID],AD124),"") -> 
B125: App_FacName | C125: 14 | D125: 4 | S125: LF2ftT8(40W (Biax))Std-Elect | T125: 42 | U125: 82 | V125: 124 | W125: 164 | Y125: 248 | AD125: 114 | AE125: =IFERROR(INDEX(IDRefTable_Existing[Fixt ID],AD125),"") ->  | AP125: =IFERROR(INDEX(IDRefTable_Proposed[Fixt ID],AD125),"") -> 
B126: App_FacAdd | C126: 14 | D126: 17 | S126: LF2ftT8(40W (Biax))LBF | T126: 39 | U126: 67 | V126: 106 | W126: 134 | Y126: 212 | AD126: 115 | AE126: =IFERROR(INDEX(IDRefTable_Existing[Fixt ID],AD126),"") ->  | AP126: =IFERROR(INDEX(IDRefTable_Proposed[Fixt ID],AD126),"") -> 
B127: App_FacCity | C127: 14 | D127: 33 | S127: LF2ftT8(40W (Biax))NBF | T127: 41 | U127: 72 | V127: 113 | W127: 144 | Y127: 226 | AD127: 116 | AE127: =IFERROR(INDEX(IDRefTable_Existing[Fixt ID],AD127),"") ->  | AP127: =IFERROR(INDEX(IDRefTable_Proposed[Fixt ID],AD127),"") -> 
B128: App_FacZip | C128: 14 | D128: 44 | S128: LF2ftT8(40W (Biax))HBF | T128: 50 | U128: 95 | V128: 145 | W128: 190 | Y128: 290 | AD128: 117 | AE128: =IFERROR(INDEX(IDRefTable_Existing[Fixt ID],AD128),"") ->  | AP128: =IFERROR(INDEX(IDRefTable_Proposed[Fixt ID],AD128),"") -> 
B129: App_PremType | S129: LF2ftT8(55W (Biax))Std-Elect | T129: 58 | U129: 113 | V129: 171 | W129: 226 | Y129: 342 | AD129: 118 | AE129: =IFERROR(INDEX(IDRefTable_Existing[Fixt ID],AD129),"") ->  | AP129: =IFERROR(INDEX(IDRefTable_Proposed[Fixt ID],AD129),"") -> 
B130: App_PremCategory | S130: LF2ftT8(55W (Biax))LBF | T130: 56 | U130: 110 | V130: 166 | W130: 220 | Y130: 332 | AD130: 119 | AE130: =IFERROR(INDEX(IDRefTable_Existing[Fixt ID],AD130),"") ->  | AP130: =IFERROR(INDEX(IDRefTable_Proposed[Fixt ID],AD130),"") -> 
B131: App_PUDAcct | C131: 16 | D131: 15 | S131: LF2ftT8(55W (Biax))NBF | T131: 58 | U131: 112 | V131: 170 | W131: 224 | Y131: 340 | AD131: 120 | AE131: =IFERROR(INDEX(IDRefTable_Existing[Fixt ID],AD131),"") ->  | AP131: =IFERROR(INDEX(IDRefTable_Proposed[Fixt ID],AD131),"") -> 
B132: App_PUDMeter | C132: 16 | D132: 23 | S132: LF2ftT8(55W (Biax))HBF | T132: 64 | U132: 123 | V132: 187 | W132: 246 | Y132: 374 | AD132: 121 | AE132: =IFERROR(INDEX(IDRefTable_Existing[Fixt ID],AD132),"") ->  | AP132: =IFERROR(INDEX(IDRefTable_Proposed[Fixt ID],AD132),"") -> 
B133: App_EstkWh | C133: 16 | D133: 31 | S133: LF4ftT8(25W)Std-Elect | T133: 23 | U133: 46 | V133: 69 | W133: 92 | Y133: 138 | AA133: 184 | AD133: 122 | AE133: =IFERROR(INDEX(IDRefTable_Existing[Fixt ID],AD133),"") ->  | AP133: =IFERROR(INDEX(IDRefTable_Proposed[Fixt ID],AD133),"") -> 
B134: App_SqFt | C134: 16 | D134: 34 | S134: LF4ftT8(25W)LBF | T134: 20 | U134: 38 | V134: 58 | W134: 76 | Y134: 114 | AA134: 152 | AD134: 123 | AE134: =IFERROR(INDEX(IDRefTable_Existing[Fixt ID],AD134),"") ->  | AP134: =IFERROR(INDEX(IDRefTable_Proposed[Fixt ID],AD134),"") -> 
B135: App_MultiTen | C135: 16 | D135: 39 | S135: LF4ftT8(25W)NBF | T135: 22 | U135: 43 | V135: 65 | W135: 86 | Y135: 129 | AA135: 172 | AD135: 124 | AE135: =IFERROR(INDEX(IDRefTable_Existing[Fixt ID],AD135),"") ->  | AP135: =IFERROR(INDEX(IDRefTable_Proposed[Fixt ID],AD135),"") -> 
B136: App_AC | C136: 16 | D136: 42 | S136: LF4ftT8(25W)HBF | T136: 30 | U136: 58 | V136: 88 | W136: 116 | Y136: 174 | AA136: 232 | AD136: 125 | AE136: =IFERROR(INDEX(IDRefTable_Existing[Fixt ID],AD136),"") ->  | AP136: =IFERROR(INDEX(IDRefTable_Proposed[Fixt ID],AD136),"") -> 
B137: App_HeatSource | C137: 16 | D137: 44 | S137: LF4ftT8(28W)Std-Elect | T137: 26 | U137: 52 | V137: 78 | W137: 104 | Y137: 156 | AA137: 208 | AD137: 126 | AE137: =IFERROR(INDEX(IDRefTable_Existing[Fixt ID],AD137),"") ->  | AP137: =IFERROR(INDEX(IDRefTable_Proposed[Fixt ID],AD137),"") -> 
B138: App_Occ1Start | C138: 17 | D138: 12 | S138: LF4ftT8(28W)LBF | T138: 22 | U138: 42 | V138: 64 | W138: 84 | Y138: 126 | AA138: 168 | AD138: 127 | AE138: =IFERROR(INDEX(IDRefTable_Existing[Fixt ID],AD138),"") ->  | AP138: =IFERROR(INDEX(IDRefTable_Proposed[Fixt ID],AD138),"") -> 
B139: App_Occ1End | C139: 17 | D139: 14 | S139: LF4ftT8(28W)NBF | T139: 25 | U139: 48 | V139: 73 | W139: 96 | Y139: 144 | AA139: 192 | AD139: 128 | AE139: =IFERROR(INDEX(IDRefTable_Existing[Fixt ID],AD139),"") ->  | AP139: =IFERROR(INDEX(IDRefTable_Proposed[Fixt ID],AD139),"") -> 
B140: App_Occ2Start | C140: 17 | D140: 24 | S140: LF4ftT8(28W)HBF | T140: 33 | U140: 65 | V140: 98 | W140: 130 | Y140: 195 | AA140: 260 | AD140: 129 | AE140: =IFERROR(INDEX(IDRefTable_Existing[Fixt ID],AD140),"") ->  | AP140: =IFERROR(INDEX(IDRefTable_Proposed[Fixt ID],AD140),"") -> 
B141: App_Occ2End | C141: 17 | D141: 26 | S141: LF4ftT8(32W)Std-Elect | T141: 31 | U141: 59 | V141: 90 | W141: 118 | Y141: 177 | AA141: 236 | AD141: 130 | AE141: =IFERROR(INDEX(IDRefTable_Existing[Fixt ID],AD141),"") ->  | AP141: =IFERROR(INDEX(IDRefTable_Proposed[Fixt ID],AD141),"") -> 
B142: App_Occ3Start | C142: 17 | D142: 36 | S142: LF4ftT8(32W)LBF | T142: 25 | U142: 48 | V142: 72 | W142: 95 | Y142: 144 | AA142: 192 | AD142: =AD141+1 -> 131 | AE142: =IFERROR(INDEX(IDRefTable_Existing[Fixt ID],AD142),"") ->  | AP142: =IFERROR(INDEX(IDRefTable_Proposed[Fixt ID],AD142),"") -> 
B143: App_Occ3End | C143: 17 | D143: 38 | S143: LF4ftT8(32W)NBF | T143: 28 | U143: 55 | V143: 81 | W143: 108 | Y143: 165 | AA143: 220 | AD143: 132 | AE143: =IFERROR(INDEX(IDRefTable_Existing[Fixt ID],AD143),"") ->  | AP143: =IFERROR(INDEX(IDRefTable_Proposed[Fixt ID],AD143),"") -> 
B144: App_Occ1StartHr | C144: 18 | D144: 4 | S144: LF4ftT8(32W)HBF | T144: 38 | U144: 74 | V144: 110 | W144: 148 | Y144: 222 | AA144: 296 | AD144: 133 | AE144: =IFERROR(INDEX(IDRefTable_Existing[Fixt ID],AD144),"") ->  | AP144: =IFERROR(INDEX(IDRefTable_Proposed[Fixt ID],AD144),"") -> 
B145: App_Occ1StartMin | C145: 18 | D145: 6 | S145: LF2ftT5(14W)Std-Elect | T145: 17 | U145: 33 | V145: 50 | W145: 66 | Y145: 99 | AD145: 134 | AE145: =IFERROR(INDEX(IDRefTable_Existing[Fixt ID],AD145),"") ->  | AP145: =IFERROR(INDEX(IDRefTable_Proposed[Fixt ID],AD145),"") -> 
B146: App_Occ1StartAMPM | C146: 18 | D146: 7 | S146: LF2ftT5(24W (HO))Std-Elect | T146: 27 | U146: 52 | V146: 79 | W146: 104 | Y146: 156 | AD146: 135 | AE146: =IFERROR(INDEX(IDRefTable_Existing[Fixt ID],AD146),"") ->  | AP146: =IFERROR(INDEX(IDRefTable_Proposed[Fixt ID],AD146),"") -> 
B147: App_Occ1EndHr | C147: 18 | D147: 9 | S147: LF4ftT5(25-26W)Std-Elect | T147: 30 | U147: 58 | V147: 88 | W147: 116 | Y147: 174 | AA147: 232 | AD147: 136 | AE147: =IFERROR(INDEX(IDRefTable_Existing[Fixt ID],AD147),"") ->  | AP147: =IFERROR(INDEX(IDRefTable_Proposed[Fixt ID],AD147),"") -> 
B148: App_Occ1EndMin | C148: 18 | D148: 11 | S148: LF4ftT5(28W)Std-Elect | T148: 33 | U148: 63 | V148: 96 | W148: 126 | Y148: 189 | AA148: 252 | AD148: 137 | AE148: =IFERROR(INDEX(IDRefTable_Existing[Fixt ID],AD148),"") ->  | AP148: =IFERROR(INDEX(IDRefTable_Proposed[Fixt ID],AD148),"") -> 
B149: App_Occ1EndAMPM | C149: 18 | D149: 13 | S149: LF4ftT5(44-47W (HO))Std-Elect | T149: 53 | U149: 105 | V149: 158 | W149: 210 | Y149: 315 | AA149: 420 | AD149: 138 | AE149: =IFERROR(INDEX(IDRefTable_Existing[Fixt ID],AD149),"") ->  | AP149: =IFERROR(INDEX(IDRefTable_Proposed[Fixt ID],AD149),"") -> 
B150: App_Occ2StartHr | C150: 18 | D150: 16 | S150: LF4ftT5(49-51W (HO))Std-Elect | T150: 58 | U150: 112 | V150: 170 | W150: 224 | Y150: 336 | AA150: 448 | AD150: 139 | AE150: =IFERROR(INDEX(IDRefTable_Existing[Fixt ID],AD150),"") ->  | AP150: =IFERROR(INDEX(IDRefTable_Proposed[Fixt ID],AD150),"") -> 
B151: App_Occ2StartMin | C151: 18 | D151: 18 | S151: LF4ftT5(54W (HO))Std-Elect | T151: 62 | U151: 118 | V151: 179 | W151: 234 | Y151: 352 | AA151: 472 | AD151: 140 | AE151: =IFERROR(INDEX(IDRefTable_Existing[Fixt ID],AD151),"") ->  | AP151: =IFERROR(INDEX(IDRefTable_Proposed[Fixt ID],AD151),"") -> 
B152: App_Occ2StartAMPM | C152: 18 | D152: 19 | S152: MH(35W)Mag | T152: 55 | AD152: 141 | AE152: =IFERROR(INDEX(IDRefTable_Existing[Fixt ID],AD152),"") ->  | AP152: =IFERROR(INDEX(IDRefTable_Proposed[Fixt ID],AD152),"") -> 
B153: App_Occ2EndHr | C153: 18 | D153: 21 | S153: MH(50W)Mag | T153: 62 | AD153: 142 | AE153: =IFERROR(INDEX(IDRefTable_Existing[Fixt ID],AD153),"") ->  | AP153: =IFERROR(INDEX(IDRefTable_Proposed[Fixt ID],AD153),"") -> 
B154: App_Occ2EndMin | C154: 18 | D154: 23 | S154: MH(70W)Mag | T154: 90 | AD154: 143 | AE154: =IFERROR(INDEX(IDRefTable_Existing[Fixt ID],AD154),"") ->  | AP154: =IFERROR(INDEX(IDRefTable_Proposed[Fixt ID],AD154),"") -> 
B155: App_Occ2EndAMPM | C155: 18 | D155: 25 | S155: MH(100W)Mag | T155: 129 | AD155: 144 | AE155: =IFERROR(INDEX(IDRefTable_Existing[Fixt ID],AD155),"") ->  | AP155: =IFERROR(INDEX(IDRefTable_Proposed[Fixt ID],AD155),"") -> 
B156: App_Occ3StartHr | C156: 18 | D156: 28 | S156: MH(150W)Mag | T156: 185 | AD156: 145 | AE156: =IFERROR(INDEX(IDRefTable_Existing[Fixt ID],AD156),"") ->  | AP156: =IFERROR(INDEX(IDRefTable_Proposed[Fixt ID],AD156),"") -> 
B157: App_Occ3StartMin | C157: 18 | D157: 30 | S157: MH(175W)Mag | T157: 210 | AD157: 146 | AE157: =IFERROR(INDEX(IDRefTable_Existing[Fixt ID],AD157),"") ->  | AP157: =IFERROR(INDEX(IDRefTable_Proposed[Fixt ID],AD157),"") -> 
B158: App_Occ3StartAMPM | C158: 18 | D158: 31 | S158: MH(200W)Mag | T158: 232 | AD158: 147 | AE158: =IFERROR(INDEX(IDRefTable_Existing[Fixt ID],AD158),"") ->  | AP158: =IFERROR(INDEX(IDRefTable_Proposed[Fixt ID],AD158),"") -> 
B159: App_Occ3EndHr | C159: 18 | D159: 33 | S159: MH(250W)Mag | T159: 295 | AD159: 148 | AE159: =IFERROR(INDEX(IDRefTable_Existing[Fixt ID],AD159),"") ->  | AP159: =IFERROR(INDEX(IDRefTable_Proposed[Fixt ID],AD159),"") -> 
B160: App_Occ3EndMin | C160: 18 | D160: 35 | S160: MH(320W)Mag | T160: 378 | AD160: 149 | AE160: =IFERROR(INDEX(IDRefTable_Existing[Fixt ID],AD160),"") ->  | AP160: =IFERROR(INDEX(IDRefTable_Proposed[Fixt ID],AD160),"") -> 
B161: App_Occ3EndAMPM | C161: 18 | D161: 37 | S161: MH(400W)Mag | T161: 458 | AD161: 150 | AE161: =IFERROR(INDEX(IDRefTable_Existing[Fixt ID],AD161),"") ->  | AP161: =IFERROR(INDEX(IDRefTable_Proposed[Fixt ID],AD161),"") -> 
B162: App_DaysClosed | C162: 18 | D162: 39 | S162: MH(750W)Mag | T162: 818 | AD162: 151 | AE162: =IFERROR(INDEX(IDRefTable_Existing[Fixt ID],AD162),"") ->  | AP162: =IFERROR(INDEX(IDRefTable_Proposed[Fixt ID],AD162),"") -> 
B163: App_247Flag | C163: 18 | D163: 49 | S163: MH(1000W)Mag | T163: 1080 | AD163: 152 | AE163: =IFERROR(INDEX(IDRefTable_Existing[Fixt ID],AD163),"") ->  | AP163: =IFERROR(INDEX(IDRefTable_Proposed[Fixt ID],AD163),"") -> 
B164: App_CustName | C164: 24 | D164: 4 | S164: MH(1500W)Mag | T164: 1605 | AD164: 153 | AE164: =IFERROR(INDEX(IDRefTable_Existing[Fixt ID],AD164),"") ->  | AP164: =IFERROR(INDEX(IDRefTable_Proposed[Fixt ID],AD164),"") -> 
B165: App_CustAdd | C165: 24 | D165: 21 | S165: MH(35W)Pulse-Start | T165: 55 | AD165: 154 | AE165: =IFERROR(INDEX(IDRefTable_Existing[Fixt ID],AD165),"") ->  | AP165: =IFERROR(INDEX(IDRefTable_Proposed[Fixt ID],AD165),"") -> 
B166: App_CustCity | C166: 24 | D166: 37 | S166: MH(50W)Pulse-Start | T166: 62 | AD166: 155 | AE166: =IFERROR(INDEX(IDRefTable_Existing[Fixt ID],AD166),"") ->  | AP166: =IFERROR(INDEX(IDRefTable_Proposed[Fixt ID],AD166),"") -> 
B167: App_CustState | C167: 24 | D167: 42 | S167: MH(70W)Pulse-Start | T167: 90 | AD167: 156 | AE167: =IFERROR(INDEX(IDRefTable_Existing[Fixt ID],AD167),"") ->  | AP167: =IFERROR(INDEX(IDRefTable_Proposed[Fixt ID],AD167),"") -> 
B168: App_CustZip | C168: 24 | D168: 44 | S168: MH(100W)Pulse-Start | T168: 129 | AD168: 157 | AE168: =IFERROR(INDEX(IDRefTable_Existing[Fixt ID],AD168),"") ->  | AP168: =IFERROR(INDEX(IDRefTable_Proposed[Fixt ID],AD168),"") -> 
B169: App_SameAddressFlag | C169: 24 | D169: 49 | S169: MH(150W)Pulse-Start | T169: 185 | AD169: 158 | AE169: =IFERROR(INDEX(IDRefTable_Existing[Fixt ID],AD169),"") ->  | AP169: =IFERROR(INDEX(IDRefTable_Proposed[Fixt ID],AD169),"") -> 
B170: App_CustPriName | C170: 26 | D170: 4 | S170: MH(175W)Pulse-Start | T170: 198 | AD170: 159 | AE170: =IFERROR(INDEX(IDRefTable_Existing[Fixt ID],AD170),"") ->  | AP170: =IFERROR(INDEX(IDRefTable_Proposed[Fixt ID],AD170),"") -> 
B171: App_CustPriTitle | C171: 26 | D171: 15 | S171: MH(200W)Pulse-Start | T171: 232 | AD171: 160 | AE171: =IFERROR(INDEX(IDRefTable_Existing[Fixt ID],AD171),"") ->  | AP171: =IFERROR(INDEX(IDRefTable_Proposed[Fixt ID],AD171),"") -> 
B172: App_CustPriPhone | C172: 26 | D172: 26 | S172: MH(250W)Pulse-Start | T172: 288 | AD172: 161 | AE172: =IFERROR(INDEX(IDRefTable_Existing[Fixt ID],AD172),"") ->  | AP172: =IFERROR(INDEX(IDRefTable_Proposed[Fixt ID],AD172),"") -> 
B173: App_CustPriFax | C173: 26 | D173: 32 | S173: MH(320W)Pulse-Start | T173: 363 | AD173: 162 | AE173: =IFERROR(INDEX(IDRefTable_Existing[Fixt ID],AD173),"") ->  | AP173: =IFERROR(INDEX(IDRefTable_Proposed[Fixt ID],AD173),"") -> 
B174: App_CustPriEmail | C174: 26 | D174: 40 | S174: MH(400W)Pulse-Start | T174: 452 | AD174: 163 | AE174: =IFERROR(INDEX(IDRefTable_Existing[Fixt ID],AD174),"") ->  | AP174: =IFERROR(INDEX(IDRefTable_Proposed[Fixt ID],AD174),"") -> 
B175: App_CustSecName | C175: 28 | D175: 4 | S175: MH(750W)Pulse-Start | T175: 818 | AD175: 164 | AE175: =IFERROR(INDEX(IDRefTable_Existing[Fixt ID],AD175),"") ->  | AP175: =IFERROR(INDEX(IDRefTable_Proposed[Fixt ID],AD175),"") -> 
B176: App_CustSecTitle | C176: 28 | D176: 15 | S176: MH(1000W)Pulse-Start | T176: 1080 | AD176: 165 | AE176: =IFERROR(INDEX(IDRefTable_Existing[Fixt ID],AD176),"") ->  | AP176: =IFERROR(INDEX(IDRefTable_Proposed[Fixt ID],AD176),"") -> 
B177: App_CustSecPhone | C177: 28 | D177: 26 | S177: MH(1500W)Pulse-Start | T177: 1605 | AD177: 166 | AE177: =IFERROR(INDEX(IDRefTable_Existing[Fixt ID],AD177),"") ->  | AP177: =IFERROR(INDEX(IDRefTable_Proposed[Fixt ID],AD177),"") -> 
B178: App_CustSecFax | C178: 28 | D178: 32 | S178: CMH(20W)Elect | T178: 23 | U178: =T178*2 -> 46 | AD178: 167 | AE178: =IFERROR(INDEX(IDRefTable_Existing[Fixt ID],AD178),"") ->  | AP178: =IFERROR(INDEX(IDRefTable_Proposed[Fixt ID],AD178),"") -> 
B179: App_CustSecEmail | C179: 28 | D179: 40 | S179: CMH(39W)Elect | T179: 44 | U179: =T179*2 -> 88 | AD179: 168 | AE179: =IFERROR(INDEX(IDRefTable_Existing[Fixt ID],AD179),"") ->  | AP179: =IFERROR(INDEX(IDRefTable_Proposed[Fixt ID],AD179),"") -> 
B180: App_EstStart | C180: 33 | D180: 13 | S180: CMH(50W)Elect | T180: 57 | U180: 114 | AD180: 169 | AE180: =IFERROR(INDEX(IDRefTable_Existing[Fixt ID],AD180),"") ->  | AP180: =IFERROR(INDEX(IDRefTable_Proposed[Fixt ID],AD180),"") -> 
B181: App_EstEnd | C181: 34 | D181: 13 | S181: CMH(70W)Elect | T181: 79 | U181: 158 | AD181: 170 | AE181: =IFERROR(INDEX(IDRefTable_Existing[Fixt ID],AD181),"") ->  | AP181: =IFERROR(INDEX(IDRefTable_Proposed[Fixt ID],AD181),"") -> 
B182: App_Installer | S182: CMH(100W)Elect | T182: 109 | U182: 218 | AD182: 171 | AE182: =IFERROR(INDEX(IDRefTable_Existing[Fixt ID],AD182),"") ->  | AP182: =IFERROR(INDEX(IDRefTable_Proposed[Fixt ID],AD182),"") -> 
B183: TAcompany | C183: 49 | D183: 6 | S183: CMH(150W)Elect | T183: 165 | U183: 330 | AD183: 172 | AE183: =IFERROR(INDEX(IDRefTable_Existing[Fixt ID],AD183),"") ->  | AP183: =IFERROR(INDEX(IDRefTable_Proposed[Fixt ID],AD183),"") -> 
B184: TAaddress | C184: 51 | D184: 6 | S184: CMHL(20W)Elect | T184: 23 | U184: =T184*2 -> 46 | AD184: 173 | AE184: =IFERROR(INDEX(IDRefTable_Existing[Fixt ID],AD184),"") ->  | AP184: =IFERROR(INDEX(IDRefTable_Proposed[Fixt ID],AD184),"") -> 
B185: TAcity | C185: 51 | D185: 30 | S185: CMHL(25W)Elect | T185: 23 | U185: =T185*2 -> 46 | AD185: 174 | AE185: =IFERROR(INDEX(IDRefTable_Existing[Fixt ID],AD185),"") ->  | AP185: =IFERROR(INDEX(IDRefTable_Proposed[Fixt ID],AD185),"") -> 
B186: TAstate | C186: 51 | D186: 38 | S186: CMHL(39W)Elect | T186: 44 | U186: 88 | AD186: 175 | AE186: =IFERROR(INDEX(IDRefTable_Existing[Fixt ID],AD186),"") ->  | AP186: =IFERROR(INDEX(IDRefTable_Proposed[Fixt ID],AD186),"") -> 
B187: TAzip | C187: 51 | D187: 41 | S187: CMHL(50W)Elect | T187: 57 | U187: 114 | AD187: 176 | AE187: =IFERROR(INDEX(IDRefTable_Existing[Fixt ID],AD187),"") ->  | AP187: =IFERROR(INDEX(IDRefTable_Proposed[Fixt ID],AD187),"") -> 
B188: TAcontact | C188: 49 | D188: 20 | S188: CMHL(70W)Elect | T188: 79 | U188: 158 | AD188: 177 | AE188: =IFERROR(INDEX(IDRefTable_Existing[Fixt ID],AD188),"") ->  | AP188: =IFERROR(INDEX(IDRefTable_Proposed[Fixt ID],AD188),"") -> 
B189: TAtitle | S189: CMHL(100W)Elect | T189: 109 | U189: 218 | AD189: 178 | AE189: =IFERROR(INDEX(IDRefTable_Existing[Fixt ID],AD189),"") ->  | AP189: =IFERROR(INDEX(IDRefTable_Proposed[Fixt ID],AD189),"") -> 
B190: TAphone | C190: 49 | D190: 30 | S190: HPS(35W)Mag | T190: 45 | AD190: 179 | AE190: =IFERROR(INDEX(IDRefTable_Existing[Fixt ID],AD190),"") ->  | AP190: =IFERROR(INDEX(IDRefTable_Proposed[Fixt ID],AD190),"") -> 
B191: TAmobile | S191: HPS(50W)Mag | T191: 68 | AD191: 180 | AE191: =IFERROR(INDEX(IDRefTable_Existing[Fixt ID],AD191),"") ->  | AP191: =IFERROR(INDEX(IDRefTable_Proposed[Fixt ID],AD191),"") -> 
B192: TAemail | C192: 49 | D192: 38 | S192: HPS(70W)Mag | T192: 86 | AD192: 181 | AE192: =IFERROR(INDEX(IDRefTable_Existing[Fixt ID],AD192),"") ->  | AP192: =IFERROR(INDEX(IDRefTable_Proposed[Fixt ID],AD192),"") -> 
B193: App_PDIRecipient | S193: HPS(100W)Mag | T193: 120 | AD193: 182 | AE193: =IFERROR(INDEX(IDRefTable_Existing[Fixt ID],AD193),"") ->  | AP193: =IFERROR(INDEX(IDRefTable_Proposed[Fixt ID],AD193),"") -> 
B194: App_AppName | C194: 56 | D194: 4 | S194: HPS(150W)Mag | T194: 170 | AD194: 183 | AE194: =IFERROR(INDEX(IDRefTable_Existing[Fixt ID],AD194),"") ->  | AP194: =IFERROR(INDEX(IDRefTable_Proposed[Fixt ID],AD194),"") -> 
B195: App_AppTitle | C195: 56 | D195: 18 | S195: HPS(200W)Mag | T195: 245 | AD195: 184 | AE195: =IFERROR(INDEX(IDRefTable_Existing[Fixt ID],AD195),"") ->  | AP195: =IFERROR(INDEX(IDRefTable_Proposed[Fixt ID],AD195),"") -> 
B196: App_AppSig | C196: 56 | D196: 31 | S196: HPS(250W)Mag | T196: 295 | AD196: 185 | AE196: =IFERROR(INDEX(IDRefTable_Existing[Fixt ID],AD196),"") ->  | AP196: =IFERROR(INDEX(IDRefTable_Proposed[Fixt ID],AD196),"") -> 
B197: App_AppDate | C197: 56 | D197: 44 | S197: HPS(310W)Mag | T197: 365 | AD197: 186 | AE197: =IFERROR(INDEX(IDRefTable_Existing[Fixt ID],AD197),"") ->  | AP197: =IFERROR(INDEX(IDRefTable_Proposed[Fixt ID],AD197),"") -> 
S198: HPS(400W)Mag | T198: 457 | AD198: 187 | AE198: =IFERROR(INDEX(IDRefTable_Existing[Fixt ID],AD198),"") ->  | AP198: =IFERROR(INDEX(IDRefTable_Proposed[Fixt ID],AD198),"") -> 
B199: Participation Agreement Import Ranges | S199: HPS(600W)Mag | T199: 670 | AD199: 188 | AE199: =IFERROR(INDEX(IDRefTable_Existing[Fixt ID],AD199),"") ->  | AP199: =IFERROR(INDEX(IDRefTable_Proposed[Fixt ID],AD199),"") -> 
B200: Range Name | C200: Old Wkbk Row Ref | D200: Old Wkbk Col Ref | S200: HPS(750W)Mag | T200: 840 | AD200: 189 | AE200: =IFERROR(INDEX(IDRefTable_Existing[Fixt ID],AD200),"") ->  | AP200: =IFERROR(INDEX(IDRefTable_Proposed[Fixt ID],AD200),"") -> 
B201: ProjectVerification | C201: 21 | D201: 3 | S201: HPS(1000W)Mag | T201: 1100 | AD201: 190 | AE201: =IFERROR(INDEX(IDRefTable_Existing[Fixt ID],AD201),"") ->  | AP201: =IFERROR(INDEX(IDRefTable_Proposed[Fixt ID],AD201),"") -> 
... 110 more rows

Sheet Rebate Tables (hidden)
B2: Rebate Tables
B4: Wattage Reduction LookUp Table | Z4: Lighting Rebate LookUp Table | AG4: Controls LookUp Table | AP4: Removal LookUp Table
B5: WattageReduction | C5: N | D5: NWattRange | E5: 4'T12-L | F5: LWattRange | G5: 8'T12-L | H5: LWattRange | I5: L | J5: LWattRange | K5: LL | L5: LWattRange | M5: H | N5: HWattRange | O5: HL | P5: HWattRange | Q5: O | R5: OWattRange | S5: OL | T5: OWattRange | U5: E | V5: EWattRange | W5: C | X5: CWattRange | Z5: Category | AA5: Code | AG5: Category | AH5: Code | AI5: Rebate / Fixt | AJ5: Rebate / Sensor | AK5: Rebate / Fixt | AL5: Rebate / Sensor | AM5: Rebate / Fixt | AN5: Rebate / Sensor | AP5: Code | AQ5: Rebate
B6: 1 | C6: 0 | E6: 0 | G6: 0 | I6: 0 | K6: 0 | M6: 0 | O6: 0 | Q6: 0 | S6: 0 | W6: 1 | X6: (1-10) | AA6: - | AB6: 2025 | AC6: 2024 | AD6: 2023 | AE6: 2022 | AH6: - | AI6: 2025 | AJ6: 2025 | AK6: 2024 | AL6: 2024 | AM6: 2022-23 | AN6: 2022-23 | AP6: RN | AQ6: 15
B7: 2 | C7: 0 | E7: 0 | G7: 0 | I7: 0 | K7: 0 | M7: 0 | O7: 0 | Q7: 0 | S7: 0 | W7: 1 | X7: (1-10) | Z7: NL1 | AA7: NL1T1A | AB7: 0 | AC7: 0 | AD7: 0 | AE7: 0 | AG7: C1 | AH7: C1T0 | AI7: =AK7 -> 4 | AJ7: =AL7 -> 50 | AK7: 4 | AL7: 50 | AM7: 3 | AN7: 40 | AP7: RL | AQ7: 20
B8: 3 | C8: 0 | E8: 0 | G8: 0 | I8: 0 | K8: 1 | L8: (>3) | M8: 0 | O8: 0 | Q8: 0 | S8: 0 | W8: 1 | X8: (1-10) | AA8: NL1T2A | AB8: 0 | AC8: 0 | AD8: 0 | AE8: 0 | AH8: C1T1 | AI8: =AK8 -> 4 | AJ8: 50 | AK8: 4 | AL8: 50 | AM8: 3 | AN8: 40 | AP8: R4'T12-L | AQ8: 20
B9: 4 | C9: 0 | E9: 0 | G9: 0 | I9: 0 | K9: 1 | L9: (>3) | M9: 0 | O9: 0 | Q9: 0 | S9: 0 | W9: 1 | X9: (1-10) | AA9: NL1T3A | AB9: 0 | AC9: 0 | AD9: 0 | AE9: 0 | AH9: C1T2 | AI9: 4 | AJ9: 50 | AK9: 4 | AL9: 50 | AM9: 3 | AN9: 40 | AP9: R8'T12-L | AQ9: 20
B10: 5 | C10: 1 | D10: (5-15) | E10: 0 | G10: 0 | I10: 1 | J10: (5-15) | K10: 1 | L10: (>3) | M10: 0 | O10: 0 | Q10: 1 | R10: (5-100) | S10: 1 | T10: (5-100) | W10: 1 | X10: (1-10) | Z10: NL2 | AA10: NL2T1A | AB10: 0 | AC10: 0 | AD10: 0 | AE10: 0 | AH10: C1T3 | AI10: 4 | AJ10: 50 | AK10: 4 | AL10: 50 | AM10: 3 | AN10: 40 | AP10: RH | AQ10: 40
B11: 6 | C11: 1 | D11: (5-15) | E11: 0 | G11: 0 | I11: 1 | J11: (5-15) | K11: 1 | L11: (>3) | M11: 0 | O11: 0 | Q11: 1 | R11: (5-100) | S11: 1 | T11: (5-100) | W11: 1 | X11: (1-10) | AA11: NL2T2A | AB11: 0 | AC11: 0 | AD11: 0 | AE11: 0 | AG11: C2 | AH11: C2T0 | AI11: 4 | AJ11: 50 | AK11: 4 | AL11: 50 | AM11: 3 | AN11: 40 | AP11: RO | AQ11: 20
B12: 7 | C12: 1 | D12: (5-15) | E12: 0 | G12: 0 | I12: 1 | J12: (5-15) | K12: 1 | L12: (>3) | M12: 0 | O12: 0 | Q12: 1 | R12: (5-100) | S12: 1 | T12: (5-100) | W12: 1 | X12: (1-10) | AA12: NL2T3A | AB12: 0 | AC12: 0 | AD12: 0 | AE12: 0 | AH12: C2T1 | AI12: 4 | AJ12: 50 | AK12: 4 | AL12: 50 | AM12: 3 | AN12: 40
B13: 8 | C13: 1 | D13: (5-15) | E13: 0 | G13: 0 | I13: 1 | J13: (5-15) | K13: 1 | L13: (>3) | M13: 0 | O13: 0 | Q13: 1 | R13: (5-100) | S13: 1 | T13: (5-100) | W13: 1 | X13: (1-10) | Z13: NL3 | AA13: NL3T1A | AB13: 0 | AC13: 0 | AD13: 0 | AE13: 0 | AH13: C2T2 | AI13: 6 | AJ13: 50 | AK13: 6 | AL13: 50 | AM13: 5 | AN13: 40
B14: 9 | C14: 1 | D14: (5-15) | E14: 0 | G14: 0 | I14: 1 | J14: (5-15) | K14: 1 | L14: (>3) | M14: 0 | O14: 0 | Q14: 1 | R14: (5-100) | S14: 1 | T14: (5-100) | W14: 1 | X14: (1-10) | AA14: NL3T2A | AB14: 0 | AC14: 0 | AD14: 0 | AE14: 0 | AH14: C2T3 | AI14: 6 | AJ14: 50 | AK14: 6 | AL14: 50 | AM14: 5 | AN14: 40
B15: 10 | C15: 1 | D15: (5-15) | E15: 0 | G15: 0 | I15: 1 | J15: (5-15) | K15: 1 | L15: (>3) | M15: 1 | N15: (10-50) | O15: 1 | P15: (10-100) | Q15: 1 | R15: (5-100) | S15: 1 | T15: (5-100) | U15: S | V15: (>10) | W15: 1 | X15: (1-10) | AA15: NL3T3A | AB15: 0 | AC15: 0 | AD15: 0 | AE15: 0 | AG15: C3 | AH15: C3T0 | AI15: 6 | AJ15: 50 | AK15: 6 | AL15: 50 | AM15: 5 | AN15: 40
B16: 11 | C16: 1 | D16: (5-15) | E16: 0 | G16: 0 | I16: 1 | J16: (5-15) | K16: 1 | L16: (>3) | M16: 1 | N16: (10-50) | O16: 1 | P16: (10-100) | Q16: 1 | R16: (5-100) | S16: 1 | T16: (5-100) | U16: S | V16: (>10) | W16: 2 | X16: (11-20) | Z16: NL4 | AA16: NL4T1A | AB16: 0 | AC16: 0 | AD16: 0 | AE16: 0 | AH16: C3T1 | AI16: 6 | AJ16: 50 | AK16: 6 | AL16: 50 | AM16: 5 | AN16: 40
B17: 12 | C17: 1 | D17: (5-15) | E17: 0 | G17: 0 | I17: 1 | J17: (5-15) | K17: 1 | L17: (>3) | M17: 1 | N17: (10-50) | O17: 1 | P17: (10-100) | Q17: 1 | R17: (5-100) | S17: 1 | T17: (5-100) | U17: S | V17: (>10) | W17: 2 | X17: (11-20) | AA17: NL4T2A | AB17: 0 | AC17: 0 | AD17: 0 | AE17: 0 | AH17: C3T2 | AI17: 7 | AJ17: 50 | AK17: 7 | AL17: 50 | AM17: 6 | AN17: 40
B18: 13 | C18: 1 | D18: (5-15) | E18: 0 | G18: 0 | I18: 1 | J18: (5-15) | K18: 1 | L18: (>3) | M18: 1 | N18: (10-50) | O18: 1 | P18: (10-100) | Q18: 1 | R18: (5-100) | S18: 1 | T18: (5-100) | U18: S | V18: (>10) | W18: 2 | X18: (11-20) | AA18: NL4T3A | AB18: 0 | AC18: 0 | AD18: 0 | AE18: 0 | AH18: C3T3 | AI18: 9 | AJ18: 50 | AK18: 9 | AL18: 50 | AM18: 7 | AN18: 40
B19: 14 | C19: 1 | D19: (5-15) | E19: 0 | G19: 0 | I19: 1 | J19: (5-15) | K19: 1 | L19: (>3) | M19: 1 | N19: (10-50) | O19: 1 | P19: (10-100) | Q19: 1 | R19: (5-100) | S19: 1 | T19: (5-100) | U19: S | V19: (>10) | W19: 2 | X19: (11-20) | Z19: NK1 | AA19: NK1T1A | AB19: 12 | AC19: 12 | AD19: 10 | AE19: 8 | AG19: C4 | AH19: C4T0 | AI19: 7 | AJ19: 50 | AK19: 7 | AL19: 50 | AM19: 6 | AN19: 40
B20: 15 | C20: 1 | D20: (5-15) | E20: 0 | G20: 0 | I20: 1 | J20: (5-15) | K20: 1 | L20: (>3) | M20: 1 | N20: (10-50) | O20: 1 | P20: (10-100) | Q20: 1 | R20: (5-100) | S20: 1 | T20: (5-100) | U20: S | V20: (>10) | W20: 2 | X20: (11-20) | AA20: NK1T2A | AB20: 16 | AC20: 16 | AD20: 14 | AE20: 11 | AH20: C4T1 | AI20: 7 | AJ20: 50 | AK20: 7 | AL20: 50 | AM20: 6 | AN20: 40
B21: 16 | C21: 2 | D21: (16-35) | E21: 0 | G21: 0 | I21: 2 | J21: (16-30) | K21: 1 | L21: (>3) | M21: 1 | N21: (10-50) | O21: 1 | P21: (10-100) | Q21: 1 | R21: (5-100) | S21: 1 | T21: (5-100) | U21: S | V21: (>10) | W21: 2 | X21: (11-20) | AA21: NK1T3A | AB21: 17 | AC21: 17 | AD21: 15 | AE21: 12 | AH21: C4T2 | AI21: 10 | AJ21: 50 | AK21: 10 | AL21: 50 | AM21: 8 | AN21: 40
B22: 17 | C22: 2 | D22: (16-35) | E22: 0 | G22: 0 | I22: 2 | J22: (16-30) | K22: 1 | L22: (>3) | M22: 1 | N22: (10-50) | O22: 1 | P22: (10-100) | Q22: 1 | R22: (5-100) | S22: 1 | T22: (5-100) | U22: S | V22: (>10) | W22: 2 | X22: (11-20) | Z22: NK2 | AA22: NK2T1A | AB22: 28 | AC22: 28 | AD22: 24 | AE22: 19 | AH22: C4T3 | AI22: 11 | AJ22: 50 | AK22: 11 | AL22: 50 | AM22: 9 | AN22: 40
B23: 18 | C23: 2 | D23: (16-35) | E23: 0 | G23: 0 | I23: 2 | J23: (16-30) | K23: 1 | L23: (>3) | M23: 1 | N23: (10-50) | O23: 1 | P23: (10-100) | Q23: 1 | R23: (5-100) | S23: 1 | T23: (5-100) | U23: S | V23: (>10) | W23: 2 | X23: (11-20) | AA23: NK2T2A | AB23: 36 | AC23: 36 | AD23: 31 | AE23: 25 | AG23: C5 | AH23: C5T0 | AI23: 9 | AJ23: 50 | AK23: 9 | AL23: 50 | AM23: 7 | AN23: 40
B24: 19 | C24: 2 | D24: (16-35) | E24: 0 | G24: 0 | I24: 2 | J24: (16-30) | K24: 1 | L24: (>3) | M24: 1 | N24: (10-50) | O24: 1 | P24: (10-100) | Q24: 1 | R24: (5-100) | S24: 1 | T24: (5-100) | U24: S | V24: (>10) | W24: 2 | X24: (11-20) | AA24: NK2T3A | AB24: 41 | AC24: 41 | AD24: 36 | AE24: 29 | AH24: C5T1 | AI24: 9 | AJ24: 50 | AK24: 9 | AL24: 50 | AM24: 7 | AN24: 40
B25: 20 | C25: 2 | D25: (16-35) | E25: 1 | F25: (20-40) | G25: 1 | H25: (20-55) | I25: 2 | J25: (16-30) | K25: 1 | L25: (>3) | M25: 1 | N25: (10-50) | O25: 1 | P25: (10-100) | Q25: 1 | R25: (5-100) | S25: 1 | T25: (5-100) | U25: S | V25: (>10) | W25: 2 | X25: (11-20) | Z25: NK3 | AA25: NK3T1A | AB25: 44 | AC25: 44 | AD25: 38 | AE25: 30 | AH25: C5T2 | AI25: 11 | AJ25: 50 | AK25: 11 | AL25: 50 | AM25: 9 | AN25: 40
B26: 21 | C26: 2 | D26: (16-35) | E26: 1 | F26: (20-40) | G26: 1 | H26: (20-55) | I26: 2 | J26: (16-30) | K26: 1 | L26: (>3) | M26: 1 | N26: (10-50) | O26: 1 | P26: (10-100) | Q26: 1 | R26: (5-100) | S26: 1 | T26: (5-100) | U26: S | V26: (>10) | W26: 3 | X26: (21-30) | AA26: NK3T2A | AB26: 59 | AC26: 59 | AD26: 51 | AE26: 41 | AH26: C5T3 | AI26: 12 | AJ26: 50 | AK26: 12 | AL26: 50 | AM26: 10 | AN26: 40
B27: 22 | C27: 2 | D27: (16-35) | E27: 1 | F27: (20-40) | G27: 1 | H27: (20-55) | I27: 2 | J27: (16-30) | K27: 1 | L27: (>3) | M27: 1 | N27: (10-50) | O27: 1 | P27: (10-100) | Q27: 1 | R27: (5-100) | S27: 1 | T27: (5-100) | U27: S | V27: (>10) | W27: 3 | X27: (21-30) | AA27: NK3T3A | AB27: 68 | AC27: 68 | AD27: 59 | AE27: 47 | AG27: C6 | AH27: C6T0 | AI27: 10 | AJ27: 50 | AK27: 10 | AL27: 50 | AM27: 8 | AN27: 40
B28: 23 | C28: 2 | D28: (16-35) | E28: 1 | F28: (20-40) | G28: 1 | H28: (20-55) | I28: 2 | J28: (16-30) | K28: 1 | L28: (>3) | M28: 1 | N28: (10-50) | O28: 1 | P28: (10-100) | Q28: 1 | R28: (5-100) | S28: 1 | T28: (5-100) | U28: S | V28: (>10) | W28: 3 | X28: (21-30) | Z28: NK4 | AA28: NK4T1A | AB28: 58 | AC28: 58 | AD28: 50 | AE28: 40 | AH28: C6T1 | AI28: 10 | AJ28: 50 | AK28: 10 | AL28: 50 | AM28: 8 | AN28: 40
B29: 24 | C29: 2 | D29: (16-35) | E29: 1 | F29: (20-40) | G29: 1 | H29: (20-55) | I29: 2 | J29: (16-30) | K29: 1 | L29: (>3) | M29: 1 | N29: (10-50) | O29: 1 | P29: (10-100) | Q29: 1 | R29: (5-100) | S29: 1 | T29: (5-100) | U29: S | V29: (>10) | W29: 3 | X29: (21-30) | AA29: NK4T2A | AB29: 76 | AC29: 76 | AD29: 66 | AE29: 53 | AH29: C6T2 | AI29: 13 | AJ29: 50 | AK29: 13 | AL29: 50 | AM29: 11 | AN29: 40
B30: 25 | C30: 2 | D30: (16-35) | E30: 1 | F30: (20-40) | G30: 1 | H30: (20-55) | I30: 2 | J30: (16-30) | K30: 1 | L30: (>3) | M30: 1 | N30: (10-50) | O30: 1 | P30: (10-100) | Q30: 1 | R30: (5-100) | S30: 1 | T30: (5-100) | U30: S | V30: (>10) | W30: 3 | X30: (21-30) | AA30: NK4T3A | AB30: 87 | AC30: 87 | AD30: 76 | AE30: 61 | AH30: C6T3 | AI30: 14 | AJ30: 50 | AK30: 14 | AL30: 50 | AM30: 12 | AN30: 40
B31: 26 | C31: 2 | D31: (16-35) | E31: 1 | F31: (20-40) | G31: 1 | H31: (20-55) | I31: 2 | J31: (16-30) | K31: 1 | L31: (>3) | M31: 1 | N31: (10-50) | O31: 1 | P31: (10-100) | Q31: 1 | R31: (5-100) | S31: 1 | T31: (5-100) | U31: S | V31: (>10) | W31: 3 | X31: (21-30) | Z31: NK5 | AA31: NK5T1A | AB31: 102 | AC31: 102 | AD31: 89 | AE31: 71 | AG31: C7 | AH31: C7T0 | AI31: 12 | AJ31: 50 | AK31: 12 | AL31: 50 | AM31: 10 | AN31: 40
B32: 27 | C32: 2 | D32: (16-35) | E32: 1 | F32: (20-40) | G32: 1 | H32: (20-55) | I32: 2 | J32: (16-30) | K32: 1 | L32: (>3) | M32: 1 | N32: (10-50) | O32: 1 | P32: (10-100) | Q32: 1 | R32: (5-100) | S32: 1 | T32: (5-100) | U32: S | V32: (>10) | W32: 3 | X32: (21-30) | AA32: NK5T2A | AB32: 138 | AC32: 138 | AD32: 120 | AE32: 96 | AH32: C7T1 | AI32: 12 | AJ32: 50 | AK32: 12 | AL32: 50 | AM32: 10 | AN32: 40
B33: 28 | C33: 2 | D33: (16-35) | E33: 1 | F33: (20-40) | G33: 1 | H33: (20-55) | I33: 2 | J33: (16-30) | K33: 1 | L33: (>3) | M33: 1 | N33: (10-50) | O33: 1 | P33: (10-100) | Q33: 1 | R33: (5-100) | S33: 1 | T33: (5-100) | U33: S | V33: (>10) | W33: 3 | X33: (21-30) | AA33: NK5T3A | AB33: 156 | AC33: 156 | AD33: 136 | AE33: 109 | AH33: C7T2 | AI33: 17 | AJ33: 50 | AK33: 17 | AL33: 50 | AM33: 14 | AN33: 40
B34: 29 | C34: 2 | D34: (16-35) | E34: 1 | F34: (20-40) | G34: 1 | H34: (20-55) | I34: 2 | J34: (16-30) | K34: 1 | L34: (>3) | M34: 1 | N34: (10-50) | O34: 1 | P34: (10-100) | Q34: 1 | R34: (5-100) | S34: 1 | T34: (5-100) | U34: S | V34: (>10) | W34: 3 | X34: (21-30) | Z34: NK6 | AA34: NK6T1A | AB34: 137 | AC34: 137 | AD34: 119 | AE34: 95 | AH34: C7T3 | AI34: 19 | AJ34: 50 | AK34: 19 | AL34: 50 | AM34: 16 | AN34: 40
B35: 30 | C35: 2 | D35: (16-35) | E35: 1 | F35: (20-40) | G35: 1 | H35: (20-55) | I35: 2 | J35: (16-30) | K35: 1 | L35: (>3) | M35: 1 | N35: (10-50) | O35: 1 | P35: (10-100) | Q35: 1 | R35: (5-100) | S35: 1 | T35: (5-100) | U35: S | V35: (>10) | W35: 3 | X35: (21-30) | AA35: NK6T2A | AB35: 184 | AC35: 184 | AD35: 160 | AE35: 128 | AG35: C8 | AH35: C8T0 | AI35: 15 | AJ35: 50 | AK35: 15 | AL35: 50 | AM35: 13 | AN35: 40
B36: 31 | C36: 2 | D36: (16-35) | E36: 1 | F36: (20-40) | G36: 1 | H36: (20-55) | I36: 3 | J36: (31-50) | K36: 1 | L36: (>3) | M36: 1 | N36: (10-50) | O36: 1 | P36: (10-100) | Q36: 1 | R36: (5-100) | S36: 1 | T36: (5-100) | U36: S | V36: (>10) | W36: 4 | X36: (31-40) | AA36: NK6T3A | AB36: 210 | AC36: 210 | AD36: 183 | AE36: 146 | AH36: C8T1 | AI36: 15 | AJ36: 50 | AK36: 15 | AL36: 50 | AM36: 13 | AN36: 40
B37: 32 | C37: 2 | D37: (16-35) | E37: 1 | F37: (20-40) | G37: 1 | H37: (20-55) | I37: 3 | J37: (31-50) | K37: 1 | L37: (>3) | M37: 1 | N37: (10-50) | O37: 1 | P37: (10-100) | Q37: 1 | R37: (5-100) | S37: 1 | T37: (5-100) | U37: S | V37: (>10) | W37: 4 | X37: (31-40) | Z37: NK7 | AA37: NK7T1A | AB37: 145 | AC37: 145 | AD37: 126 | AE37: 101 | AH37: C8T2 | AI37: 21 | AJ37: 50 | AK37: 21 | AL37: 50 | AM37: 18 | AN37: 40
B38: 33 | C38: 2 | D38: (16-35) | E38: 1 | F38: (20-40) | G38: 1 | H38: (20-55) | I38: 3 | J38: (31-50) | K38: 1 | L38: (>3) | M38: 1 | N38: (10-50) | O38: 1 | P38: (10-100) | Q38: 1 | R38: (5-100) | S38: 1 | T38: (5-100) | U38: S | V38: (>10) | W38: 4 | X38: (31-40) | AA38: NK7T2A | AB38: 199 | AC38: 199 | AD38: 173 | AE38: 138 | AH38: C8T3 | AI38: 23 | AJ38: 50 | AK38: 23 | AL38: 50 | AM38: 20 | AN38: 40
B39: 34 | C39: 2 | D39: (16-35) | E39: 1 | F39: (20-40) | G39: 1 | H39: (20-55) | I39: 3 | J39: (31-50) | K39: 1 | L39: (>3) | M39: 1 | N39: (10-50) | O39: 1 | P39: (10-100) | Q39: 1 | R39: (5-100) | S39: 1 | T39: (5-100) | U39: S | V39: (>10) | W39: 4 | X39: (31-40) | AA39: NK7T3A | AB39: 224 | AC39: 224 | AD39: 195 | AE39: 156 | AG39: C9 | AH39: C9T0 | AI39: 21 | AJ39: 50 | AK39: 21 | AL39: 50 | AM39: 18 | AN39: 40
B40: 35 | C40: 2 | D40: (16-35) | E40: 1 | F40: (20-40) | G40: 1 | H40: (20-55) | I40: 3 | J40: (31-50) | K40: 1 | L40: (>3) | M40: 1 | N40: (10-50) | O40: 1 | P40: (10-100) | Q40: 1 | R40: (5-100) | S40: 1 | T40: (5-100) | U40: S | V40: (>10) | W40: 4 | X40: (31-40) | Z40: NK8 | AA40: NK8T1A | AB40: 148 | AC40: 148 | AD40: 129 | AE40: 103 | AH40: C9T1 | AI40: 21 | AJ40: 50 | AK40: 21 | AL40: 50 | AM40: 18 | AN40: 40
B41: 36 | C41: 3 | D41: (36-55) | E41: 1 | F41: (20-40) | G41: 1 | H41: (20-55) | I41: 3 | J41: (31-50) | K41: 1 | L41: (>3) | M41: 1 | N41: (10-50) | O41: 1 | P41: (10-100) | Q41: 1 | R41: (5-100) | S41: 1 | T41: (5-100) | U41: S | V41: (>10) | W41: 4 | X41: (31-40) | AA41: NK8T2A | AB41: 200 | AC41: 200 | AD41: 174 | AE41: 139 | AH41: C9T2 | AI41: 28 | AJ41: 50 | AK41: 28 | AL41: 50 | AM41: 24 | AN41: 40
B42: 37 | C42: 3 | D42: (36-55) | E42: 1 | F42: (20-40) | G42: 1 | H42: (20-55) | I42: 3 | J42: (31-50) | K42: 1 | L42: (>3) | M42: 1 | N42: (10-50) | O42: 1 | P42: (10-100) | Q42: 1 | R42: (5-100) | S42: 1 | T42: (5-100) | U42: S | V42: (>10) | W42: 4 | X42: (31-40) | AA42: NK8T3A | AB42: 229 | AC42: 229 | AD42: 199 | AE42: 159 | AH42: C9T3 | AI42: 32 | AJ42: 50 | AK42: 32 | AL42: 50 | AM42: 27 | AN42: 40
B43: 38 | C43: 3 | D43: (36-55) | E43: 1 | F43: (20-40) | G43: 1 | H43: (20-55) | I43: 3 | J43: (31-50) | K43: 1 | L43: (>3) | M43: 1 | N43: (10-50) | O43: 1 | P43: (10-100) | Q43: 1 | R43: (5-100) | S43: 1 | T43: (5-100) | U43: S | V43: (>10) | W43: 4 | X43: (31-40) | Z43: NK9 | AA43: NK9T1A | AB43: 156 | AC43: 156 | AD43: 136 | AE43: 109 | AG43: CA1 | AH43: CA1T0 | AI43: =AK43 -> 4 | AJ43: 70 | AK43: 4 | AL43: 70 | AM43: 3 | AN43: 60
B44: 39 | C44: 3 | D44: (36-55) | E44: 1 | F44: (20-40) | G44: 1 | H44: (20-55) | I44: 3 | J44: (31-50) | K44: 1 | L44: (>3) | M44: 1 | N44: (10-50) | O44: 1 | P44: (10-100) | Q44: 1 | R44: (5-100) | S44: 1 | T44: (5-100) | U44: S | V44: (>10) | W44: 4 | X44: (31-40) | AA44: NK9T2A | AB44: 210 | AC44: 210 | AD44: 183 | AE44: 146 | AH44: CA1T1 | AI44: 4 | AJ44: 70 | AK44: 4 | AL44: 70 | AM44: 3 | AN44: 60
B45: 40 | C45: 3 | D45: (36-55) | E45: 1 | F45: (20-40) | G45: 1 | H45: (20-55) | I45: 3 | J45: (31-50) | K45: 1 | L45: (>3) | M45: 1 | N45: (10-50) | O45: 1 | P45: (10-100) | Q45: 1 | R45: (5-100) | S45: 1 | T45: (5-100) | U45: S | V45: (>10) | W45: 4 | X45: (31-40) | AA45: NK9T3A | AB45: 242 | AC45: 242 | AD45: 210 | AE45: 168 | AH45: CA1T2 | AI45: 6 | AJ45: 70 | AK45: 6 | AL45: 70 | AM45: 5 | AN45: 60
B46: 41 | C46: 3 | D46: (36-55) | E46: 2 | F46: (41-55) | G46: 1 | H46: (20-55) | I46: 3 | J46: (31-50) | K46: 1 | L46: (>3) | M46: 1 | N46: (10-50) | O46: 1 | P46: (10-100) | Q46: 1 | R46: (5-100) | S46: 1 | T46: (5-100) | U46: S | V46: (>10) | W46: 5 | X46: (41-50) | Z46: NK10 | AA46: NK10T1A | AB46: 161 | AC46: 161 | AD46: 140 | AE46: 112 | AH46: CA1T3 | AI46: 6 | AJ46: 70 | AK46: 6 | AL46: 70 | AM46: 5 | AN46: 60
B47: 42 | C47: 3 | D47: (36-55) | E47: 2 | F47: (41-55) | G47: 1 | H47: (20-55) | I47: 3 | J47: (31-50) | K47: 1 | L47: (>3) | M47: 1 | N47: (10-50) | O47: 1 | P47: (10-100) | Q47: 1 | R47: (5-100) | S47: 1 | T47: (5-100) | U47: S | V47: (>10) | W47: 5 | X47: (41-50) | AA47: NK10T2A | AB47: 217 | AC47: 217 | AD47: 189 | AE47: 151 | AG47: CA2 | AH47: CA2T0 | AI47: 7 | AJ47: 70 | AK47: 7 | AL47: 70 | AM47: 6 | AN47: 60
B48: 43 | C48: 3 | D48: (36-55) | E48: 2 | F48: (41-55) | G48: 1 | H48: (20-55) | I48: 3 | J48: (31-50) | K48: 1 | L48: (>3) | M48: 1 | N48: (10-50) | O48: 1 | P48: (10-100) | Q48: 1 | R48: (5-100) | S48: 1 | T48: (5-100) | U48: S | V48: (>10) | W48: 5 | X48: (41-50) | AA48: NK10T3A | AB48: 248 | AC48: 248 | AD48: 216 | AE48: 173 | AH48: CA2T1 | AI48: 7 | AJ48: 70 | AK48: 7 | AL48: 70 | AM48: 6 | AN48: 60
B49: 44 | C49: 3 | D49: (36-55) | E49: 2 | F49: (41-55) | G49: 1 | H49: (20-55) | I49: 3 | J49: (31-50) | K49: 1 | L49: (>3) | M49: 1 | N49: (10-50) | O49: 1 | P49: (10-100) | Q49: 1 | R49: (5-100) | S49: 1 | T49: (5-100) | U49: S | V49: (>10) | W49: 5 | X49: (41-50) | Z49: NK11 | AA49: NK11T1A | AB49: 179 | AC49: 179 | AD49: 156 | AE49: 125 | AH49: CA2T2 | AI49: 10 | AJ49: 70 | AK49: 10 | AL49: 70 | AM49: 8 | AN49: 60
B50: 45 | C50: 3 | D50: (36-55) | E50: 2 | F50: (41-55) | G50: 1 | H50: (20-55) | I50: 3 | J50: (31-50) | K50: 1 | L50: (>3) | M50: 1 | N50: (10-50) | O50: 1 | P50: (10-100) | Q50: 1 | R50: (5-100) | S50: 1 | T50: (5-100) | U50: S | V50: (>10) | W50: 5 | X50: (41-50) | AA50: NK11T2A | AB50: 243 | AC50: 243 | AD50: 211 | AE50: 169 | AH50: CA2T3 | AI50: 13 | AJ50: 70 | AK50: 13 | AL50: 70 | AM50: 11 | AN50: 60
B51: 46 | C51: 3 | D51: (36-55) | E51: 2 | F51: (41-55) | G51: 1 | H51: (20-55) | I51: 3 | J51: (31-50) | K51: 1 | L51: (>3) | M51: 1 | N51: (10-50) | O51: 1 | P51: (10-100) | Q51: 1 | R51: (5-100) | S51: 1 | T51: (5-100) | U51: S | V51: (>10) | W51: 5 | X51: (41-50) | AA51: NK11T3A | AB51: 277 | AC51: 277 | AD51: 241 | AE51: 193 | AG51: CA3 | AH51: CA3T0 | AI51: 9 | AJ51: 70 | AK51: 9 | AL51: 70 | AM51: 7 | AN51: 60
B52: 47 | C52: 3 | D52: (36-55) | E52: 2 | F52: (41-55) | G52: 1 | H52: (20-55) | I52: 3 | J52: (31-50) | K52: 1 | L52: (>3) | M52: 1 | N52: (10-50) | O52: 1 | P52: (10-100) | Q52: 1 | R52: (5-100) | S52: 1 | T52: (5-100) | U52: S | V52: (>10) | W52: 5 | X52: (41-50) | Z52: NF1 | AA52: NF1T1A | AB52: 15 | AC52: 15 | AD52: 13 | AE52: 10 | AH52: CA3T1 | AI52: 9 | AJ52: 70 | AK52: 9 | AL52: 70 | AM52: 7 | AN52: 60
B53: 48 | C53: 3 | D53: (36-55) | E53: 2 | F53: (41-55) | G53: 1 | H53: (20-55) | I53: 3 | J53: (31-50) | K53: 1 | L53: (>3) | M53: 1 | N53: (10-50) | O53: 1 | P53: (10-100) | Q53: 1 | R53: (5-100) | S53: 1 | T53: (5-100) | U53: S | V53: (>10) | W53: 5 | X53: (41-50) | AA53: NF1T2A | AB53: 21 | AC53: 21 | AD53: 18 | AE53: 14 | AH53: CA3T2 | AI53: 12 | AJ53: 70 | AK53: 12 | AL53: 70 | AM53: 10 | AN53: 60
B54: 49 | C54: 3 | D54: (36-55) | E54: 2 | F54: (41-55) | G54: 1 | H54: (20-55) | I54: 3 | J54: (31-50) | K54: 1 | L54: (>3) | M54: 1 | N54: (10-50) | O54: 1 | P54: (10-100) | Q54: 1 | R54: (5-100) | S54: 1 | T54: (5-100) | U54: S | V54: (>10) | W54: 5 | X54: (41-50) | AA54: NF1T3A | AB54: 22 | AC54: 22 | AD54: 19 | AE54: 15 | AH54: CA3T3 | AI54: 17 | AJ54: 70 | AK54: 17 | AL54: 70 | AM54: 14 | AN54: 60
B55: 50 | C55: 3 | D55: (36-55) | E55: 2 | F55: (41-55) | G55: 1 | H55: (20-55) | I55: 3 | J55: (31-50) | K55: 1 | L55: (>3) | M55: 1 | N55: (10-50) | O55: 1 | P55: (10-100) | Q55: 1 | R55: (5-100) | S55: 1 | T55: (5-100) | U55: S | V55: (>10) | W55: 5 | X55: (41-50) | Z55: NF2 | AA55: NF2T1A | AB55: 35 | AC55: 35 | AD55: 30 | AE55: 24 | AG55: CA4 | AH55: CA4T0 | AI55: 11 | AJ55: 70 | AK55: 11 | AL55: 70 | AM55: 9 | AN55: 60
B56: 51 | C56: 3 | D56: (36-55) | E56: 2 | F56: (41-55) | G56: 1 | H56: (20-55) | I56: 4 | J56: (51-70) | K56: 1 | L56: (>3) | M56: 2 | N56: (51-100) | O56: 1 | P56: (10-100) | Q56: 1 | R56: (5-100) | S56: 1 | T56: (5-100) | U56: S | V56: (>10) | W56: 6 | X56: (51-60) | AA56: NF2T2A | AB56: 45 | AC56: 45 | AD56: 39 | AE56: 31 | AH56: CA4T1 | AI56: 11 | AJ56: 70 | AK56: 11 | AL56: 70 | AM56: 9 | AN56: 60
B57: 52 | C57: 3 | D57: (36-55) | E57: 2 | F57: (41-55) | G57: 1 | H57: (20-55) | I57: 4 | J57: (51-70) | K57: 1 | L57: (>3) | M57: 2 | N57: (51-100) | O57: 1 | P57: (10-100) | Q57: 1 | R57: (5-100) | S57: 1 | T57: (5-100) | U57: S | V57: (>10) | W57: 6 | X57: (51-60) | AA57: NF2T3A | AB57: 52 | AC57: 52 | AD57: 45 | AE57: 36 | AH57: CA4T2 | AI57: 14 | AJ57: 70 | AK57: 14 | AL57: 70 | AM57: 12 | AN57: 60
B58: 53 | C58: 3 | D58: (36-55) | E58: 2 | F58: (41-55) | G58: 1 | H58: (20-55) | I58: 4 | J58: (51-70) | K58: 1 | L58: (>3) | M58: 2 | N58: (51-100) | O58: 1 | P58: (10-100) | Q58: 1 | R58: (5-100) | S58: 1 | T58: (5-100) | U58: S | V58: (>10) | W58: 6 | X58: (51-60) | Z58: NF3 | AA58: NF3T1A | AB58: 55 | AC58: 55 | AD58: 48 | AE58: 38 | AH58: CA4T3 | AI58: 22 | AJ58: 70 | AK58: 22 | AL58: 70 | AM58: 19 | AN58: 60
B59: 54 | C59: 3 | D59: (36-55) | E59: 2 | F59: (41-55) | G59: 1 | H59: (20-55) | I59: 4 | J59: (51-70) | K59: 1 | L59: (>3) | M59: 2 | N59: (51-100) | O59: 1 | P59: (10-100) | Q59: 1 | R59: (5-100) | S59: 1 | T59: (5-100) | U59: S | V59: (>10) | W59: 6 | X59: (51-60) | AA59: NF3T2A | AB59: 74 | AC59: 74 | AD59: 64 | AE59: 51 | AG59: CA5 | AH59: CA5T0 | AI59: 13 | AJ59: 70 | AK59: 13 | AL59: 70 | AM59: 11 | AN59: 60
B60: 55 | C60: 3 | D60: (36-55) | E60: 2 | F60: (41-55) | G60: 1 | H60: (20-55) | I60: 4 | J60: (51-70) | K60: 1 | L60: (>3) | M60: 2 | N60: (51-100) | O60: 1 | P60: (10-100) | Q60: 1 | R60: (5-100) | S60: 1 | T60: (5-100) | U60: S | V60: (>10) | W60: 6 | X60: (51-60) | AA60: NF3T3A | AB60: 85 | AC60: 85 | AD60: 74 | AE60: 59 | AH60: CA5T1 | AI60: 13 | AJ60: 70 | AK60: 13 | AL60: 70 | AM60: 11 | AN60: 60
B61: 56 | C61: 4 | D61: (56-100) | E61: 3 | F61: (56-80) | G61: 2 | H61: (56-100) | I61: 4 | J61: (51-70) | K61: 1 | L61: (>3) | M61: 2 | N61: (51-100) | O61: 1 | P61: (10-100) | Q61: 1 | R61: (5-100) | S61: 1 | T61: (5-100) | U61: S | V61: (>10) | W61: 6 | X61: (51-60) | Z61: NF4 | AA61: NF4T1A | AB61: 72 | AC61: 72 | AD61: 63 | AE61: 50 | AH61: CA5T2 | AI61: 18 | AJ61: 70 | AK61: 18 | AL61: 70 | AM61: 15 | AN61: 60
B62: 57 | C62: 4 | D62: (56-100) | E62: 3 | F62: (56-80) | G62: 2 | H62: (56-100) | I62: 4 | J62: (51-70) | K62: 1 | L62: (>3) | M62: 2 | N62: (51-100) | O62: 1 | P62: (10-100) | Q62: 1 | R62: (5-100) | S62: 1 | T62: (5-100) | U62: S | V62: (>10) | W62: 6 | X62: (51-60) | AA62: NF4T2A | AB62: 95 | AC62: 95 | AD62: 83 | AE62: 66 | AH62: CA5T3 | AI62: 26 | AJ62: 70 | AK62: 26 | AL62: 70 | AM62: 22 | AN62: 60
B63: 58 | C63: 4 | D63: (56-100) | E63: 3 | F63: (56-80) | G63: 2 | H63: (56-100) | I63: 4 | J63: (51-70) | K63: 1 | L63: (>3) | M63: 2 | N63: (51-100) | O63: 1 | P63: (10-100) | Q63: 1 | R63: (5-100) | S63: 1 | T63: (5-100) | U63: S | V63: (>10) | W63: 6 | X63: (51-60) | AA63: NF4T3A | AB63: 109 | AC63: 109 | AD63: 95 | AE63: 76 | AG63: CA6 | AH63: CA6T0 | AI63: 15 | AJ63: 70 | AK63: 15 | AL63: 70 | AM63: 13 | AN63: 60
B64: 59 | C64: 4 | D64: (56-100) | E64: 3 | F64: (56-80) | G64: 2 | H64: (56-100) | I64: 4 | J64: (51-70) | K64: 1 | L64: (>3) | M64: 2 | N64: (51-100) | O64: 1 | P64: (10-100) | Q64: 1 | R64: (5-100) | S64: 1 | T64: (5-100) | U64: S | V64: (>10) | W64: 6 | X64: (51-60) | Z64: NF5 | AA64: NF5T1A | AB64: 177 | AC64: 177 | AD64: 154 | AE64: 123 | AH64: CA6T1 | AI64: 15 | AJ64: 70 | AK64: 15 | AL64: 70 | AM64: 13 | AN64: 60
B65: 60 | C65: 4 | D65: (56-100) | E65: 3 | F65: (56-80) | G65: 2 | H65: (56-100) | I65: 4 | J65: (51-70) | K65: 1 | L65: (>3) | M65: 2 | N65: (51-100) | O65: 1 | P65: (10-100) | Q65: 1 | R65: (5-100) | S65: 1 | T65: (5-100) | U65: S | V65: (>10) | W65: 6 | X65: (51-60) | AA65: NF5T2A | AB65: 237 | AC65: 237 | AD65: 206 | AE65: 165 | AH65: CA6T2 | AI65: 21 | AJ65: 70 | AK65: 21 | AL65: 70 | AM65: 18 | AN65: 60
B66: 61 | C66: 4 | D66: (56-100) | E66: 3 | F66: (56-80) | G66: 2 | H66: (56-100) | I66: 4 | J66: (51-70) | K66: 1 | L66: (>3) | M66: 2 | N66: (51-100) | O66: 1 | P66: (10-100) | Q66: 1 | R66: (5-100) | S66: 1 | T66: (5-100) | U66: S | V66: (>10) | W66: 7 | X66: (61-80) | AA66: NF5T3A | AB66: 271 | AC66: 271 | AD66: 236 | AE66: 189 | AH66: CA6T3 | AI66: 30 | AJ66: 70 | AK66: 30 | AL66: 70 | AM66: 26 | AN66: 60
B67: 62 | C67: 4 | D67: (56-100) | E67: 3 | F67: (56-80) | G67: 2 | H67: (56-100) | I67: 4 | J67: (51-70) | K67: 1 | L67: (>3) | M67: 2 | N67: (51-100) | O67: 1 | P67: (10-100) | Q67: 1 | R67: (5-100) | S67: 1 | T67: (5-100) | U67: S | V67: (>10) | W67: 7 | X67: (61-80) | Z67: NF6 | AA67: NF6T1A | AB67: 252 | AC67: 252 | AD67: 219 | AE67: 175 | AG67: CA7 | AH67: CA7T0 | AI67: 20 | AJ67: 70 | AK67: 20 | AL67: 70 | AM67: 17 | AN67: 60
B68: 63 | C68: 4 | D68: (56-100) | E68: 3 | F68: (56-80) | G68: 2 | H68: (56-100) | I68: 4 | J68: (51-70) | K68: 1 | L68: (>3) | M68: 2 | N68: (51-100) | O68: 1 | P68: (10-100) | Q68: 1 | R68: (5-100) | S68: 1 | T68: (5-100) | U68: S | V68: (>10) | W68: 7 | X68: (61-80) | AA68: NF6T2A | AB68: 338 | AC68: 338 | AD68: 294 | AE68: 235 | AH68: CA7T1 | AI68: 20 | AJ68: 70 | AK68: 20 | AL68: 70 | AM68: 17 | AN68: 60
B69: 64 | C69: 4 | D69: (56-100) | E69: 3 | F69: (56-80) | G69: 2 | H69: (56-100) | I69: 4 | J69: (51-70) | K69: 1 | L69: (>3) | M69: 2 | N69: (51-100) | O69: 1 | P69: (10-100) | Q69: 1 | R69: (5-100) | S69: 1 | T69: (5-100) | U69: S | V69: (>10) | W69: 7 | X69: (61-80) | AA69: NF6T3A | AB69: 386 | AC69: 386 | AD69: 336 | AE69: 269 | AH69: CA7T2 | AI69: 27 | AJ69: 70 | AK69: 27 | AL69: 70 | AM69: 23 | AN69: 60
B70: 65 | C70: 4 | D70: (56-100) | E70: 3 | F70: (56-80) | G70: 2 | H70: (56-100) | I70: 4 | J70: (51-70) | K70: 1 | L70: (>3) | M70: 2 | N70: (51-100) | O70: 1 | P70: (10-100) | Q70: 1 | R70: (5-100) | S70: 1 | T70: (5-100) | U70: S | V70: (>10) | W70: 7 | X70: (61-80) | Z70: NF7 | AA70: NF7T1A | AB70: 289 | AC70: 289 | AD70: 251 | AE70: 201 | AH70: CA7T3 | AI70: 38 | AJ70: 70 | AK70: 38 | AL70: 70 | AM70: 33 | AN70: 60
B71: 66 | C71: 4 | D71: (56-100) | E71: 3 | F71: (56-80) | G71: 2 | H71: (56-100) | I71: 4 | J71: (51-70) | K71: 1 | L71: (>3) | M71: 2 | N71: (51-100) | O71: 1 | P71: (10-100) | Q71: 1 | R71: (5-100) | S71: 1 | T71: (5-100) | U71: S | V71: (>10) | W71: 7 | X71: (61-80) | AA71: NF7T2A | AB71: 392 | AC71: 392 | AD71: 341 | AE71: 273 | AG71: CA8 | AH71: CA8T0 | AI71: 26 | AJ71: 70 | AK71: 26 | AL71: 70 | AM71: 22 | AN71: 60
B72: 67 | C72: 4 | D72: (56-100) | E72: 3 | F72: (56-80) | G72: 2 | H72: (56-100) | I72: 4 | J72: (51-70) | K72: 1 | L72: (>3) | M72: 2 | N72: (51-100) | O72: 1 | P72: (10-100) | Q72: 1 | R72: (5-100) | S72: 1 | T72: (5-100) | U72: S | V72: (>10) | W72: 7 | X72: (61-80) | AA72: NF7T3A | AB72: 446 | AC72: 446 | AD72: 388 | AE72: 310 | AH72: CA8T1 | AI72: 26 | AJ72: 70 | AK72: 26 | AL72: 70 | AM72: 22 | AN72: 60
B73: 68 | C73: 4 | D73: (56-100) | E73: 3 | F73: (56-80) | G73: 2 | H73: (56-100) | I73: 4 | J73: (51-70) | K73: 1 | L73: (>3) | M73: 2 | N73: (51-100) | O73: 1 | P73: (10-100) | Q73: 1 | R73: (5-100) | S73: 1 | T73: (5-100) | U73: S | V73: (>10) | W73: 7 | X73: (61-80) | Z73: NF8 | AA73: NF8T1A | AB73: 323 | AC73: 323 | AD73: 281 | AE73: 225 | AH73: CA8T2 | AI73: 34 | AJ73: 70 | AK73: 34 | AL73: 70 | AM73: 29 | AN73: 60
B74: 69 | C74: 4 | D74: (56-100) | E74: 3 | F74: (56-80) | G74: 2 | H74: (56-100) | I74: 4 | J74: (51-70) | K74: 1 | L74: (>3) | M74: 2 | N74: (51-100) | O74: 1 | P74: (10-100) | Q74: 1 | R74: (5-100) | S74: 1 | T74: (5-100) | U74: S | V74: (>10) | W74: 7 | X74: (61-80) | AA74: NF8T2A | AB74: 437 | AC74: 437 | AD74: 380 | AE74: 304 | AH74: CA8T3 | AI74: 50 | AJ74: 70 | AK74: 50 | AL74: 70 | AM74: 43 | AN74: 60
B75: 70 | C75: 4 | D75: (56-100) | E75: 3 | F75: (56-80) | G75: 2 | H75: (56-100) | I75: 4 | J75: (51-70) | K75: 1 | L75: (>3) | M75: 2 | N75: (51-100) | O75: 1 | P75: (10-100) | Q75: 1 | R75: (5-100) | S75: 1 | T75: (5-100) | U75: S | V75: (>10) | W75: 7 | X75: (61-80) | AA75: NF8T3A | AB75: 498 | AC75: 498 | AD75: 433 | AE75: 346 | AG75: CA9 | AH75: CA9T0 | AI75: 34 | AJ75: 70 | AK75: 34 | AL75: 70 | AM75: 29 | AN75: 60
B76: 71 | C76: 4 | D76: (56-100) | E76: 3 | F76: (56-80) | G76: 2 | H76: (56-100) | I76: 5 | J76: (71-100) | K76: 1 | L76: (>3) | M76: 2 | N76: (51-100) | O76: 1 | P76: (10-100) | Q76: 1 | R76: (5-100) | S76: 1 | T76: (5-100) | U76: S | V76: (>10) | W76: 7 | X76: (61-80) | Z76: NF9 | AA76: NF9T1A | AB76: 351 | AC76: 351 | AD76: 305 | AE76: 244 | AH76: CA9T1 | AI76: 34 | AJ76: 70 | AK76: 34 | AL76: 70 | AM76: 29 | AN76: 60
B77: 72 | C77: 4 | D77: (56-100) | E77: 3 | F77: (56-80) | G77: 2 | H77: (56-100) | I77: 5 | J77: (71-100) | K77: 1 | L77: (>3) | M77: 2 | N77: (51-100) | O77: 1 | P77: (10-100) | Q77: 1 | R77: (5-100) | S77: 1 | T77: (5-100) | U77: S | V77: (>10) | W77: 7 | X77: (61-80) | AA77: NF9T2A | AB77: 475 | AC77: 475 | AD77: 413 | AE77: 330 | AH77: CA9T2 | AI77: 45 | AJ77: 70 | AK77: 45 | AL77: 70 | AM77: 39 | AN77: 60
B78: 73 | C78: 4 | D78: (56-100) | E78: 3 | F78: (56-80) | G78: 2 | H78: (56-100) | I78: 5 | J78: (71-100) | K78: 1 | L78: (>3) | M78: 2 | N78: (51-100) | O78: 1 | P78: (10-100) | Q78: 1 | R78: (5-100) | S78: 1 | T78: (5-100) | U78: S | V78: (>10) | W78: 7 | X78: (61-80) | AA78: NF9T3A | AB78: 541 | AC78: 541 | AD78: 470 | AE78: 376 | AH78: CA9T3 | AI78: 66 | AJ78: 70 | AK78: 66 | AL78: 70 | AM78: 57 | AN78: 60
B79: 74 | C79: 4 | D79: (56-100) | E79: 3 | F79: (56-80) | G79: 2 | H79: (56-100) | I79: 5 | J79: (71-100) | K79: 1 | L79: (>3) | M79: 2 | N79: (51-100) | O79: 1 | P79: (10-100) | Q79: 1 | R79: (5-100) | S79: 1 | T79: (5-100) | U79: S | V79: (>10) | W79: 7 | X79: (61-80) | Z79: NF10 | AA79: NF10T1A | AB79: 374 | AC79: 374 | AD79: 325 | AE79: 260 | AG79: CN1 | AH79: CN1T0 | AI79: 25 | AJ79: 25 | AK79: 11 | AL79: 11 | AM79: 9 | AN79: 9
B80: 75 | C80: 4 | D80: (56-100) | E80: 3 | F80: (56-80) | G80: 2 | H80: (56-100) | I80: 5 | J80: (71-100) | K80: 1 | L80: (>3) | M80: 2 | N80: (51-100) | O80: 1 | P80: (10-100) | Q80: 1 | R80: (5-100) | S80: 1 | T80: (5-100) | U80: S | V80: (>10) | W80: 7 | X80: (61-80) | AA80: NF10T2A | AB80: 505 | AC80: 505 | AD80: 439 | AE80: 351 | AH80: CN1T1 | AI80: 50 | AJ80: 50 | AK80: 11 | AL80: 11 | AM80: 9 | AN80: 9
B81: 76 | C81: 4 | D81: (56-100) | E81: 3 | F81: (56-80) | G81: 2 | H81: (56-100) | I81: 5 | J81: (71-100) | K81: 1 | L81: (>3) | M81: 2 | N81: (51-100) | O81: 1 | P81: (10-100) | Q81: 1 | R81: (5-100) | S81: 1 | T81: (5-100) | U81: S | V81: (>10) | W81: 7 | X81: (61-80) | AA81: NF10T3A | AB81: 575 | AC81: 575 | AD81: 500 | AE81: 400 | AH81: CN1T2 | AI81: 75 | AJ81: 75 | AK81: 14 | AL81: 14 | AM81: 12 | AN81: 12
B82: 77 | C82: 4 | D82: (56-100) | E82: 3 | F82: (56-80) | G82: 2 | H82: (56-100) | I82: 5 | J82: (71-100) | K82: 1 | L82: (>3) | M82: 2 | N82: (51-100) | O82: 1 | P82: (10-100) | Q82: 1 | R82: (5-100) | S82: 1 | T82: (5-100) | U82: S | V82: (>10) | W82: 7 | X82: (61-80) | Z82: NF11 | AA82: NF11T1A | AB82: 409 | AC82: 409 | AD82: 356 | AE82: 285 | AH82: CN1T3 | AI82: 100 | AJ82: 100 | AK82: 18 | AL82: 18 | AM82: 15 | AN82: 15
B83: 78 | C83: 4 | D83: (56-100) | E83: 3 | F83: (56-80) | G83: 2 | H83: (56-100) | I83: 5 | J83: (71-100) | K83: 1 | L83: (>3) | M83: 2 | N83: (51-100) | O83: 1 | P83: (10-100) | Q83: 1 | R83: (5-100) | S83: 1 | T83: (5-100) | U83: S | V83: (>10) | W83: 7 | X83: (61-80) | AA83: NF11T2A | AB83: 553 | AC83: 553 | AD83: 481 | AE83: 385 | AG83: CN2 | AH83: CN2T0 | AI83: 25 | AJ83: 25 | AK83: 29 | AL83: 29 | AM83: 25 | AN83: 25
B84: 79 | C84: 4 | D84: (56-100) | E84: 3 | F84: (56-80) | G84: 2 | H84: (56-100) | I84: 5 | J84: (71-100) | K84: 1 | L84: (>3) | M84: 2 | N84: (51-100) | O84: 1 | P84: (10-100) | Q84: 1 | R84: (5-100) | S84: 1 | T84: (5-100) | U84: S | V84: (>10) | W84: 7 | X84: (61-80) | AA84: NF11T3A | AB84: 631 | AC84: 631 | AD84: 549 | AE84: 439 | AH84: CN2T1 | AI84: 50 | AJ84: 50 | AK84: 29 | AL84: 29 | AM84: 25 | AN84: 25
B85: 80 | C85: 4 | D85: (56-100) | E85: 3 | F85: (56-80) | G85: 2 | H85: (56-100) | I85: 5 | J85: (71-100) | K85: 1 | L85: (>3) | M85: 2 | N85: (51-100) | O85: 1 | P85: (10-100) | Q85: 1 | R85: (5-100) | S85: 1 | T85: (5-100) | U85: S | V85: (>10) | W85: 7 | X85: (61-80) | Z85: LL1 | AA85: LL1T1A | AB85: 1 | AC85: 1 | AD85: 1 | AE85: 1 | AH85: CN2T2 | AI85: 75 | AJ85: 75 | AK85: 38 | AL85: 38 | AM85: 33 | AN85: 33
B86: 81 | C86: 4 | D86: (56-100) | E86: 4 | F86: (81-100) | G86: 2 | H86: (56-100) | I86: 5 | J86: (71-100) | K86: 1 | L86: (>3) | M86: 2 | N86: (51-100) | O86: 1 | P86: (10-100) | Q86: 1 | R86: (5-100) | S86: 1 | T86: (5-100) | U86: S | V86: (>10) | W86: 8 | X86: (81-100) | AA86: LL1T2A | AB86: 1 | AC86: 1 | AD86: 1 | AE86: 1 | AH86: CN2T3 | AI86: 100 | AJ86: 100 | AK86: 44 | AL86: 44 | AM86: 38 | AN86: 38
B87: 82 | C87: 4 | D87: (56-100) | E87: 4 | F87: (81-100) | G87: 2 | H87: (56-100) | I87: 5 | J87: (71-100) | K87: 1 | L87: (>3) | M87: 2 | N87: (51-100) | O87: 1 | P87: (10-100) | Q87: 1 | R87: (5-100) | S87: 1 | T87: (5-100) | U87: S | V87: (>10) | W87: 8 | X87: (81-100) | AA87: LL1T3A | AB87: 1 | AC87: 1 | AD87: 1 | AE87: 1 | AG87: CN3 | AH87: CN3T0 | AI87: 25 | AJ87: 25 | AK87: 43 | AL87: 43 | AM87: 37 | AN87: 37
B88: 83 | C88: 4 | D88: (56-100) | E88: 4 | F88: (81-100) | G88: 2 | H88: (56-100) | I88: 5 | J88: (71-100) | K88: 1 | L88: (>3) | M88: 2 | N88: (51-100) | O88: 1 | P88: (10-100) | Q88: 1 | R88: (5-100) | S88: 1 | T88: (5-100) | U88: S | V88: (>10) | W88: 8 | X88: (81-100) | Z88: LLD1 | AA88: LLD1T1A | AB88: 4 | AC88: 4 | AD88: 4 | AE88: 4 | AH88: CN3T1 | AI88: 50 | AJ88: 50 | AK88: 43 | AL88: 43 | AM88: 37 | AN88: 37
B89: 84 | C89: 4 | D89: (56-100) | E89: 4 | F89: (81-100) | G89: 2 | H89: (56-100) | I89: 5 | J89: (71-100) | K89: 1 | L89: (>3) | M89: 2 | N89: (51-100) | O89: 1 | P89: (10-100) | Q89: 1 | R89: (5-100) | S89: 1 | T89: (5-100) | U89: S | V89: (>10) | W89: 8 | X89: (81-100) | AA89: LLD1T2A | AB89: 4 | AC89: 4 | AD89: 4 | AE89: 4 | AH89: CN3T2 | AI89: 75 | AJ89: 75 | AK89: 58 | AL89: 58 | AM89: 50 | AN89: 50
B90: 85 | C90: 4 | D90: (56-100) | E90: 4 | F90: (81-100) | G90: 2 | H90: (56-100) | I90: 5 | J90: (71-100) | K90: 1 | L90: (>3) | M90: 2 | N90: (51-100) | O90: 1 | P90: (10-100) | Q90: 1 | R90: (5-100) | S90: 1 | T90: (5-100) | U90: S | V90: (>10) | W90: 8 | X90: (81-100) | AA90: LLD1T3A | AB90: 4 | AC90: 4 | AD90: 4 | AE90: 4 | AH90: CN3T3 | AI90: 100 | AJ90: 100 | AK90: 67 | AL90: 67 | AM90: 58 | AN90: 58
B91: 86 | C91: 4 | D91: (56-100) | E91: 4 | F91: (81-100) | G91: 2 | H91: (56-100) | I91: 5 | J91: (71-100) | K91: 1 | L91: (>3) | M91: 2 | N91: (51-100) | O91: 1 | P91: (10-100) | Q91: 1 | R91: (5-100) | S91: 1 | T91: (5-100) | U91: S | V91: (>10) | W91: 8 | X91: (81-100) | Z91: LK1 | AA91: LK1T1A | AB91: 21 | AC91: 21 | AD91: 13 | AE91: 10 | AG91: CN4 | AH91: CN4T0 | AI91: 25 | AJ91: 25 | AK91: 55 | AL91: 55 | AM91: 47 | AN91: 47
B92: 87 | C92: 4 | D92: (56-100) | E92: 4 | F92: (81-100) | G92: 2 | H92: (56-100) | I92: 5 | J92: (71-100) | K92: 1 | L92: (>3) | M92: 2 | N92: (51-100) | O92: 1 | P92: (10-100) | Q92: 1 | R92: (5-100) | S92: 1 | T92: (5-100) | U92: S | V92: (>10) | W92: 8 | X92: (81-100) | AA92: LK1T2A | AB92: 29 | AC92: 29 | AD92: 18 | AE92: 14 | AH92: CN4T1 | AI92: 50 | AJ92: 50 | AK92: 55 | AL92: 55 | AM92: 47 | AN92: 47
B93: 88 | C93: 4 | D93: (56-100) | E93: 4 | F93: (81-100) | G93: 2 | H93: (56-100) | I93: 5 | J93: (71-100) | K93: 1 | L93: (>3) | M93: 2 | N93: (51-100) | O93: 1 | P93: (10-100) | Q93: 1 | R93: (5-100) | S93: 1 | T93: (5-100) | U93: S | V93: (>10) | W93: 8 | X93: (81-100) | AA93: LK1T3A | AB93: 33 | AC93: 33 | AD93: 20 | AE93: 16 | AH93: CN4T2 | AI93: 75 | AJ93: 75 | AK93: 75 | AL93: 75 | AM93: 65 | AN93: 65
B94: 89 | C94: 4 | D94: (56-100) | E94: 4 | F94: (81-100) | G94: 2 | H94: (56-100) | I94: 5 | J94: (71-100) | K94: 1 | L94: (>3) | M94: 2 | N94: (51-100) | O94: 1 | P94: (10-100) | Q94: 1 | R94: (5-100) | S94: 1 | T94: (5-100) | U94: S | V94: (>10) | W94: 8 | X94: (81-100) | Z94: LK2 | AA94: LK2T1A | AB94: 45 | AC94: 45 | AD94: 29 | AE94: 23 | AH94: CN4T3 | AI94: 100 | AJ94: 100 | AK94: 86 | AL94: 86 | AM94: 74 | AN94: 74
B95: 90 | C95: 4 | D95: (56-100) | E95: 4 | F95: (81-100) | G95: 2 | H95: (56-100) | I95: 5 | J95: (71-100) | K95: 1 | L95: (>3) | M95: 2 | N95: (51-100) | O95: 1 | P95: (10-100) | Q95: 1 | R95: (5-100) | S95: 1 | T95: (5-100) | U95: S | V95: (>10) | W95: 8 | X95: (81-100) | AA95: LK2T2A | AB95: 59 | AC95: 59 | AD95: 39 | AE95: 31 | AG95: CN5 | AH95: CN5T0 | AI95: 25 | AJ95: 25 | AK95: 68 | AL95: 68 | AM95: 59 | AN95: 59
B96: 91 | C96: 4 | D96: (56-100) | E96: 4 | F96: (81-100) | G96: 2 | H96: (56-100) | I96: 5 | J96: (71-100) | K96: 1 | L96: (>3) | M96: 2 | N96: (51-100) | O96: 1 | P96: (10-100) | Q96: 1 | R96: (5-100) | S96: 1 | T96: (5-100) | U96: S | V96: (>10) | W96: 8 | X96: (81-100) | AA96: LK2T3A | AB96: 70 | AC96: 70 | AD96: 45 | AE96: 36 | AH96: CN5T1 | AI96: 50 | AJ96: 50 | AK96: 68 | AL96: 68 | AM96: 59 | AN96: 59
B97: 92 | C97: 4 | D97: (56-100) | E97: 4 | F97: (81-100) | G97: 2 | H97: (56-100) | I97: 5 | J97: (71-100) | K97: 1 | L97: (>3) | M97: 2 | N97: (51-100) | O97: 1 | P97: (10-100) | Q97: 1 | R97: (5-100) | S97: 1 | T97: (5-100) | U97: S | V97: (>10) | W97: 8 | X97: (81-100) | Z97: LK3 | AA97: LK3T1A | AB97: 64 | AC97: 64 | AD97: 44 | AE97: 35 | AH97: CN5T2 | AI97: 75 | AJ97: 75 | AK97: 91 | AL97: 91 | AM97: 79 | AN97: 79
B98: 93 | C98: 4 | D98: (56-100) | E98: 4 | F98: (81-100) | G98: 2 | H98: (56-100) | I98: 5 | J98: (71-100) | K98: 1 | L98: (>3) | M98: 2 | N98: (51-100) | O98: 1 | P98: (10-100) | Q98: 1 | R98: (5-100) | S98: 1 | T98: (5-100) | U98: S | V98: (>10) | W98: 8 | X98: (81-100) | AA98: LK3T2A | AB98: 87 | AC98: 87 | AD98: 56 | AE98: 45 | AH98: CN5T3 | AI98: 100 | AJ98: 100 | AK98: 104 | AL98: 104 | AM98: 90 | AN98: 90
B99: 94 | C99: 4 | D99: (56-100) | E99: 4 | F99: (81-100) | G99: 2 | H99: (56-100) | I99: 5 | J99: (71-100) | K99: 1 | L99: (>3) | M99: 2 | N99: (51-100) | O99: 1 | P99: (10-100) | Q99: 1 | R99: (5-100) | S99: 1 | T99: (5-100) | U99: S | V99: (>10) | W99: 8 | X99: (81-100) | AA99: LK3T3A | AB99: 99 | AC99: 99 | AD99: 64 | AE99: 51 | AG99: CN6 | AH99: CN6T0 | AI99: 25 | AJ99: 25 | AK99: 71 | AL99: 71 | AM99: 61 | AN99: 61
B100: 95 | C100: 4 | D100: (56-100) | E100: 4 | F100: (81-100) | G100: 2 | H100: (56-100) | I100: 5 | J100: (71-100) | K100: 1 | L100: (>3) | M100: 2 | N100: (51-100) | O100: 1 | P100: (10-100) | Q100: 1 | R100: (5-100) | S100: 1 | T100: (5-100) | U100: S | V100: (>10) | W100: 8 | X100: (81-100) | Z100: LK4 | AA100: LK4T1A | AB100: 92 | AC100: 92 | AD100: 61 | AE100: 49 | AH100: CN6T1 | AI100: 50 | AJ100: 50 | AK100: 71 | AL100: 71 | AM100: 61 | AN100: 61
B101: 96 | C101: 4 | D101: (56-100) | E101: 4 | F101: (81-100) | G101: 2 | H101: (56-100) | I101: 5 | J101: (71-100) | K101: 1 | L101: (>3) | M101: 2 | N101: (51-100) | O101: 1 | P101: (10-100) | Q101: 1 | R101: (5-100) | S101: 1 | T101: (5-100) | U101: S | V101: (>10) | W101: 8 | X101: (81-100) | AA101: LK4T2A | AB101: 124 | AC101: 124 | AD101: 80 | AE101: 64 | AH101: CN6T2 | AI101: 75 | AJ101: 75 | AK101: 96 | AL101: 96 | AM101: 83 | AN101: 83
B102: 97 | C102: 4 | D102: (56-100) | E102: 4 | F102: (81-100) | G102: 2 | H102: (56-100) | I102: 5 | J102: (71-100) | K102: 1 | L102: (>3) | M102: 2 | N102: (51-100) | O102: 1 | P102: (10-100) | Q102: 1 | R102: (5-100) | S102: 1 | T102: (5-100) | U102: S | V102: (>10) | W102: 8 | X102: (81-100) | AA102: LK4T3A | AB102: 143 | AC102: 143 | AD102: 93 | AE102: 74 | AH102: CN6T3 | AI102: 100 | AJ102: 100 | AK102: 110 | AL102: 110 | AM102: 95 | AN102: 95
B103: 98 | C103: 4 | D103: (56-100) | E103: 4 | F103: (81-100) | G103: 2 | H103: (56-100) | I103: 5 | J103: (71-100) | K103: 1 | L103: (>3) | M103: 2 | N103: (51-100) | O103: 1 | P103: (10-100) | Q103: 1 | R103: (5-100) | S103: 1 | T103: (5-100) | U103: S | V103: (>10) | W103: 8 | X103: (81-100) | Z103: LK5 | AA103: LK5T1A | AB103: 122 | AC103: 122 | AD103: 68 | AE103: 54 | AG103: CN7 | AH103: CN7T0 | AI103: 25 | AJ103: 25 | AK103: 81 | AL103: 81 | AM103: 70 | AN103: 70
B104: 99 | C104: 4 | D104: (56-100) | E104: 4 | F104: (81-100) | G104: 2 | H104: (56-100) | I104: 5 | J104: (71-100) | K104: 1 | L104: (>3) | M104: 2 | N104: (51-100) | O104: 1 | P104: (10-100) | Q104: 1 | R104: (5-100) | S104: 1 | T104: (5-100) | U104: S | V104: (>10) | W104: 8 | X104: (81-100) | AA104: LK5T2A | AB104: 164 | AC104: 164 | AD104: 91 | AE104: 73 | AH104: CN7T1 | AI104: 50 | AJ104: 50 | AK104: 81 | AL104: 81 | AM104: 70 | AN104: 70
B105: 100 | C105: 4 | D105: (56-100) | E105: 4 | F105: (81-100) | G105: 2 | H105: (56-100) | I105: 5 | J105: (71-100) | K105: 1 | L105: (>3) | M105: 2 | N105: (51-100) | O105: 1 | P105: (10-100) | Q105: 1 | R105: (5-100) | S105: 1 | T105: (5-100) | U105: S | V105: (>10) | W105: 8 | X105: (81-100) | AA105: LK5T3A | AB105: 187 | AC105: 187 | AD105: 101 | AE105: 81 | AH105: CN7T2 | AI105: 75 | AJ105: 75 | AK105: 109 | AL105: 109 | AM105: 94 | AN105: 94
B106: 101 | C106: 5 | D106: (101-200) | E106: 5 | F106: (101-200) | G106: 3 | H106: (101-200) | I106: 6 | J106: (101-200) | K106: 1 | L106: (>3) | M106: 3 | N106: (101-200) | O106: 2 | P106: (101-200) | Q106: 2 | R106: (101-150) | S106: 2 | T106: (101-150) | U106: S | V106: (>10) | W106: 9 | X106: (>100) | Z106: LK6 | AA106: LK6T1A | AB106: 177 | AC106: 177 | AD106: 89 | AE106: 71 | AH106: CN7T3 | AI106: 100 | AJ106: 100 | AK106: 124 | AL106: 124 | AM106: 107 | AN106: 107
B107: 102 | C107: 5 | D107: (101-200) | E107: 5 | F107: (101-200) | G107: 3 | H107: (101-200) | I107: 6 | J107: (101-200) | K107: 1 | L107: (>3) | M107: 3 | N107: (101-200) | O107: 2 | P107: (101-200) | Q107: 2 | R107: (101-150) | S107: 2 | T107: (101-150) | U107: S | V107: (>10) | W107: 9 | X107: (>100) | AA107: LK6T2A | AB107: 237 | AC107: 237 | AD107: 120 | AE107: 96 | AG107: CN8 | AH107: CN8T0 | AI107: 25 | AJ107: 25 | AK107: 90 | AL107: 90 | AM107: 78 | AN107: 78
B108: 103 | C108: 5 | D108: (101-200) | E108: 5 | F108: (101-200) | G108: 3 | H108: (101-200) | I108: 6 | J108: (101-200) | K108: 1 | L108: (>3) | M108: 3 | N108: (101-200) | O108: 2 | P108: (101-200) | Q108: 2 | R108: (101-150) | S108: 2 | T108: (101-150) | U108: S | V108: (>10) | W108: 9 | X108: (>100) | AA108: LK6T3A | AB108: 271 | AC108: 271 | AD108: 136 | AE108: 109 | AH108: CN8T1 | AI108: 50 | AJ108: 50 | AK108: 90 | AL108: 90 | AM108: 78 | AN108: 78
B109: 104 | C109: 5 | D109: (101-200) | E109: 5 | F109: (101-200) | G109: 3 | H109: (101-200) | I109: 6 | J109: (101-200) | K109: 1 | L109: (>3) | M109: 3 | N109: (101-200) | O109: 2 | P109: (101-200) | Q109: 2 | R109: (101-150) | S109: 2 | T109: (101-150) | U109: S | V109: (>10) | W109: 9 | X109: (>100) | Z109: LK7 | AA109: LK7T1A | AB109: 252 | AC109: 252 | AD109: 119 | AE109: 95 | AH109: CN8T2 | AI109: 75 | AJ109: 75 | AK109: 122 | AL109: 122 | AM109: 106 | AN109: 106
B110: 105 | C110: 5 | D110: (101-200) | E110: 5 | F110: (101-200) | G110: 3 | H110: (101-200) | I110: 6 | J110: (101-200) | K110: 1 | L110: (>3) | M110: 3 | N110: (101-200) | O110: 2 | P110: (101-200) | Q110: 2 | R110: (101-150) | S110: 2 | T110: (101-150) | U110: S | V110: (>10) | W110: 9 | X110: (>100) | AA110: LK7T2A | AB110: 338 | AC110: 338 | AD110: 160 | AE110: 128 | AH110: CN8T3 | AI110: 100 | AJ110: 100 | AK110: 138 | AL110: 138 | AM110: 120 | AN110: 120
B111: 106 | C111: 5 | D111: (101-200) | E111: 5 | F111: (101-200) | G111: 3 | H111: (101-200) | I111: 6 | J111: (101-200) | K111: 1 | L111: (>3) | M111: 3 | N111: (101-200) | O111: 2 | P111: (101-200) | Q111: 2 | R111: (101-150) | S111: 2 | T111: (101-150) | U111: S | V111: (>10) | W111: 9 | X111: (>100) | AA111: LK7T3A | AB111: 386 | AC111: 386 | AD111: 183 | AE111: 146 | AG111: CN9 | AH111: CN9T0 | AI111: 25 | AJ111: 25 | AK111: 103 | AL111: 103 | AM111: 89 | AN111: 89
B112: 107 | C112: 5 | D112: (101-200) | E112: 5 | F112: (101-200) | G112: 3 | H112: (101-200) | I112: 6 | J112: (101-200) | K112: 1 | L112: (>3) | M112: 3 | N112: (101-200) | O112: 2 | P112: (101-200) | Q112: 2 | R112: (101-150) | S112: 2 | T112: (101-150) | U112: S | V112: (>10) | W112: 9 | X112: (>100) | Z112: LK8 | AA112: LK8T1A | AB112: 289 | AC112: 289 | AD112: 126 | AE112: 101 | AH112: CN9T1 | AI112: 50 | AJ112: 50 | AK112: 103 | AL112: 103 | AM112: 89 | AN112: 89
B113: 108 | C113: 5 | D113: (101-200) | E113: 5 | F113: (101-200) | G113: 3 | H113: (101-200) | I113: 6 | J113: (101-200) | K113: 1 | L113: (>3) | M113: 3 | N113: (101-200) | O113: 2 | P113: (101-200) | Q113: 2 | R113: (101-150) | S113: 2 | T113: (101-150) | U113: S | V113: (>10) | W113: 9 | X113: (>100) | AA113: LK8T2A | AB113: 392 | AC113: 392 | AD113: 173 | AE113: 138 | AH113: CN9T2 | AI113: 75 | AJ113: 75 | AK113: 140 | AL113: 140 | AM113: 121 | AN113: 121
B114: 109 | C114: 5 | D114: (101-200) | E114: 5 | F114: (101-200) | G114: 3 | H114: (101-200) | I114: 6 | J114: (101-200) | K114: 1 | L114: (>3) | M114: 3 | N114: (101-200) | O114: 2 | P114: (101-200) | Q114: 2 | R114: (101-150) | S114: 2 | T114: (101-150) | U114: S | V114: (>10) | W114: 9 | X114: (>100) | AA114: LK8T3A | AB114: 446 | AC114: 446 | AD114: 195 | AE114: 156 | AH114: CN9T3 | AI114: 100 | AJ114: 100 | AK114: 158 | AL114: 158 | AM114: 137 | AN114: 137
B115: 110 | C115: 5 | D115: (101-200) | E115: 5 | F115: (101-200) | G115: 3 | H115: (101-200) | I115: 6 | J115: (101-200) | K115: 1 | L115: (>3) | M115: 3 | N115: (101-200) | O115: 2 | P115: (101-200) | Q115: 2 | R115: (101-150) | S115: 2 | T115: (101-150) | U115: S | V115: (>10) | W115: 9 | X115: (>100) | Z115: LK9 | AA115: LK9T1A | AB115: 323 | AC115: 323 | AD115: 129 | AE115: 103 | AG115: CL1 | AH115: CL1T0 | AI115: 25 | AJ115: 25 | AK115: 13 | AL115: 13 | AM115: 11 | AN115: 11
B116: 111 | C116: 5 | D116: (101-200) | E116: 5 | F116: (101-200) | G116: 3 | H116: (101-200) | I116: 6 | J116: (101-200) | K116: 1 | L116: (>3) | M116: 3 | N116: (101-200) | O116: 2 | P116: (101-200) | Q116: 2 | R116: (101-150) | S116: 2 | T116: (101-150) | U116: S | V116: (>10) | W116: 9 | X116: (>100) | AA116: LK9T2A | AB116: 437 | AC116: 437 | AD116: 174 | AE116: 139 | AH116: CL1T1 | AI116: 50 | AJ116: 50 | AK116: 13 | AL116: 13 | AM116: 11 | AN116: 11
B117: 112 | C117: 5 | D117: (101-200) | E117: 5 | F117: (101-200) | G117: 3 | H117: (101-200) | I117: 6 | J117: (101-200) | K117: 1 | L117: (>3) | M117: 3 | N117: (101-200) | O117: 2 | P117: (101-200) | Q117: 2 | R117: (101-150) | S117: 2 | T117: (101-150) | U117: S | V117: (>10) | W117: 9 | X117: (>100) | AA117: LK9T3A | AB117: 498 | AC117: 498 | AD117: 199 | AE117: 159 | AH117: CL1T2 | AI117: 75 | AJ117: 75 | AK117: 18 | AL117: 18 | AM117: 15 | AN117: 15
B118: 113 | C118: 5 | D118: (101-200) | E118: 5 | F118: (101-200) | G118: 3 | H118: (101-200) | I118: 6 | J118: (101-200) | K118: 1 | L118: (>3) | M118: 3 | N118: (101-200) | O118: 2 | P118: (101-200) | Q118: 2 | R118: (101-150) | S118: 2 | T118: (101-150) | U118: S | V118: (>10) | W118: 9 | X118: (>100) | Z118: LK10 | AA118: LK10T1A | AB118: 351 | AC118: 351 | AD118: 136 | AE118: 109 | AH118: CL1T3 | AI118: 100 | AJ118: 100 | AK118: 22 | AL118: 22 | AM118: 19 | AN118: 19
B119: 114 | C119: 5 | D119: (101-200) | E119: 5 | F119: (101-200) | G119: 3 | H119: (101-200) | I119: 6 | J119: (101-200) | K119: 1 | L119: (>3) | M119: 3 | N119: (101-200) | O119: 2 | P119: (101-200) | Q119: 2 | R119: (101-150) | S119: 2 | T119: (101-150) | U119: S | V119: (>10) | W119: 9 | X119: (>100) | AA119: LK10T2A | AB119: 475 | AC119: 475 | AD119: 183 | AE119: 146 | AG119: CL2 | AH119: CL2T0 | AI119: 25 | AJ119: 25 | AK119: 36 | AL119: 36 | AM119: 31 | AN119: 31
B120: 115 | C120: 5 | D120: (101-200) | E120: 5 | F120: (101-200) | G120: 3 | H120: (101-200) | I120: 6 | J120: (101-200) | K120: 1 | L120: (>3) | M120: 3 | N120: (101-200) | O120: 2 | P120: (101-200) | Q120: 2 | R120: (101-150) | S120: 2 | T120: (101-150) | U120: S | V120: (>10) | W120: 9 | X120: (>100) | AA120: LK10T3A | AB120: 541 | AC120: 541 | AD120: 210 | AE120: 168 | AH120: CL2T1 | AI120: 50 | AJ120: 50 | AK120: 36 | AL120: 36 | AM120: 31 | AN120: 31
B121: 116 | C121: 5 | D121: (101-200) | E121: 5 | F121: (101-200) | G121: 3 | H121: (101-200) | I121: 6 | J121: (101-200) | K121: 1 | L121: (>3) | M121: 3 | N121: (101-200) | O121: 2 | P121: (101-200) | Q121: 2 | R121: (101-150) | S121: 2 | T121: (101-150) | U121: S | V121: (>10) | W121: 9 | X121: (>100) | Z121: LK11 | AA121: LK11T1A | AB121: 374 | AC121: 374 | AD121: 140 | AE121: 112 | AH121: CL2T2 | AI121: 75 | AJ121: 75 | AK121: 48 | AL121: 48 | AM121: 41 | AN121: 41
B122: 117 | C122: 5 | D122: (101-200) | E122: 5 | F122: (101-200) | G122: 3 | H122: (101-200) | I122: 6 | J122: (101-200) | K122: 1 | L122: (>3) | M122: 3 | N122: (101-200) | O122: 2 | P122: (101-200) | Q122: 2 | R122: (101-150) | S122: 2 | T122: (101-150) | U122: S | V122: (>10) | W122: 9 | X122: (>100) | AA122: LK11T2A | AB122: 505 | AC122: 505 | AD122: 189 | AE122: 151 | AH122: CL2T3 | AI122: 100 | AJ122: 100 | AK122: 56 | AL122: 56 | AM122: 48 | AN122: 48
B123: 118 | C123: 5 | D123: (101-200) | E123: 5 | F123: (101-200) | G123: 3 | H123: (101-200) | I123: 6 | J123: (101-200) | K123: 1 | L123: (>3) | M123: 3 | N123: (101-200) | O123: 2 | P123: (101-200) | Q123: 2 | R123: (101-150) | S123: 2 | T123: (101-150) | U123: S | V123: (>10) | W123: 9 | X123: (>100) | AA123: LK11T3A | AB123: 575 | AC123: 575 | AD123: 216 | AE123: 173 | AG123: CL3 | AH123: CL3T0 | AI123: 25 | AJ123: 25 | AK123: 53 | AL123: 53 | AM123: 46 | AN123: 46
B124: 119 | C124: 5 | D124: (101-200) | E124: 5 | F124: (101-200) | G124: 3 | H124: (101-200) | I124: 6 | J124: (101-200) | K124: 1 | L124: (>3) | M124: 3 | N124: (101-200) | O124: 2 | P124: (101-200) | Q124: 2 | R124: (101-150) | S124: 2 | T124: (101-150) | U124: S | V124: (>10) | W124: 9 | X124: (>100) | Z124: LK12 | AA124: LK12T1A | AB124: 409 | AC124: 409 | AD124: 156 | AE124: 125 | AH124: CL3T1 | AI124: 50 | AJ124: 50 | AK124: 53 | AL124: 53 | AM124: 46 | AN124: 46
B125: 120 | C125: 5 | D125: (101-200) | E125: 5 | F125: (101-200) | G125: 3 | H125: (101-200) | I125: 6 | J125: (101-200) | K125: 1 | L125: (>3) | M125: 3 | N125: (101-200) | O125: 2 | P125: (101-200) | Q125: 2 | R125: (101-150) | S125: 2 | T125: (101-150) | U125: S | V125: (>10) | W125: 9 | X125: (>100) | AA125: LK12T2A | AB125: 553 | AC125: 553 | AD125: 211 | AE125: 169 | AH125: CL3T2 | AI125: 75 | AJ125: 75 | AK125: 73 | AL125: 73 | AM125: 63 | AN125: 63
B126: 121 | C126: 5 | D126: (101-200) | E126: 5 | F126: (101-200) | G126: 3 | H126: (101-200) | I126: 6 | J126: (101-200) | K126: 1 | L126: (>3) | M126: 3 | N126: (101-200) | O126: 2 | P126: (101-200) | Q126: 2 | R126: (101-150) | S126: 2 | T126: (101-150) | U126: S | V126: (>10) | W126: 9 | X126: (>100) | AA126: LK12T3A | AB126: 631 | AC126: 631 | AD126: 241 | AE126: 193 | AH126: CL3T3 | AI126: 100 | AJ126: 100 | AK126: 84 | AL126: 84 | AM126: 73 | AN126: 73
B127: 122 | C127: 5 | D127: (101-200) | E127: 5 | F127: (101-200) | G127: 3 | H127: (101-200) | I127: 6 | J127: (101-200) | K127: 1 | L127: (>3) | M127: 3 | N127: (101-200) | O127: 2 | P127: (101-200) | Q127: 2 | R127: (101-150) | S127: 2 | T127: (101-150) | U127: S | V127: (>10) | W127: 9 | X127: (>100) | Z127: LF1 | AA127: LF1T1A | AB127: 21 | AC127: 21 | AD127: 18 | AE127: 14 | AG127: CL4 | AH127: CL4T0 | AI127: 25 | AJ127: 25 | AK127: 68 | AL127: 68 | AM127: 59 | AN127: 59
B128: 123 | C128: 5 | D128: (101-200) | E128: 5 | F128: (101-200) | G128: 3 | H128: (101-200) | I128: 6 | J128: (101-200) | K128: 1 | L128: (>3) | M128: 3 | N128: (101-200) | O128: 2 | P128: (101-200) | Q128: 2 | R128: (101-150) | S128: 2 | T128: (101-150) | U128: S | V128: (>10) | W128: 9 | X128: (>100) | AA128: LF1T2A | AB128: 29 | AC128: 29 | AD128: 25 | AE128: 20 | AH128: CL4T1 | AI128: 50 | AJ128: 50 | AK128: 68 | AL128: 68 | AM128: 59 | AN128: 59
B129: 124 | C129: 5 | D129: (101-200) | E129: 5 | F129: (101-200) | G129: 3 | H129: (101-200) | I129: 6 | J129: (101-200) | K129: 1 | L129: (>3) | M129: 3 | N129: (101-200) | O129: 2 | P129: (101-200) | Q129: 2 | R129: (101-150) | S129: 2 | T129: (101-150) | U129: S | V129: (>10) | W129: 9 | X129: (>100) | AA129: LF1T3A | AB129: 33 | AC129: 33 | AD129: 29 | AE129: 23 | AH129: CL4T2 | AI129: 75 | AJ129: 75 | AK129: 94 | AL129: 94 | AM129: 81 | AN129: 81
B130: 125 | C130: 5 | D130: (101-200) | E130: 5 | F130: (101-200) | G130: 3 | H130: (101-200) | I130: 6 | J130: (101-200) | K130: 1 | L130: (>3) | M130: 3 | N130: (101-200) | O130: 2 | P130: (101-200) | Q130: 2 | R130: (101-150) | S130: 2 | T130: (101-150) | U130: S | V130: (>10) | W130: 9 | X130: (>100) | Z130: LF2 | AA130: LF2T1A | AB130: 45 | AC130: 45 | AD130: 39 | AE130: 31 | AH130: CL4T3 | AI130: 100 | AJ130: 100 | AK130: 107 | AL130: 107 | AM130: 93 | AN130: 93
B131: 126 | C131: 5 | D131: (101-200) | E131: 5 | F131: (101-200) | G131: 3 | H131: (101-200) | I131: 6 | J131: (101-200) | K131: 1 | L131: (>3) | M131: 3 | N131: (101-200) | O131: 2 | P131: (101-200) | Q131: 2 | R131: (101-150) | S131: 2 | T131: (101-150) | U131: S | V131: (>10) | W131: 9 | X131: (>100) | AA131: LF2T2A | AB131: 59 | AC131: 59 | AD131: 51 | AE131: 41 | AG131: CL5 | AH131: CL5T0 | AI131: 25 | AJ131: 25 | AK131: 86 | AL131: 86 | AM131: 74 | AN131: 74
B132: 127 | C132: 5 | D132: (101-200) | E132: 5 | F132: (101-200) | G132: 3 | H132: (101-200) | I132: 6 | J132: (101-200) | K132: 1 | L132: (>3) | M132: 3 | N132: (101-200) | O132: 2 | P132: (101-200) | Q132: 2 | R132: (101-150) | S132: 2 | T132: (101-150) | U132: S | V132: (>10) | W132: 9 | X132: (>100) | AA132: LF2T3A | AB132: 70 | AC132: 70 | AD132: 61 | AE132: 49 | AH132: CL5T1 | AI132: 50 | AJ132: 50 | AK132: 86 | AL132: 86 | AM132: 74 | AN132: 74
B133: 128 | C133: 5 | D133: (101-200) | E133: 5 | F133: (101-200) | G133: 3 | H133: (101-200) | I133: 6 | J133: (101-200) | K133: 1 | L133: (>3) | M133: 3 | N133: (101-200) | O133: 2 | P133: (101-200) | Q133: 2 | R133: (101-150) | S133: 2 | T133: (101-150) | U133: S | V133: (>10) | W133: 9 | X133: (>100) | Z133: LF3 | AA133: LF3T1A | AB133: 64 | AC133: 64 | AD133: 56 | AE133: 45 | AH133: CL5T2 | AI133: 75 | AJ133: 75 | AK133: 114 | AL133: 114 | AM133: 99 | AN133: 99
B134: 129 | C134: 5 | D134: (101-200) | E134: 5 | F134: (101-200) | G134: 3 | H134: (101-200) | I134: 6 | J134: (101-200) | K134: 1 | L134: (>3) | M134: 3 | N134: (101-200) | O134: 2 | P134: (101-200) | Q134: 2 | R134: (101-150) | S134: 2 | T134: (101-150) | U134: S | V134: (>10) | W134: 9 | X134: (>100) | AA134: LF3T2A | AB134: 87 | AC134: 87 | AD134: 76 | AE134: 61 | AH134: CL5T3 | AI134: 100 | AJ134: 100 | AK134: 130 | AL134: 130 | AM134: 113 | AN134: 113
B135: 130 | C135: 5 | D135: (101-200) | E135: 5 | F135: (101-200) | G135: 3 | H135: (101-200) | I135: 6 | J135: (101-200) | K135: 1 | L135: (>3) | M135: 3 | N135: (101-200) | O135: 2 | P135: (101-200) | Q135: 2 | R135: (101-150) | S135: 2 | T135: (101-150) | U135: S | V135: (>10) | W135: 9 | X135: (>100) | AA135: LF3T3A | AB135: 99 | AC135: 99 | AD135: 86 | AE135: 69 | AG135: CL6 | AH135: CL6T0 | AI135: 25 | AJ135: 25 | AK135: 88 | AL135: 88 | AM135: 76 | AN135: 76
B136: 131 | C136: 5 | D136: (101-200) | E136: 5 | F136: (101-200) | G136: 3 | H136: (101-200) | I136: 6 | J136: (101-200) | K136: 1 | L136: (>3) | M136: 3 | N136: (101-200) | O136: 2 | P136: (101-200) | Q136: 2 | R136: (101-150) | S136: 2 | T136: (101-150) | U136: S | V136: (>10) | W136: 9 | X136: (>100) | Z136: LF4 | AA136: LF4T1A | AB136: 92 | AC136: 92 | AD136: 80 | AE136: 64 | AH136: CL6T1 | AI136: 50 | AJ136: 50 | AK136: 88 | AL136: 88 | AM136: 76 | AN136: 76
B137: 132 | C137: 5 | D137: (101-200) | E137: 5 | F137: (101-200) | G137: 3 | H137: (101-200) | I137: 6 | J137: (101-200) | K137: 1 | L137: (>3) | M137: 3 | N137: (101-200) | O137: 2 | P137: (101-200) | Q137: 2 | R137: (101-150) | S137: 2 | T137: (101-150) | U137: S | V137: (>10) | W137: 9 | X137: (>100) | AA137: LF4T2A | AB137: 124 | AC137: 124 | AD137: 108 | AE137: 86 | AH137: CL6T2 | AI137: 75 | AJ137: 75 | AK137: 120 | AL137: 120 | AM137: 104 | AN137: 104
B138: 133 | C138: 5 | D138: (101-200) | E138: 5 | F138: (101-200) | G138: 3 | H138: (101-200) | I138: 6 | J138: (101-200) | K138: 1 | L138: (>3) | M138: 3 | N138: (101-200) | O138: 2 | P138: (101-200) | Q138: 2 | R138: (101-150) | S138: 2 | T138: (101-150) | U138: S | V138: (>10) | W138: 9 | X138: (>100) | AA138: LF4T3A | AB138: 143 | AC138: 143 | AD138: 124 | AE138: 99 | AH138: CL6T3 | AI138: 100 | AJ138: 100 | AK138: 137 | AL138: 137 | AM138: 119 | AN138: 119
B139: 134 | C139: 5 | D139: (101-200) | E139: 5 | F139: (101-200) | G139: 3 | H139: (101-200) | I139: 6 | J139: (101-200) | K139: 1 | L139: (>3) | M139: 3 | N139: (101-200) | O139: 2 | P139: (101-200) | Q139: 2 | R139: (101-150) | S139: 2 | T139: (101-150) | U139: S | V139: (>10) | W139: 9 | X139: (>100) | Z139: LF5 | AA139: LF5T1A | AB139: 122 | AC139: 122 | AD139: 106 | AE139: 85 | AG139: CL7 | AH139: CL7T0 | AI139: 25 | AJ139: 25 | AK139: 102 | AL139: 102 | AM139: 88 | AN139: 88
B140: 135 | C140: 5 | D140: (101-200) | E140: 5 | F140: (101-200) | G140: 3 | H140: (101-200) | I140: 6 | J140: (101-200) | K140: 1 | L140: (>3) | M140: 3 | N140: (101-200) | O140: 2 | P140: (101-200) | Q140: 2 | R140: (101-150) | S140: 2 | T140: (101-150) | U140: S | V140: (>10) | W140: 9 | X140: (>100) | AA140: LF5T2A | AB140: 164 | AC140: 164 | AD140: 143 | AE140: 114 | AH140: CL7T1 | AI140: 50 | AJ140: 50 | AK140: 102 | AL140: 102 | AM140: 88 | AN140: 88
B141: 136 | C141: 5 | D141: (101-200) | E141: 5 | F141: (101-200) | G141: 3 | H141: (101-200) | I141: 6 | J141: (101-200) | K141: 1 | L141: (>3) | M141: 3 | N141: (101-200) | O141: 2 | P141: (101-200) | Q141: 2 | R141: (101-150) | S141: 2 | T141: (101-150) | U141: S | V141: (>10) | W141: 9 | X141: (>100) | AA141: LF5T3A | AB141: 187 | AC141: 187 | AD141: 163 | AE141: 130 | AH141: CL7T2 | AI141: 75 | AJ141: 75 | AK141: 136 | AL141: 136 | AM141: 118 | AN141: 118
B142: 137 | C142: 5 | D142: (101-200) | E142: 5 | F142: (101-200) | G142: 3 | H142: (101-200) | I142: 6 | J142: (101-200) | K142: 1 | L142: (>3) | M142: 3 | N142: (101-200) | O142: 2 | P142: (101-200) | Q142: 2 | R142: (101-150) | S142: 2 | T142: (101-150) | U142: S | V142: (>10) | W142: 9 | X142: (>100) | Z142: LF6 | AA142: LF6T1A | AB142: 177 | AC142: 177 | AD142: 154 | AE142: 123 | AH142: CL7T3 | AI142: 100 | AJ142: 100 | AK142: 155 | AL142: 155 | AM142: 134 | AN142: 134
B143: 138 | C143: 5 | D143: (101-200) | E143: 5 | F143: (101-200) | G143: 3 | H143: (101-200) | I143: 6 | J143: (101-200) | K143: 1 | L143: (>3) | M143: 3 | N143: (101-200) | O143: 2 | P143: (101-200) | Q143: 2 | R143: (101-150) | S143: 2 | T143: (101-150) | U143: S | V143: (>10) | W143: 9 | X143: (>100) | AA143: LF6T2A | AB143: 237 | AC143: 237 | AD143: 206 | AE143: 165 | AG143: CL8 | AH143: CL8T0 | AI143: 25 | AJ143: 25 | AK143: 113 | AL143: 113 | AM143: 98 | AN143: 98
B144: 139 | C144: 5 | D144: (101-200) | E144: 5 | F144: (101-200) | G144: 3 | H144: (101-200) | I144: 6 | J144: (101-200) | K144: 1 | L144: (>3) | M144: 3 | N144: (101-200) | O144: 2 | P144: (101-200) | Q144: 2 | R144: (101-150) | S144: 2 | T144: (101-150) | U144: S | V144: (>10) | W144: 9 | X144: (>100) | AA144: LF6T3A | AB144: 271 | AC144: 271 | AD144: 236 | AE144: 189 | AH144: CL8T1 | AI144: 50 | AJ144: 50 | AK144: 113 | AL144: 113 | AM144: 98 | AN144: 98
B145: 140 | C145: 5 | D145: (101-200) | E145: 5 | F145: (101-200) | G145: 3 | H145: (101-200) | I145: 6 | J145: (101-200) | K145: 1 | L145: (>3) | M145: 3 | N145: (101-200) | O145: 2 | P145: (101-200) | Q145: 2 | R145: (101-150) | S145: 2 | T145: (101-150) | U145: S | V145: (>10) | W145: 9 | X145: (>100) | Z145: LF7 | AA145: LF7T1A | AB145: 252 | AC145: 252 | AD145: 219 | AE145: 175 | AH145: CL8T2 | AI145: 75 | AJ145: 75 | AK145: 153 | AL145: 153 | AM145: 133 | AN145: 133
B146: 141 | C146: 5 | D146: (101-200) | E146: 5 | F146: (101-200) | G146: 3 | H146: (101-200) | I146: 6 | J146: (101-200) | K146: 1 | L146: (>3) | M146: 3 | N146: (101-200) | O146: 2 | P146: (101-200) | Q146: 2 | R146: (101-150) | S146: 2 | T146: (101-150) | U146: S | V146: (>10) | W146: 9 | X146: (>100) | AA146: LF7T2A | AB146: 338 | AC146: 338 | AD146: 294 | AE146: 235 | AH146: CL8T3 | AI146: 100 | AJ146: 100 | AK146: 173 | AL146: 173 | AM146: 150 | AN146: 150
B147: 142 | C147: 5 | D147: (101-200) | E147: 5 | F147: (101-200) | G147: 3 | H147: (101-200) | I147: 6 | J147: (101-200) | K147: 1 | L147: (>3) | M147: 3 | N147: (101-200) | O147: 2 | P147: (101-200) | Q147: 2 | R147: (101-150) | S147: 2 | T147: (101-150) | U147: S | V147: (>10) | W147: 9 | X147: (>100) | AA147: LF7T3A | AB147: 386 | AC147: 386 | AD147: 336 | AE147: 269 | AG147: CL9 | AH147: CL9T0 | AI147: 25 | AJ147: 25 | AK147: 128 | AL147: 128 | AM147: 111 | AN147: 111
B148: 143 | C148: 5 | D148: (101-200) | E148: 5 | F148: (101-200) | G148: 3 | H148: (101-200) | I148: 6 | J148: (101-200) | K148: 1 | L148: (>3) | M148: 3 | N148: (101-200) | O148: 2 | P148: (101-200) | Q148: 2 | R148: (101-150) | S148: 2 | T148: (101-150) | U148: S | V148: (>10) | W148: 9 | X148: (>100) | Z148: LF8 | AA148: LF8T1A | AB148: 289 | AC148: 289 | AD148: 251 | AE148: 201 | AH148: CL9T1 | AI148: 50 | AJ148: 50 | AK148: 128 | AL148: 128 | AM148: 111 | AN148: 111
B149: 144 | C149: 5 | D149: (101-200) | E149: 5 | F149: (101-200) | G149: 3 | H149: (101-200) | I149: 6 | J149: (101-200) | K149: 1 | L149: (>3) | M149: 3 | N149: (101-200) | O149: 2 | P149: (101-200) | Q149: 2 | R149: (101-150) | S149: 2 | T149: (101-150) | U149: S | V149: (>10) | W149: 9 | X149: (>100) | AA149: LF8T2A | AB149: 392 | AC149: 392 | AD149: 341 | AE149: 273 | AH149: CL9T2 | AI149: 75 | AJ149: 75 | AK149: 174 | AL149: 174 | AM149: 151 | AN149: 151
B150: 145 | C150: 5 | D150: (101-200) | E150: 5 | F150: (101-200) | G150: 3 | H150: (101-200) | I150: 6 | J150: (101-200) | K150: 1 | L150: (>3) | M150: 3 | N150: (101-200) | O150: 2 | P150: (101-200) | Q150: 2 | R150: (101-150) | S150: 2 | T150: (101-150) | U150: S | V150: (>10) | W150: 9 | X150: (>100) | AA150: LF8T3A | AB150: 446 | AC150: 446 | AD150: 388 | AE150: 310 | AH150: CL9T3 | AI150: 100 | AJ150: 100 | AK150: 197 | AL150: 197 | AM150: 171 | AN150: 171
B151: 146 | C151: 5 | D151: (101-200) | E151: 5 | F151: (101-200) | G151: 3 | H151: (101-200) | I151: 6 | J151: (101-200) | K151: 1 | L151: (>3) | M151: 3 | N151: (101-200) | O151: 2 | P151: (101-200) | Q151: 2 | R151: (101-150) | S151: 2 | T151: (101-150) | U151: S | V151: (>10) | W151: 9 | X151: (>100) | Z151: LF9 | AA151: LF9T1A | AB151: 323 | AC151: 323 | AD151: 281 | AE151: 225
B152: 147 | C152: 5 | D152: (101-200) | E152: 5 | F152: (101-200) | G152: 3 | H152: (101-200) | I152: 6 | J152: (101-200) | K152: 1 | L152: (>3) | M152: 3 | N152: (101-200) | O152: 2 | P152: (101-200) | Q152: 2 | R152: (101-150) | S152: 2 | T152: (101-150) | U152: S | V152: (>10) | W152: 9 | X152: (>100) | AA152: LF9T2A | AB152: 437 | AC152: 437 | AD152: 380 | AE152: 304
B153: 148 | C153: 5 | D153: (101-200) | E153: 5 | F153: (101-200) | G153: 3 | H153: (101-200) | I153: 6 | J153: (101-200) | K153: 1 | L153: (>3) | M153: 3 | N153: (101-200) | O153: 2 | P153: (101-200) | Q153: 2 | R153: (101-150) | S153: 2 | T153: (101-150) | U153: S | V153: (>10) | W153: 9 | X153: (>100) | AA153: LF9T3A | AB153: 498 | AC153: 498 | AD153: 433 | AE153: 346
B154: 149 | C154: 5 | D154: (101-200) | E154: 5 | F154: (101-200) | G154: 3 | H154: (101-200) | I154: 6 | J154: (101-200) | K154: 1 | L154: (>3) | M154: 3 | N154: (101-200) | O154: 2 | P154: (101-200) | Q154: 2 | R154: (101-150) | S154: 2 | T154: (101-150) | U154: S | V154: (>10) | W154: 9 | X154: (>100) | Z154: LF10 | AA154: LF10T1A | AB154: 351 | AC154: 351 | AD154: 305 | AE154: 244
B155: 150 | C155: 5 | D155: (101-200) | E155: 5 | F155: (101-200) | G155: 3 | H155: (101-200) | I155: 6 | J155: (101-200) | K155: 1 | L155: (>3) | M155: 3 | N155: (101-200) | O155: 2 | P155: (101-200) | Q155: 2 | R155: (101-150) | S155: 2 | T155: (101-150) | U155: S | V155: (>10) | W155: 9 | X155: (>100) | AA155: LF10T2A | AB155: 475 | AC155: 475 | AD155: 413 | AE155: 330
B156: 151 | C156: 5 | D156: (101-200) | E156: 5 | F156: (101-200) | G156: 3 | H156: (101-200) | I156: 6 | J156: (101-200) | K156: 1 | L156: (>3) | M156: 3 | N156: (101-200) | O156: 2 | P156: (101-200) | Q156: 3 | R156: (151-200) | S156: 3 | T156: (151-200) | U156: S | V156: (>10) | W156: 9 | X156: (>100) | AA156: LF10T3A | AB156: 541 | AC156: 541 | AD156: 470 | AE156: 376
B157: 152 | C157: 5 | D157: (101-200) | E157: 5 | F157: (101-200) | G157: 3 | H157: (101-200) | I157: 6 | J157: (101-200) | K157: 1 | L157: (>3) | M157: 3 | N157: (101-200) | O157: 2 | P157: (101-200) | Q157: 3 | R157: (151-200) | S157: 3 | T157: (151-200) | U157: S | V157: (>10) | W157: 9 | X157: (>100) | Z157: LF11 | AA157: LF11T1A | AB157: 374 | AC157: 374 | AD157: 325 | AE157: 260
B158: 153 | C158: 5 | D158: (101-200) | E158: 5 | F158: (101-200) | G158: 3 | H158: (101-200) | I158: 6 | J158: (101-200) | K158: 1 | L158: (>3) | M158: 3 | N158: (101-200) | O158: 2 | P158: (101-200) | Q158: 3 | R158: (151-200) | S158: 3 | T158: (151-200) | U158: S | V158: (>10) | W158: 9 | X158: (>100) | AA158: LF11T2A | AB158: 505 | AC158: 505 | AD158: 439 | AE158: 351
B159: 154 | C159: 5 | D159: (101-200) | E159: 5 | F159: (101-200) | G159: 3 | H159: (101-200) | I159: 6 | J159: (101-200) | K159: 1 | L159: (>3) | M159: 3 | N159: (101-200) | O159: 2 | P159: (101-200) | Q159: 3 | R159: (151-200) | S159: 3 | T159: (151-200) | U159: S | V159: (>10) | W159: 9 | X159: (>100) | AA159: LF11T3A | AB159: 575 | AC159: 575 | AD159: 500 | AE159: 400
B160: 155 | C160: 5 | D160: (101-200) | E160: 5 | F160: (101-200) | G160: 3 | H160: (101-200) | I160: 6 | J160: (101-200) | K160: 1 | L160: (>3) | M160: 3 | N160: (101-200) | O160: 2 | P160: (101-200) | Q160: 3 | R160: (151-200) | S160: 3 | T160: (151-200) | U160: S | V160: (>10) | W160: 9 | X160: (>100) | Z160: LF12 | AA160: LF12T1A | AB160: 409 | AC160: 409 | AD160: 356 | AE160: 285
B161: 156 | C161: 5 | D161: (101-200) | E161: 5 | F161: (101-200) | G161: 3 | H161: (101-200) | I161: 6 | J161: (101-200) | K161: 1 | L161: (>3) | M161: 3 | N161: (101-200) | O161: 2 | P161: (101-200) | Q161: 3 | R161: (151-200) | S161: 3 | T161: (151-200) | U161: S | V161: (>10) | W161: 9 | X161: (>100) | AA161: LF12T2A | AB161: 553 | AC161: 553 | AD161: 481 | AE161: 385
B162: 157 | C162: 5 | D162: (101-200) | E162: 5 | F162: (101-200) | G162: 3 | H162: (101-200) | I162: 6 | J162: (101-200) | K162: 1 | L162: (>3) | M162: 3 | N162: (101-200) | O162: 2 | P162: (101-200) | Q162: 3 | R162: (151-200) | S162: 3 | T162: (151-200) | U162: S | V162: (>10) | W162: 9 | X162: (>100) | AA162: LF12T3A | AB162: 631 | AC162: 631 | AD162: 549 | AE162: 439
B163: 158 | C163: 5 | D163: (101-200) | E163: 5 | F163: (101-200) | G163: 3 | H163: (101-200) | I163: 6 | J163: (101-200) | K163: 1 | L163: (>3) | M163: 3 | N163: (101-200) | O163: 2 | P163: (101-200) | Q163: 3 | R163: (151-200) | S163: 3 | T163: (151-200) | U163: S | V163: (>10) | W163: 9 | X163: (>100) | Z163: 4'T12-LLD1 | AA163: 4'T12-LLD1T1A | AB163: 4 | AC163: 4 | AD163: 4 | AE163: 4
B164: 159 | C164: 5 | D164: (101-200) | E164: 5 | F164: (101-200) | G164: 3 | H164: (101-200) | I164: 6 | J164: (101-200) | K164: 1 | L164: (>3) | M164: 3 | N164: (101-200) | O164: 2 | P164: (101-200) | Q164: 3 | R164: (151-200) | S164: 3 | T164: (151-200) | U164: S | V164: (>10) | W164: 9 | X164: (>100) | AA164: 4'T12-LLD1T2A | AB164: 4 | AC164: 4 | AD164: 4 | AE164: 4
B165: 160 | C165: 5 | D165: (101-200) | E165: 5 | F165: (101-200) | G165: 3 | H165: (101-200) | I165: 6 | J165: (101-200) | K165: 1 | L165: (>3) | M165: 3 | N165: (101-200) | O165: 2 | P165: (101-200) | Q165: 3 | R165: (151-200) | S165: 3 | T165: (151-200) | U165: S | V165: (>10) | W165: 9 | X165: (>100) | AA165: 4'T12-LLD1T3A | AB165: 4 | AC165: 4 | AD165: 4 | AE165: 4
B166: 161 | C166: 5 | D166: (101-200) | E166: 5 | F166: (101-200) | G166: 3 | H166: (101-200) | I166: 6 | J166: (101-200) | K166: 1 | L166: (>3) | M166: 3 | N166: (101-200) | O166: 2 | P166: (101-200) | Q166: 3 | R166: (151-200) | S166: 3 | T166: (151-200) | U166: S | V166: (>10) | W166: 9 | X166: (>100) | Z166: 4'T12-LLD2 | AA166: 4'T12-LLD2T1A | AB166: 4 | AC166: 4 | AD166: 4 | AE166: 4
B167: 162 | C167: 5 | D167: (101-200) | E167: 5 | F167: (101-200) | G167: 3 | H167: (101-200) | I167: 6 | J167: (101-200) | K167: 1 | L167: (>3) | M167: 3 | N167: (101-200) | O167: 2 | P167: (101-200) | Q167: 3 | R167: (151-200) | S167: 3 | T167: (151-200) | U167: S | V167: (>10) | W167: 9 | X167: (>100) | AA167: 4'T12-LLD2T2A | AB167: 4 | AC167: 4 | AD167: 4 | AE167: 4
B168: 163 | C168: 5 | D168: (101-200) | E168: 5 | F168: (101-200) | G168: 3 | H168: (101-200) | I168: 6 | J168: (101-200) | K168: 1 | L168: (>3) | M168: 3 | N168: (101-200) | O168: 2 | P168: (101-200) | Q168: 3 | R168: (151-200) | S168: 3 | T168: (151-200) | U168: S | V168: (>10) | W168: 9 | X168: (>100) | AA168: 4'T12-LLD2T3A | AB168: 4 | AC168: 4 | AD168: 4 | AE168: 4
B169: 164 | C169: 5 | D169: (101-200) | E169: 5 | F169: (101-200) | G169: 3 | H169: (101-200) | I169: 6 | J169: (101-200) | K169: 1 | L169: (>3) | M169: 3 | N169: (101-200) | O169: 2 | P169: (101-200) | Q169: 3 | R169: (151-200) | S169: 3 | T169: (151-200) | U169: S | V169: (>10) | W169: 9 | X169: (>100) | Z169: 4'T12-LLD3 | AA169: 4'T12-LLD3T1A | AB169: 4 | AC169: 4 | AD169: 4 | AE169: 4
B170: 165 | C170: 5 | D170: (101-200) | E170: 5 | F170: (101-200) | G170: 3 | H170: (101-200) | I170: 6 | J170: (101-200) | K170: 1 | L170: (>3) | M170: 3 | N170: (101-200) | O170: 2 | P170: (101-200) | Q170: 3 | R170: (151-200) | S170: 3 | T170: (151-200) | U170: S | V170: (>10) | W170: 9 | X170: (>100) | AA170: 4'T12-LLD3T2A | AB170: 4 | AC170: 4 | AD170: 4 | AE170: 4
B171: 166 | C171: 5 | D171: (101-200) | E171: 5 | F171: (101-200) | G171: 3 | H171: (101-200) | I171: 6 | J171: (101-200) | K171: 1 | L171: (>3) | M171: 3 | N171: (101-200) | O171: 2 | P171: (101-200) | Q171: 3 | R171: (151-200) | S171: 3 | T171: (151-200) | U171: S | V171: (>10) | W171: 9 | X171: (>100) | AA171: 4'T12-LLD3T3A | AB171: 4 | AC171: 4 | AD171: 4 | AE171: 4
B172: 167 | C172: 5 | D172: (101-200) | E172: 5 | F172: (101-200) | G172: 3 | H172: (101-200) | I172: 6 | J172: (101-200) | K172: 1 | L172: (>3) | M172: 3 | N172: (101-200) | O172: 2 | P172: (101-200) | Q172: 3 | R172: (151-200) | S172: 3 | T172: (151-200) | U172: S | V172: (>10) | W172: 9 | X172: (>100) | Z172: 4'T12-LLD4 | AA172: 4'T12-LLD4T1A | AB172: 4 | AC172: 4 | AD172: 4 | AE172: 4
B173: 168 | C173: 5 | D173: (101-200) | E173: 5 | F173: (101-200) | G173: 3 | H173: (101-200) | I173: 6 | J173: (101-200) | K173: 1 | L173: (>3) | M173: 3 | N173: (101-200) | O173: 2 | P173: (101-200) | Q173: 3 | R173: (151-200) | S173: 3 | T173: (151-200) | U173: S | V173: (>10) | W173: 9 | X173: (>100) | AA173: 4'T12-LLD4T2A | AB173: 4 | AC173: 4 | AD173: 4 | AE173: 4
B174: 169 | C174: 5 | D174: (101-200) | E174: 5 | F174: (101-200) | G174: 3 | H174: (101-200) | I174: 6 | J174: (101-200) | K174: 1 | L174: (>3) | M174: 3 | N174: (101-200) | O174: 2 | P174: (101-200) | Q174: 3 | R174: (151-200) | S174: 3 | T174: (151-200) | U174: S | V174: (>10) | W174: 9 | X174: (>100) | AA174: 4'T12-LLD4T3A | AB174: 4 | AC174: 4 | AD174: 4 | AE174: 4
B175: 170 | C175: 5 | D175: (101-200) | E175: 5 | F175: (101-200) | G175: 3 | H175: (101-200) | I175: 6 | J175: (101-200) | K175: 1 | L175: (>3) | M175: 3 | N175: (101-200) | O175: 2 | P175: (101-200) | Q175: 3 | R175: (151-200) | S175: 3 | T175: (151-200) | U175: S | V175: (>10) | W175: 9 | X175: (>100) | Z175: 4'T12-LLD5 | AA175: 4'T12-LLD5T1A | AB175: 4 | AC175: 4 | AD175: 4 | AE175: 4
B176: 171 | C176: 5 | D176: (101-200) | E176: 5 | F176: (101-200) | G176: 3 | H176: (101-200) | I176: 6 | J176: (101-200) | K176: 1 | L176: (>3) | M176: 3 | N176: (101-200) | O176: 2 | P176: (101-200) | Q176: 3 | R176: (151-200) | S176: 3 | T176: (151-200) | U176: S | V176: (>10) | W176: 9 | X176: (>100) | AA176: 4'T12-LLD5T2A | AB176: 4 | AC176: 4 | AD176: 4 | AE176: 4
B177: 172 | C177: 5 | D177: (101-200) | E177: 5 | F177: (101-200) | G177: 3 | H177: (101-200) | I177: 6 | J177: (101-200) | K177: 1 | L177: (>3) | M177: 3 | N177: (101-200) | O177: 2 | P177: (101-200) | Q177: 3 | R177: (151-200) | S177: 3 | T177: (151-200) | U177: S | V177: (>10) | W177: 9 | X177: (>100) | AA177: 4'T12-LLD5T3A | AB177: 4 | AC177: 4 | AD177: 4 | AE177: 4
B178: 173 | C178: 5 | D178: (101-200) | E178: 5 | F178: (101-200) | G178: 3 | H178: (101-200) | I178: 6 | J178: (101-200) | K178: 1 | L178: (>3) | M178: 3 | N178: (101-200) | O178: 2 | P178: (101-200) | Q178: 3 | R178: (151-200) | S178: 3 | T178: (151-200) | U178: S | V178: (>10) | W178: 9 | X178: (>100) | Z178: 4'T12-LLD6 | AA178: 4'T12-LLD6T1A | AB178: 4 | AC178: 4 | AD178: 4 | AE178: 4
B179: 174 | C179: 5 | D179: (101-200) | E179: 5 | F179: (101-200) | G179: 3 | H179: (101-200) | I179: 6 | J179: (101-200) | K179: 1 | L179: (>3) | M179: 3 | N179: (101-200) | O179: 2 | P179: (101-200) | Q179: 3 | R179: (151-200) | S179: 3 | T179: (151-200) | U179: S | V179: (>10) | W179: 9 | X179: (>100) | AA179: 4'T12-LLD6T2A | AB179: 4 | AC179: 4 | AD179: 4 | AE179: 4
B180: 175 | C180: 5 | D180: (101-200) | E180: 5 | F180: (101-200) | G180: 3 | H180: (101-200) | I180: 6 | J180: (101-200) | K180: 1 | L180: (>3) | M180: 3 | N180: (101-200) | O180: 2 | P180: (101-200) | Q180: 3 | R180: (151-200) | S180: 3 | T180: (151-200) | U180: S | V180: (>10) | W180: 9 | X180: (>100) | AA180: 4'T12-LLD6T3A | AB180: 4 | AC180: 4 | AD180: 4 | AE180: 4
B181: 176 | C181: 5 | D181: (101-200) | E181: 5 | F181: (101-200) | G181: 3 | H181: (101-200) | I181: 6 | J181: (101-200) | K181: 1 | L181: (>3) | M181: 3 | N181: (101-200) | O181: 2 | P181: (101-200) | Q181: 3 | R181: (151-200) | S181: 3 | T181: (151-200) | U181: S | V181: (>10) | W181: 9 | X181: (>100) | Z181: 4'T12-LLD7 | AA181: 4'T12-LLD7T1A | AB181: 4 | AC181: 4 | AD181: 4 | AE181: 4
B182: 177 | C182: 5 | D182: (101-200) | E182: 5 | F182: (101-200) | G182: 3 | H182: (101-200) | I182: 6 | J182: (101-200) | K182: 1 | L182: (>3) | M182: 3 | N182: (101-200) | O182: 2 | P182: (101-200) | Q182: 3 | R182: (151-200) | S182: 3 | T182: (151-200) | U182: S | V182: (>10) | W182: 9 | X182: (>100) | AA182: 4'T12-LLD7T2A | AB182: 4 | AC182: 4 | AD182: 4 | AE182: 4
B183: 178 | C183: 5 | D183: (101-200) | E183: 5 | F183: (101-200) | G183: 3 | H183: (101-200) | I183: 6 | J183: (101-200) | K183: 1 | L183: (>3) | M183: 3 | N183: (101-200) | O183: 2 | P183: (101-200) | Q183: 3 | R183: (151-200) | S183: 3 | T183: (151-200) | U183: S | V183: (>10) | W183: 9 | X183: (>100) | AA183: 4'T12-LLD7T3A | AB183: 4 | AC183: 4 | AD183: 4 | AE183: 4
B184: 179 | C184: 5 | D184: (101-200) | E184: 5 | F184: (101-200) | G184: 3 | H184: (101-200) | I184: 6 | J184: (101-200) | K184: 1 | L184: (>3) | M184: 3 | N184: (101-200) | O184: 2 | P184: (101-200) | Q184: 3 | R184: (151-200) | S184: 3 | T184: (151-200) | U184: S | V184: (>10) | W184: 9 | X184: (>100) | Z184: 4'T12-LLD8 | AA184: 4'T12-LLD8T1A | AB184: 4 | AC184: 4 | AD184: 4 | AE184: 4
B185: 180 | C185: 5 | D185: (101-200) | E185: 5 | F185: (101-200) | G185: 3 | H185: (101-200) | I185: 6 | J185: (101-200) | K185: 1 | L185: (>3) | M185: 3 | N185: (101-200) | O185: 2 | P185: (101-200) | Q185: 3 | R185: (151-200) | S185: 3 | T185: (151-200) | U185: S | V185: (>10) | W185: 9 | X185: (>100) | AA185: 4'T12-LLD8T2A | AB185: 4 | AC185: 4 | AD185: 4 | AE185: 4
B186: 181 | C186: 5 | D186: (101-200) | E186: 5 | F186: (101-200) | G186: 3 | H186: (101-200) | I186: 6 | J186: (101-200) | K186: 1 | L186: (>3) | M186: 3 | N186: (101-200) | O186: 2 | P186: (101-200) | Q186: 3 | R186: (151-200) | S186: 3 | T186: (151-200) | U186: S | V186: (>10) | W186: 9 | X186: (>100) | AA186: 4'T12-LLD8T3A | AB186: 4 | AC186: 4 | AD186: 4 | AE186: 4
B187: 182 | C187: 5 | D187: (101-200) | E187: 5 | F187: (101-200) | G187: 3 | H187: (101-200) | I187: 6 | J187: (101-200) | K187: 1 | L187: (>3) | M187: 3 | N187: (101-200) | O187: 2 | P187: (101-200) | Q187: 3 | R187: (151-200) | S187: 3 | T187: (151-200) | U187: S | V187: (>10) | W187: 9 | X187: (>100) | Z187: 4'T12-LLD9 | AA187: 4'T12-LLD9T1A | AB187: 4 | AC187: 4 | AD187: 4 | AE187: 4
B188: 183 | C188: 5 | D188: (101-200) | E188: 5 | F188: (101-200) | G188: 3 | H188: (101-200) | I188: 6 | J188: (101-200) | K188: 1 | L188: (>3) | M188: 3 | N188: (101-200) | O188: 2 | P188: (101-200) | Q188: 3 | R188: (151-200) | S188: 3 | T188: (151-200) | U188: S | V188: (>10) | W188: 9 | X188: (>100) | AA188: 4'T12-LLD9T2A | AB188: 4 | AC188: 4 | AD188: 4 | AE188: 4
B189: 184 | C189: 5 | D189: (101-200) | E189: 5 | F189: (101-200) | G189: 3 | H189: (101-200) | I189: 6 | J189: (101-200) | K189: 1 | L189: (>3) | M189: 3 | N189: (101-200) | O189: 2 | P189: (101-200) | Q189: 3 | R189: (151-200) | S189: 3 | T189: (151-200) | U189: S | V189: (>10) | W189: 9 | X189: (>100) | AA189: 4'T12-LLD9T3A | AB189: 4 | AC189: 4 | AD189: 4 | AE189: 4
B190: 185 | C190: 5 | D190: (101-200) | E190: 5 | F190: (101-200) | G190: 3 | H190: (101-200) | I190: 6 | J190: (101-200) | K190: 1 | L190: (>3) | M190: 3 | N190: (101-200) | O190: 2 | P190: (101-200) | Q190: 3 | R190: (151-200) | S190: 3 | T190: (151-200) | U190: S | V190: (>10) | W190: 9 | X190: (>100) | Z190: 4'T12-LLD10 | AA190: 4'T12-LLD10T1A | AB190: 4 | AC190: 4 | AD190: 4 | AE190: 4
B191: 186 | C191: 5 | D191: (101-200) | E191: 5 | F191: (101-200) | G191: 3 | H191: (101-200) | I191: 6 | J191: (101-200) | K191: 1 | L191: (>3) | M191: 3 | N191: (101-200) | O191: 2 | P191: (101-200) | Q191: 3 | R191: (151-200) | S191: 3 | T191: (151-200) | U191: S | V191: (>10) | W191: 9 | X191: (>100) | AA191: 4'T12-LLD10T2A | AB191: 4 | AC191: 4 | AD191: 4 | AE191: 4
B192: 187 | C192: 5 | D192: (101-200) | E192: 5 | F192: (101-200) | G192: 3 | H192: (101-200) | I192: 6 | J192: (101-200) | K192: 1 | L192: (>3) | M192: 3 | N192: (101-200) | O192: 2 | P192: (101-200) | Q192: 3 | R192: (151-200) | S192: 3 | T192: (151-200) | U192: S | V192: (>10) | W192: 9 | X192: (>100) | AA192: 4'T12-LLD10T3A | AB192: 4 | AC192: 4 | AD192: 4 | AE192: 4
B193: 188 | C193: 5 | D193: (101-200) | E193: 5 | F193: (101-200) | G193: 3 | H193: (101-200) | I193: 6 | J193: (101-200) | K193: 1 | L193: (>3) | M193: 3 | N193: (101-200) | O193: 2 | P193: (101-200) | Q193: 3 | R193: (151-200) | S193: 3 | T193: (151-200) | U193: S | V193: (>10) | W193: 9 | X193: (>100) | Z193: 4'T12-LLD11 | AA193: 4'T12-LLD11T1A | AB193: 4 | AC193: 4 | AD193: 4 | AE193: 4
B194: 189 | C194: 5 | D194: (101-200) | E194: 5 | F194: (101-200) | G194: 3 | H194: (101-200) | I194: 6 | J194: (101-200) | K194: 1 | L194: (>3) | M194: 3 | N194: (101-200) | O194: 2 | P194: (101-200) | Q194: 3 | R194: (151-200) | S194: 3 | T194: (151-200) | U194: S | V194: (>10) | W194: 9 | X194: (>100) | AA194: 4'T12-LLD11T2A | AB194: 4 | AC194: 4 | AD194: 4 | AE194: 4
B195: 190 | C195: 5 | D195: (101-200) | E195: 5 | F195: (101-200) | G195: 3 | H195: (101-200) | I195: 6 | J195: (101-200) | K195: 1 | L195: (>3) | M195: 3 | N195: (101-200) | O195: 2 | P195: (101-200) | Q195: 3 | R195: (151-200) | S195: 3 | T195: (151-200) | U195: S | V195: (>10) | W195: 9 | X195: (>100) | AA195: 4'T12-LLD11T3A | AB195: 4 | AC195: 4 | AD195: 4 | AE195: 4
B196: 191 | C196: 5 | D196: (101-200) | E196: 5 | F196: (101-200) | G196: 3 | H196: (101-200) | I196: 6 | J196: (101-200) | K196: 1 | L196: (>3) | M196: 3 | N196: (101-200) | O196: 2 | P196: (101-200) | Q196: 3 | R196: (151-200) | S196: 3 | T196: (151-200) | U196: S | V196: (>10) | W196: 9 | X196: (>100) | Z196: 4'T12-LK1 | AA196: 4'T12-LK1T1A | AB196: 47 | AC196: 47 | AD196: 29 | AE196: 23
B197: 192 | C197: 5 | D197: (101-200) | E197: 5 | F197: (101-200) | G197: 3 | H197: (101-200) | I197: 6 | J197: (101-200) | K197: 1 | L197: (>3) | M197: 3 | N197: (101-200) | O197: 2 | P197: (101-200) | Q197: 3 | R197: (151-200) | S197: 3 | T197: (151-200) | U197: S | V197: (>10) | W197: 9 | X197: (>100) | AA197: 4'T12-LK1T2A | AB197: 63 | AC197: 63 | AD197: 38 | AE197: 30
B198: 193 | C198: 5 | D198: (101-200) | E198: 5 | F198: (101-200) | G198: 3 | H198: (101-200) | I198: 6 | J198: (101-200) | K198: 1 | L198: (>3) | M198: 3 | N198: (101-200) | O198: 2 | P198: (101-200) | Q198: 3 | R198: (151-200) | S198: 3 | T198: (151-200) | U198: S | V198: (>10) | W198: 9 | X198: (>100) | AA198: 4'T12-LK1T3A | AB198: 74 | AC198: 74 | AD198: 44 | AE198: 35
B199: 194 | C199: 5 | D199: (101-200) | E199: 5 | F199: (101-200) | G199: 3 | H199: (101-200) | I199: 6 | J199: (101-200) | K199: 1 | L199: (>3) | M199: 3 | N199: (101-200) | O199: 2 | P199: (101-200) | Q199: 3 | R199: (151-200) | S199: 3 | T199: (151-200) | U199: S | V199: (>10) | W199: 9 | X199: (>100) | Z199: 4'T12-LK2 | AA199: 4'T12-LK2T1A | AB199: 63 | AC199: 63 | AD199: 38 | AE199: 30
B200: 195 | C200: 5 | D200: (101-200) | E200: 5 | F200: (101-200) | G200: 3 | H200: (101-200) | I200: 6 | J200: (101-200) | K200: 1 | L200: (>3) | M200: 3 | N200: (101-200) | O200: 2 | P200: (101-200) | Q200: 3 | R200: (151-200) | S200: 3 | T200: (151-200) | U200: S | V200: (>10) | W200: 9 | X200: (>100) | AA200: 4'T12-LK2T2A | AB200: 85 | AC200: 85 | AD200: 50 | AE200: 40
B201: 196 | C201: 5 | D201: (101-200) | E201: 5 | F201: (101-200) | G201: 3 | H201: (101-200) | I201: 6 | J201: (101-200) | K201: 1 | L201: (>3) | M201: 3 | N201: (101-200) | O201: 2 | P201: (101-200) | Q201: 3 | R201: (151-200) | S201: 3 | T201: (151-200) | U201: S | V201: (>10) | W201: 9 | X201: (>100) | AA201: 4'T12-LK2T3A | AB201: 95 | AC201: 95 | AD201: 56 | AE201: 45
B202: 197 | C202: 5 | D202: (101-200) | E202: 5 | F202: (101-200) | G202: 3 | H202: (101-200) | I202: 6 | J202: (101-200) | K202: 1 | L202: (>3) | M202: 3 | N202: (101-200) | O202: 2 | P202: (101-200) | Q202: 3 | R202: (151-200) | S202: 3 | T202: (151-200) | U202: S | V202: (>10) | W202: 9 | X202: (>100) | Z202: 4'T12-LK3 | AA202: 4'T12-LK3T1A | AB202: 79 | AC202: 79 | AD202: 49 | AE202: 39
... 303 more rows
